{"text_format":"1","workbook":"xlsx","n_sheets":13,"sheets":["Starta här!","Steg 1a Projektinformation","Steg 1b Grupper","Steg 2 Frågor kring vattenmiljö","Steg 3 Frågor kring landmiljö","Steg 4 Resultat för vattenmiljö","Steg 5 Resultat för landmiljö","Steg 6 Sammanfattning","Ordlista","EST leverans","Test1 - EST påverkan","Information Ekosystemtj. vatten","Information Ekosystemtj. land"],"not_rendered":{"charts":48,"images":45,"macros":1,"external_links":0,"defined_names":24,"comments":0,"pivot_tables":0},"unopened":[],"bounds":{"document_bytes":16777216,"sheet_cells":100000,"rows_first":2000,"rows_last":500,"rows_between":2000,"halvings":0,"cell_chars":16384,"cell_head_chars":4096},"cells_cut":0,"cells_raw":0,"read":"whole","date_system":"1900"}

{"sheet":"Starta här!","index":0,"n_rows":20,"n_cols":2,"rows_kept":20,"cut":false,"hidden":false,"merged":[[30,12,47,18],[19,1,36,7],[1,1,2,11],[8,1,8,11],[3,1,3,7],[4,1,4,2],[5,1,6,7],[16,1,16,11],[10,1,10,11],[11,1,11,11],[12,1,12,11],[13,1,13,11],[14,1,14,11],[15,1,15,11],[9,1,9,11]]}
[]
[null,"VEsta - Verktyg för att bedöma påverkan på ekosystemtjänster"]
[]
[null,"i samband med  åtgärder och verksamheter vid strandnära miljöer i och vid sjöar, vattendrag och kust"]
[null,"Bakgrund"]
[null,"Detta verktyg består av flervalsfrågor som besvaras utifrån hur en åtgärd eller verksamhet, plan eller program påverkar land- och vattenmiljöer. I tillägg väljs även i vilken grad som påverkan sker; liten, måttlig eller stor. När alla frågor är besvarade presenteras en resultatrapport."]
[]
[]
[]
[]
[null,"Information kring ekosystemtjänster finns i "]
[]
[]
[]
[]
[]
[]
[]
[null,"Om verktyget"]
[null,"Detta verktyg kan användas för att utvärdera påverkan på ekosystemtjänster i samband med planerad exploatering av land- och vattenmiljöer. Utvärderingen genomförs genom att svaranden svarar på ett antal frågor om hur exploateringen påverkar olika förutsättningar som ekosystemen behöver för att leverera olika tjänster. Efter att frågorna har besvarats gör systemet en utvärdering över vilka ekosystemtjänster som påverkas positivt eller negativt samt om denna påverkan är liten, måttlig eller stor."]

{"sheet":"Steg 1a Projektinformation","index":1,"n_rows":15,"n_cols":17,"rows_kept":15,"cut":false,"hidden":false,"merged":[[6,4,6,7],[2,2,2,7],[12,4,12,7],[15,2,15,7],[9,4,9,7]]}
[]
[]
[null,null,"Projekt, bedömning av påverkan på ekosystemtjänster i samband med åtgärder och verksamheter vid strandnära miljöer"]
[]
[null,null,"Projektinformation:",null,"Utförare:",null,null,null,null,null,null,null,null,null,null,null,"Vattentyp:"]
[null,null,"Projektnamn",null,"Namn på utförare",null,null,null,null,null,null,null,null,null,null,null,"Sjö"]
[null,null,null,null,null,null,null,null,null,null,null,null,null,null,null,null,"Vattendrag "]
[null,null,null,null,null,null,null,null,null,null,null,null,null,null,null,null,"Kust"]
[null,null,"Diarenummer/projektnummer",null,"Organisation/enhet"]
[]
[]
[null,null,"Datum för analys",null,"Typ av vattenförekomst som påverkas"]
[]
[]
[null,null,"Noteringar om projektet:"]

{"sheet":"Steg 1b Grupper","index":2,"n_rows":33,"n_cols":20,"rows_kept":33,"cut":false,"hidden":false,"merged":[[2,2,2,7],[3,2,3,7],[4,2,4,7],[11,5,11,7],[12,5,12,7],[13,5,13,7],[14,5,14,7],[15,5,15,7],[6,5,6,7],[7,5,7,7],[8,5,8,7],[9,5,9,7],[10,5,10,7],[27,5,27,7],[16,5,16,7],[17,5,17,7],[18,5,18,7],[19,5,19,7],[20,5,20,7],[21,5,21,7],[22,5,22,7],[23,5,23,7],[24,5,24,7],[25,5,25,7],[26,5,26,7],[28,5,28,7],[29,5,29,7],[30,5,30,7],[31,5,31,7],[32,5,32,7]]}
[]
[]
[null,null,"Vilka samhällsgrupper påverkas positivt eller negativt av åtgärden? "]
[null,null,"I EstA finns det möjlighet att ange vilka samhällsgrupper/aktörer som påverkas positivt eller negativt av åtgärden eller verksamheten som utvärderas i verktyget. Påverkas inte gruppen anges detta som neturalt nedan. Nedan finns förslag på grupper men man kan även lägga till egna grupper. Det finns även möjlighet att ange hur många inom respektive grupp som påverkas samt om påverkan är liten, måttlig eller stor. "]
[]
[null,null,"Samhällsgrupper","Positiv eller negativ påverkan","Påverkans storlek","Antal som påverkas",null,null,null,null,null,null,null,null,null,null,null,"Positiv påverkan","Liten","Enstaka personer"]
[null,null,"Barn",null,null,null,null,null,null,null,null,null,null,null,null,null,null,"Negativ påverkan","Måttlig","Flera personer"]
[null,null,"Boende i städer",null,null,null,null,null,null,null,null,null,null,null,null,null,null,"Neutral","Stor","Ett stort antal personer"]
[null,null,"Boende på landsbygd",null,null,null,null,null,null,null,null,null,null,null,null,null,null,null,null,"Ett mycket stort antal personer"]
[null,null,"Eventarrangörer"]
[null,null,"Friluftsutövare"]
[null,null,"Fritidsfiskare"]
[null,null,"Kommun"]
[null,null,"Kvinnor"]
[null,null,"Lantbrukare"]
[null,null,"Män"]
[null,null,"Närboende"]
[null,null,"Pensionärer"]
[null,null,"Skogsbrukare"]
[null,null,"Små företag "]
[null,null,"Stora företag"]
[null,null,"Turister, inhemska"]
[null,null,"Turister, utländska"]
[null,null,"Verksamhetsutövare"]
[null,null,"Yrkesfiskare"]
[null,null,"Egna tillägg av grupper"]
[null,null,"Egna tillägg av grupper"]
[null,null,"Egna tillägg av grupper"]
[null,null,"Egna tillägg av grupper"]
[null,null,"Egna tillägg av grupper"]
[null,null,"Egna tillägg av grupper"]
[null,null,"Egna tillägg av grupper"]
[null,null,"Egna tillägg av grupper"]

{"sheet":"Steg 2 Frågor kring vattenmiljö","index":3,"n_rows":42,"n_cols":22,"rows_kept":42,"cut":false,"hidden":false,"merged":[[1,1,1,2],[2,1,2,2],[27,6,29,12]]}
[]
[null,"Frågeformulär för vattenmiljöer"]
[null,"När du fyller i formulerat kommer du i vissa fall få följfrågor. Svarar du \"nej\" på en huvudfråga kommer du alltid få en följdfråga om åtgärder kommer vidtas för att förbättra förutsättningarna för ekosystemtjänsterna. Om du har svårt att bedöma en fråga och vill konsultera andra personer i din organisation, ange \"vet inte\" och återkom senare till denna fråga. Försök att alltid bedöma alla frågor eftersom det ger ett mer tillförligt resultat. Lycka till !"]
[]
[null,"Nr.","Frågor","JA/NEJ","Omfattning","Noteringar",null,null,null,null,"Omfattning","JA/NEJ","Förutsättning",null,null,null,null,null,null,null,"Val","Omfattning"]
[null,1,"Kommer projektet öka grumligheten i vattnet, det vill säga öka transporten av partiklar till vattnet?                                                                                                                                          Ökning kan ske exempelvis genom anläggning av enskilt avlopp, dräneringsrör och upplag. ",null,null,null,null,null,null,null,{"$f":"IF(D6=\"NEJ\",(_xlfn.SWITCH(E7,\"Stor\",\"Stor\",\"Måttlig\",\"Måttlig\",\"Liten\",\"Liten\",\"-\")),(_xlfn.SWITCH(E6,\"Stor\",\"Stor\",\"Måttlig\",\"Måttlig\",\"Liten\",\"Liten\",\"-\")))","v":"-"},{"$f":"IF(D6<>\"\",IF(D6<>\"Vet ej\",IF(D6=\"NEJ\",_xlfn.SWITCH(D7,\"JA\",\"Positiv\",\"NEJ\",\"Ingen påverkan\",\"Vet ej\",\"Inte definierad\",\"\",\"-\"),\"Negativ\"),\"Inte definierad\"),\"-\")","v":"-"},"Begränsad grumlighet",null,null,null,null,null,null,null,"JA","LITEN"]
[null,2,"Kommer projektet minska grumligheten i vattnet, det vill säga minska transporten av partiklar till vattnet? ",null,null,null,null,null,null,null,{"$f":"IF(D8=\"NEJ\",(_xlfn.SWITCH(E9,\"Stor\",\"Stor\",\"Måttlig\",\"Måttlig\",\"Liten\",\"Liten\",\"-\")),(_xlfn.SWITCH(E8,\"Stor\",\"Stor\",\"Måttlig\",\"Måttlig\",\"Liten\",\"Liten\",\"-\")))","v":"-"},{"$f":"IF(D8<>\"\",IF(D8<>\"Vet ej\",IF(D8=\"NEJ\",_xlfn.SWITCH(D9,\"JA\",\"Positiv\",\"NEJ\",\"Ingen påverkan\",\"Vet ej\",\"Inte definierad\",\"\",\"-\"),\"Negativ\"),\"Inte definierad\"),\"-\")","v":"-"},"Bevarande av fornlämning eller kulturlämning",null,null,null,null,null,null,null,"NEJ","MÅTTLIG"]
[null,3,"Kommer projektet innebära att hela eller delar av fornlämning eller kulturlämning tas bort?",null,null,null,null,null,null,null,{"$f":"IF(D10=\"NEJ\",(_xlfn.SWITCH(E11,\"Stor\",\"Stor\",\"Måttlig\",\"Måttlig\",\"Liten\",\"Liten\",\"-\")),(_xlfn.SWITCH(E10,\"Stor\",\"Stor\",\"Måttlig\",\"Måttlig\",\"Liten\",\"Liten\",\"-\")))","v":"-"},{"$f":"IF(D10<>\"\",IF(D10<>\"Vet ej\",IF(D10=\"NEJ\",_xlfn.SWITCH(D11,\"JA\",\"Positiv\",\"NEJ\",\"Ingen påverkan\",\"Vet ej\",\"Inte definierad\",\"\",\"-\"),\"Negativ\"),\"Inte definierad\"),\"-\")","v":"-"},"Bevarande av konserverande miljö",null,null,null,null,null,null,null,"VET EJ","STOR"]
[null,4,"Kommer det genomföras restaurering eller renovering av någon fornlämning eller kulturlämning?",null,null,null,null,null,null,null,{"$f":"IF(D12=\"NEJ\",(_xlfn.SWITCH(E13,\"Stor\",\"Stor\",\"Måttlig\",\"Måttlig\",\"Liten\",\"Liten\",\"-\")),(_xlfn.SWITCH(E12,\"Stor\",\"Stor\",\"Måttlig\",\"Måttlig\",\"Liten\",\"Liten\",\"-\")))","v":"-"},{"$f":"IF(D12<>\"\",IF(D12<>\"Vet ej\",IF(D12=\"NEJ\",_xlfn.SWITCH(D13,\"JA\",\"Positiv\",\"NEJ\",\"Ingen påverkan\",\"Vet ej\",\"Inte definierad\",\"\",\"-\"),\"Negativ\"),\"Inte definierad\"),\"-\")","v":"-"},"Bevarande av närmiljö och omgivning till fornlämning eller kulturlämning"]
[null,5,"Kommer projektet innebära att grundvattennivån sänks?",null,null,null,null,null,null,null,{"$f":"IF(D14=\"NEJ\",(_xlfn.SWITCH(E15,\"Stor\",\"Stor\",\"Måttlig\",\"Måttlig\",\"Liten\",\"Liten\",\"-\")),(_xlfn.SWITCH(E14,\"Stor\",\"Stor\",\"Måttlig\",\"Måttlig\",\"Liten\",\"Liten\",\"-\")))","v":"-"},{"$f":"IF(D14<>\"\",IF(D14<>\"Vet ej\",IF(D14=\"NEJ\",_xlfn.SWITCH(D15,\"JA\",\"Positiv\",\"NEJ\",\"Ingen påverkan\",\"-\",\"Vet ej\",\"-\",\"\",\"-\"),\"Negativ\"),\"Inte definierad\"),\"-\")","v":"-"},"Bevarande av skyddade, rödlistade och hotade arter"]
[null,6,"Kommer åtgärderna inom projektet höja grundvattennivån?                                  Exempelvis genom återställning av våtmarker eller igenläggning av diken.",null,null,null,null,null,null,null,{"$f":"IF(D16=\"NEJ\",(_xlfn.SWITCH(E17,\"Stor\",\"Stor\",\"Måttlig\",\"Måttlig\",\"Liten\",\"Liten\",\"-\")),(_xlfn.SWITCH(E16,\"Stor\",\"Stor\",\"Måttlig\",\"Måttlig\",\"Liten\",\"Liten\",\"-\")))","v":"-"},{"$f":"IF(D16<>\"\",IF(D16<>\"Vet ej\",IF(D16=\"NEJ\",_xlfn.SWITCH(D17,\"JA\",\"Positiv\",\"NEJ\",\"Ingen påverkan\",\"-\",\"Vet ej\",\"-\",\"\",\"-\"),\"Negativ\"),\"Inte definierad\"),\"-\")","v":"-"},"Bullerfri miljö"]
[null,7,"Kommer projektet göra ingrepp i området kring en fornlämning eller kulturlämning?",null,null,null,null,null,null,null,{"$f":"IF(D18=\"NEJ\",(_xlfn.SWITCH(E19,\"Stor\",\"Stor\",\"Måttlig\",\"Måttlig\",\"Liten\",\"Liten\",\"-\")),(_xlfn.SWITCH(E18,\"Stor\",\"Stor\",\"Måttlig\",\"Måttlig\",\"Liten\",\"Liten\",\"-\")))","v":"-"},{"$f":"IF(D18<>\"\",IF(D18<>\"Vet ej\",IF(D18=\"NEJ\",_xlfn.SWITCH(D19,\"JA\",\"Positiv\",\"NEJ\",\"Ingen påverkan\",\"-\",\"Vet ej\",\"-\",\"\",\"-\"),\"Negativ\"),\"Inte definierad\"),\"-\")","v":"-"},"Frånvaro av främmande arter"]
[null,8,"Kommer projektet medföra att tillgängligheten till en lämning förstärks eller att den omges av en mer, för lämningen, skyddande miljö?",null,null,null,null,null,null,null,{"$f":"IF(D20=\"NEJ\",(_xlfn.SWITCH(E21,\"Stor\",\"Stor\",\"Måttlig\",\"Måttlig\",\"Liten\",\"Liten\",\"-\")),(_xlfn.SWITCH(E20,\"Stor\",\"Stor\",\"Måttlig\",\"Måttlig\",\"Liten\",\"Liten\",\"-\")))","v":"-"},{"$f":"IF(D20<>\"\",IF(D20<>\"Vet ej\",IF(D20=\"NEJ\",_xlfn.SWITCH(D21,\"JA\",\"Positiv\",\"NEJ\",\"Ingen påverkan\",\"-\",\"Vet ej\",\"-\",\"\",\"-\"),\"Negativ\"),\"Inte definierad\"),\"-\")","v":"-"},"Förekomst av svämplan"]
[null,9,"Kommer projektet påverka födosöksområden eller reproduktionsområden för skyddade, rödlistade eller hotade arter?",null,null,null,null,null,null,null,{"$f":"IF(D22=\"NEJ\",(_xlfn.SWITCH(E23,\"Stor\",\"Stor\",\"Måttlig\",\"Måttlig\",\"Liten\",\"Liten\",\"-\")),(_xlfn.SWITCH(E22,\"Stor\",\"Stor\",\"Måttlig\",\"Måttlig\",\"Liten\",\"Liten\",\"-\")))","v":"-"},{"$f":"IF(D22<>\"\",IF(D22<>\"Vet ej\",IF(D22=\"NEJ\",_xlfn.SWITCH(D23,\"JA\",\"Positiv\",\"NEJ\",\"Ingen påverkan\",\"-\",\"Vet ej\",\"-\",\"\",\"-\"),\"Negativ\"),\"Inte definierad\"),\"-\")","v":"-"},"Naturlig strandkant"]
[null,10,"Kommer projektet förbättra förutsättningarna för vattenförekomstens skyddade, rödlistade eller hotade arter? ",null,null,null,null,null,null,null,{"$f":"IF(D24=\"NEJ\",(_xlfn.SWITCH(E25,\"Stor\",\"Stor\",\"Måttlig\",\"Måttlig\",\"Liten\",\"Liten\",\"-\")),(_xlfn.SWITCH(E24,\"Stor\",\"Stor\",\"Måttlig\",\"Måttlig\",\"Liten\",\"Liten\",\"-\")))","v":"-"},{"$f":"IF(D24<>\"\",IF(D24<>\"Vet ej\",IF(D24=\"NEJ\",_xlfn.SWITCH(D25,\"JA\",\"Positiv\",\"NEJ\",\"Ingen påverkan\",\"-\",\"Vet ej\",\"-\",\"\",\"-\"),\"Negativ\"),\"Inte definierad\"),\"-\")","v":"-"},"Naturliga bottnar"]
[null,11,"Kommer projektet medföra återkommande eller bestående bullrande aktiviteter, exempelvis från ökad bil- och/eller båttrafik, anläggning eller avverkade trädridåer?",null,null,null,null,null,null,null,{"$f":"IF(D26=\"NEJ\",(_xlfn.SWITCH(E27,\"Stor\",\"Stor\",\"Måttlig\",\"Måttlig\",\"Liten\",\"Liten\",\"-\")),(_xlfn.SWITCH(E26,\"Stor\",\"Stor\",\"Måttlig\",\"Måttlig\",\"Liten\",\"Liten\",\"-\")))","v":"-"},{"$f":"IF(D26<>\"\",IF(D26<>\"Vet ej\",IF(D26=\"NEJ\",_xlfn.SWITCH(D27,\"JA\",\"Positiv\",\"NEJ\",\"Ingen påverkan\",\"-\",\"Vet ej\",\"-\",\"\",\"-\"),\"Negativ\"),\"Inte definierad\"),\"-\")","v":"-"},"Naturligt varierat vattenflöde"]
[null,12,"Kommer projektet avlägsna källor till buller?",null,null,null,null,null,null,null,{"$f":"_xlfn.SWITCH(E28,\"Stor\",\"Stor\",\"Måttlig\",\"Måttlig\",\"Liten\",\"Liten\",\"-\")","v":"-"},{"$f":"IF(D28<>\"\",IF(D28<>\"Vet ej\",IF(D28=\"NEJ\",_xlfn.SWITCH(D28,\"JA\",\"Positiv\",\"NEJ\",\"Ingen påverkan\",\"-\",\"Vet ej\",\"-\",\"\",\"-\"),\"Negativ\"),\"Inte definierad\"),\"-\")","v":"-"},"ph"]
[null,13,"Kommer projektet underlätta för främmande arter att sprida sig eller tillväxa? ",null,null,null,null,null,null,null,{"$f":"IF(D29=\"NEJ\",(_xlfn.SWITCH(E30,\"Stor\",\"Stor\",\"Måttlig\",\"Måttlig\",\"Liten\",\"Liten\",\"-\")),(_xlfn.SWITCH(E29,\"Stor\",\"Stor\",\"Måttlig\",\"Måttlig\",\"Liten\",\"Liten\",\"-\")))","v":"-"},{"$f":"IF(D29<>\"\",IF(D29<>\"Vet ej\",IF(D29=\"NEJ\",_xlfn.SWITCH(D30,\"JA\",\"Positiv\",\"NEJ\",\"Ingen påverkan\",\"-\",\"Vet ej\",\"-\",\"\",\"-\"),\"Negativ\"),\"Inte definierad\"),\"-\")","v":"-"},"Soljus"]
[null,14,"Kommer projektet aktivt att arbeta för att röja främmande arter från platsen? Röjningsarbetet ska ske med för arten rekommenderade metoder. ",null,null,null,null,null,null,null,{"$f":"IF(D31=\"Ja\",_xlfn.SWITCH(E31,\"Stor\",\"Stor\",\"Måttlig\",\"Måttlig\",\"Liten\",\"Liten\"),IF(D32=\"Ja\",_xlfn.SWITCH(E32,\"Stor\",\"Stor\",\"Måttlig\",\"Måttlig\",\"Liten\",\"Liten\"),IF(D33=\"Ja\",_xlfn.SWITCH(E33,\"Stor\",\"Stor\",\"Måttlig\",\"Måttlig\",\"Liten\",\"Liten\"),\"-\")))","v":"-"},{"$f":"IF(AND('Steg 2 Frågor kring vattenmiljö'!D31=\"Ja\",'Steg 2 Frågor kring vattenmiljö'!D32=\"nej\",'Steg 2 Frågor kring vattenmiljö'!D33=\"nej\"),\"Positiv\",IF(AND('Steg 2 Frågor kring vattenmiljö'!D31=\"Ja\",'Steg 2 Frågor kring vattenmiljö'!D32=\"nej\"),\"Negativ\",IF(AND('Steg 2 Frågor kring vattenmiljö'!D31=\"Nej\",'Steg 2 Frågor kring vattenmiljö'!D32=\"Ja\",'Steg 2 Frågor kring vattenmiljö'!D33=\"Nej\"),\"Negativ\",IF(AND('Steg 2 Frågor kring vattenmiljö'!D31=\"Nej\",'Steg 2 Frågor kring vattenmiljö'!D32=\"Ja\",'Steg 2 Frågor kring vattenmiljö'!D33=\"Ja\"),\"Positiv\",IF(AND('Steg 2 Frågor kring vattenmiljö'!D31=\"Nej\",'Steg 2 Frågor kring vattenmiljö'!D32=\"Ja\",'Steg 2 Frågor kring vattenmiljö'!D33=\"Vet ej\"),\"Inte definierad\",IF(AND('Steg 2 Frågor kring vattenmiljö'!D31=\"Nej\",'Steg 2 Frågor kring vattenmiljö'!D32=\"Nej\"),\"Ingen påverkan\",IF(AND('Steg 2 Frågor kring vattenmiljö'!D31=\"Nej\",'Steg 2 Frågor kring vattenmiljö'!D32=\"Vet ej\",'Steg 2 Frågor kring vattenmiljö'!D33=\"Ja\"),\"Ingen påverkan\",IF('Steg 2 Frågor kring vattenmiljö'!D31=\"\",\"-\",IF(AND('Steg 2 Frågor kring vattenmiljö'!D31=\"Vet inte\",'Steg 2 Frågor kring vattenmiljö'!D32=\"Vet inte\"),\"-\",\"Inte definierad\")))))))))","v":"-"},"Tillgång till näringsämnen",{"$f":"IF(D31<>\"\",IF(D31<>\"Vet ej\",IF(D31=\"NEJ\",_xlfn.SWITCH(D33,\"JA\",\"Positiv\",\"NEJ\",\"Ingen påverkan\",\"-\",\"Vet ej\",\"-\",\"\",\"-\"),\"Positiv\"),\"Inte definierad\"),\"-\")","v":"-"},{"$f":"IF(AND(D31=\"NEJ\",D32=\"Ja\",D33<>\"Vet inte\"),(_xlfn.SWITCH(E32,\"Stor\",\"Stor\",\"Måttlig\",\"Måttlig\",\"Liten\",\"Liten\"),IF(D31=\"Ja\",(_xlfn.SWITCH(E31,\"Stor\",\"Stor\",\"Måttlig\",\"Måttlig\",\"Liten\",\"Liten\")),\"-\")))","v":false},null,{"$f":"IF(D31<>\"\",IF(D31<>\"Vet ej\",IF(D31=\"NEJ\",_xlfn.SWITCH(D33,\"JA\",\"Positiv\",\"NEJ\",\"Ingen påverkan\",\"Vet ej\",\"Inte definierad\"),\"Positiv\"),\"Inte definierad\"),\"-\")","v":"-"}]
[null,15,"Kommer projektet att medföra att svämplansyta försvinner?",null,null,null,null,null,null,null,{"$f":"IF(D34=\"NEJ\",(_xlfn.SWITCH(E35,\"Stor\",\"Stor\",\"Måttlig\",\"Måttlig\",\"Liten\",\"Liten\",\"-\")),(_xlfn.SWITCH(E34,\"Stor\",\"Stor\",\"Måttlig\",\"Måttlig\",\"Liten\",\"Liten\",\"-\")))","v":"-"},{"$f":"IF(D34<>\"\",IF(D34<>\"Vet ej\",IF(D34=\"NEJ\",_xlfn.SWITCH(D35,\"JA\",\"Positiv\",\"NEJ\",\"Ingen påverkan\",\"-\",\"Vet ej\",\"-\",\"\",\"-\"),\"Negativ\"),\"Inte definierad\"),\"-\")","v":"-"},"Tillgänglighet till stranden och vattenförekomsten",null,"=IF(D31<>\"\";IF(D31<>\"Vet ej\";IF(D31=\"JA\";SWITCH(D33;\"JA\";\"Negativ\";\"Nej\";\"Positiv\";\"Vet ej\";\"Negativ\");IF(AND(D31=\"NEJ\";D32=\"JA\";SWITCH(D33;\"ja\";\"Positiv\";\"NEJ\";\"Ingen påverkan\";\"Vet ej\";\"Inte definierad\"));\"\"))))",null,{"$f":"IF(D31=\"Ja\",_xlfn.SWITCH(E31,\"Stor\",\"Stor\",\"Måttlig\",\"Måttlig\",\"Liten\",\"Liten\"),IF(D32=\"Ja\",_xlfn.SWITCH(E32,\"Stor\",\"Stor\",\"Måttlig\",\"Måttlig\",\"Liten\",\"Liten\"),IF(D33=\"Ja\",_xlfn.SWITCH(E33,\"Stor\",\"Stor\",\"Måttlig\",\"Måttlig\",\"Liten\",\"Liten\"),\"-\")))","v":"-"}]
[null,16,"Kommer projektet restaurera eller återskapa svämplanyta?",null,null,null,null,null,null,null,{"$f":"IF(D36=\"NEJ\",(_xlfn.SWITCH(E37,\"Stor\",\"Stor\",\"Måttlig\",\"Måttlig\",\"Liten\",\"Liten\",\"-\")),(_xlfn.SWITCH(E36,\"Stor\",\"Stor\",\"Måttlig\",\"Måttlig\",\"Liten\",\"Liten\",\"-\")))","v":"-"},{"$f":"IF(D36<>\"\",IF(D36<>\"Vet ej\",IF(D36=\"NEJ\",_xlfn.SWITCH(D37,\"JA\",\"Positiv\",\"NEJ\",\"Ingen påverkan\",\"-\",\"Vet ej\",\"-\",\"\",\"-\"),\"Negativ\"),\"Inte definierad\"),\"-\")","v":"-"},"Träd i strandzonen",null,{"$f":"IF(D31<>\"\",IF(D31<>\"Vet ej\",IF(D31=\"NEJ\",_xlfn.SWITCH(D32,\"NEJ\",\"Ingen påverkan\"),IF(D32=\"Ja\",_xlfn.SWITCH(D33,\"JA\",\"Positiv\",\"NEJ\",\"Negativ\"),IF(D33=\"VET EJ\",\"Inte definierad\"))),\"-\"),\"-\")","v":"-"},null,{"$f":"IF(D31=\"Ja\",\"Positiv\",IF(AND(D31=\"Nej\",D32=\"Ja\",D33=\"Nej\"),\"Negativ\",IF(AND(D31=\"Nej\",D32=\"Ja\",D33=\"Ja\"),\"Positiv\",IF(AND(D31=\"Nej\",D32=\"Nej\"),\"Negativ\",IF(AND(D31=\"Nej\",D32=\"Ja\",D33=\"Vet inte\"),\"Oförändrad\",IF(D31=\"\",\"\",IF(AND(D31=\"Vet ej\",D32=\"Vet iej\"),\"Ej definierat\",\"\")))))))","v":""}]
[null,17,"Kommer naturliga strandkanter tas i anspråk?",null,null,null,null,null,null,null,{"$f":"IF(D38=\"NEJ\",(_xlfn.SWITCH(E39,\"Stor\",\"Stor\",\"Måttlig\",\"Måttlig\",\"Liten\",\"Liten\",\"-\")),(_xlfn.SWITCH(E38,\"Stor\",\"Stor\",\"Måttlig\",\"Måttlig\",\"Liten\",\"Liten\",\"-\")))","v":"-"},{"$f":"IF(D38<>\"\",IF(D38<>\"Vet ej\",IF(D38=\"NEJ\",_xlfn.SWITCH(D39,\"JA\",\"Positiv\",\"NEJ\",\"Ingen påverkan\",\"-\",\"Vet ej\",\"-\",\"\",\"-\"),\"Negativ\"),\"Inte definierad\"),\"-\")","v":"-"},"Upprätthållande och näringskedjor"]
[null,18,"Kommer naturliga strandkanter restaureras inom projektet?",null,null,null,null,null,null,null,{"$f":"_xlfn.SWITCH(E40,\"Stor\",\"Stor\",\"Måttlig\",\"Måttlig\",\"Liten\",\"Liten\",\"-\")","v":"-"},{"$f":"IF(D40<>\"\",IF(D40<>\"Vet ej\",IF(D40=\"NEJ\",_xlfn.SWITCH(D40,\"JA\",\"Positiv\",\"NEJ\",\"Ingen påverkan\",\"-\",\"Vet ej\",\"-\",\"\",\"-\"),\"Negativ\"),\"Inte definierad\"),\"-\")","v":"-"},"Vattentemperatur"]
[null,19,"Kommer aktiviteter som påverkar vattnets botten att genomföras?                       Exemeplvis muddring eller rensning.",null,null,null,null,null,null,null,{"$f":"IF(D41=\"NEJ\",(_xlfn.SWITCH(E42,\"Stor\",\"Stor\",\"Måttlig\",\"Måttlig\",\"Liten\",\"Liten\",\"-\")),(_xlfn.SWITCH(E41,\"Stor\",\"Stor\",\"Måttlig\",\"Måttlig\",\"Liten\",\"Liten\",\"-\")))","v":"-"},{"$f":"IF(D41<>\"\",IF(D41<>\"Vet ej\",IF(D41=\"NEJ\",_xlfn.SWITCH(D42,\"JA\",\"Positiv\",\"NEJ\",\"Ingen påverkan\",\"-\",\"Vet ej\",\"-\",\"\",\"-\"),\"Negativ\"),\"Inte definierad\"),\"-\")","v":"-"},"Visuellt ostörd miljö"]
[null,20,"Kommer projektet restaurera påverkade bottnar?                                                    Exempelvis återskapa ett för vattnet naturligt bottensubstrat."]
[null,21,"Kommer projektet att bidra till att den naturliga variationen i vattenflödet minskar? "]
[null,22,"Kommer projektet att bidra till att den naturliga variationen i vattenflödet ökar? ",null,null,null,null,null,null,null,null,{"$f":"IF(AND('Steg 2 Frågor kring vattenmiljö'!D31=\"Ja\",'Steg 2 Frågor kring vattenmiljö'!D32=\"nej\",'Steg 2 Frågor kring vattenmiljö'!D33=\"nej\"),\"Positiv\",IF(AND('Steg 2 Frågor kring vattenmiljö'!D31=\"Ja\",'Steg 2 Frågor kring vattenmiljö'!D32=\"nej\"),\"Negativ\",IF(AND('Steg 2 Frågor kring vattenmiljö'!D31=\"Nej\",'Steg 2 Frågor kring vattenmiljö'!D32=\"Ja\",'Steg 2 Frågor kring vattenmiljö'!D33=\"Nej\"),\"Negativ\",IF(AND('Steg 2 Frågor kring vattenmiljö'!D31=\"Nej\",'Steg 2 Frågor kring vattenmiljö'!D32=\"Ja\",'Steg 2 Frågor kring vattenmiljö'!D33=\"Ja\"),\"Positiv\",IF(AND('Steg 2 Frågor kring vattenmiljö'!D31=\"Nej\",'Steg 2 Frågor kring vattenmiljö'!D32=\"Ja\",'Steg 2 Frågor kring vattenmiljö'!D33=\"Vet ej\"),\"Ingen påverkan\",IF(AND('Steg 2 Frågor kring vattenmiljö'!D31=\"Nej\",'Steg 2 Frågor kring vattenmiljö'!D32=\"Nej\"),\"Ingen påverkan\",IF(AND('Steg 2 Frågor kring vattenmiljö'!D31=\"Nej\",'Steg 2 Frågor kring vattenmiljö'!D32=\"Vet ej\",'Steg 2 Frågor kring vattenmiljö'!D33=\"Vet ej\"),\"Inte definierad\",IF('Steg 2 Frågor kring vattenmiljö'!D31=\"\",\"\",IF(AND('Steg 2 Frågor kring vattenmiljö'!D31=\"Vet inte\",'Steg 2 Frågor kring vattenmiljö'!D32=\"Vet inte\"),\"Inte definierad\",\"Inte definierad\")))))))))","v":""}]
[null,23,"Kommer projektet att öka eller sänka vattnets pH-värde?",null,null,null,{"$f":"IF(AND('Steg 2 Frågor kring vattenmiljö'!D31=\"Ja\",'Steg 2 Frågor kring vattenmiljö'!D32=\"nej\",'Steg 2 Frågor kring vattenmiljö'!D33=\"nej\"),\"Positiv\",IF(AND('Steg 2 Frågor kring vattenmiljö'!D31=\"Ja\",'Steg 2 Frågor kring vattenmiljö'!D32=\"nej\"),\"Negativ\",IF(AND('Steg 2 Frågor kring vattenmiljö'!D31=\"Nej\",'Steg 2 Frågor kring vattenmiljö'!D32=\"Ja\",'Steg 2 Frågor kring vattenmiljö'!D33=\"Nej\"),\"Negativ\",IF(AND('Steg 2 Frågor kring vattenmiljö'!D31=\"Nej\",'Steg 2 Frågor kring vattenmiljö'!D32=\"Ja\",'Steg 2 Frågor kring vattenmiljö'!D33=\"Ja\"),\"Positiv\",IF(AND('Steg 2 Frågor kring vattenmiljö'!D31=\"Nej\",'Steg 2 Frågor kring vattenmiljö'!D32=\"Ja\",'Steg 2 Frågor kring vattenmiljö'!D33=\"Vet ej\"),\"Ingen påverkan\",IF(AND('Steg 2 Frågor kring vattenmiljö'!D31=\"Nej\",'Steg 2 Frågor kring vattenmiljö'!D32=\"Nej\"),\"Ingen påverkan\",IF(AND('Steg 2 Frågor kring vattenmiljö'!D31=\"Nej\",'Steg 2 Frågor kring vattenmiljö'!D32=\"Vet ej\",'Steg 2 Frågor kring vattenmiljö'!D33=\"Vet ej\"),\"Inte definierad\",IF('Steg 2 Frågor kring vattenmiljö'!D31=\"\",\"\",IF(AND('Steg 2 Frågor kring vattenmiljö'!D31=\"Vet inte\",'Steg 2 Frågor kring vattenmiljö'!D32=\"Vet inte\"),\"Inte definierad\",\"Inte definierad\")))))))))","v":""}]
[null,24,"Kommer projektet innebära att vattenyta kommer övertäckas?"]
[null,25,"Kommer projektet innebära att befintliga strukturer (ej vegetation) som täcker vattenytan tas bort? "]
[null,26,"Kommer projektet att öka tillgången till näringsämnen såsom fosfor och kväve?"]
[null,27,"Kommer projektet att minska tillgången till näringsämnen såsom fosfor och kväve?"]
[null,28,"Lider vattenförekomsten av övergödningsproblematik ?                                                         Se info om aktuellt vattendrag i VISS under punkt \"1. Övergödning och syrefattiga förhållanden\" under rubriken \"Miljöproblem\"."]
[null,29,"Kommer projektet innebära att strand eller vattenförekomst delvis eller helt avskärmas eller privatiseras?"]
[null,30,"Kommer projektet bidra till att gynna framkomligheten för allmänheten till strand eller vattenförekomst?"]
[null,31,"Kommer projektet markant minska antalet träd i strandzonen?"]
[null,32,"Kommer projektet markant öka antalet träd i strandzonen?"]
[null,33,"Kommer projektet innebära ökat uttag av en eller flera av ekosystemets inhemska arter? Ökat uttag kan exempelvis ske genom sport- eller konventionellt fiske eller genom infångning/upptag av arter för bioenergi, även utsläpp av ämnen på påverkar överlevand hos arter påverkar denna förutsättning. "]
[null,34,"Kommer projektet förbättra förustättningarna för en eller flera av ekosystemets inhemska arter?                                                                                                                                           Förbättring kan exempelvis ske genom restaurering av artens livsmiljö eller minskat uttag av arten. "]
[null,35,"Kommer projektet att öka eller sänka vattentemperaturen?"]
[null,36,"Kommer projeket innebära att nya anläggningar, byggnader eller ljuskällor upprättas? Med ljuskällor syftas på gatubelysning, tomtbelysning eller punktbelysning från exempelvis master och antenner. "]
[null,37,"Kommer projektet medföra att anläggningar, byggnader eller befintliga ljuskällor som påverkar vy och utsikt försvinner?"]

{"sheet":"Steg 3 Frågor kring landmiljö","index":4,"n_rows":51,"n_cols":21,"rows_kept":51,"cut":false,"hidden":false,"merged":[[1,1,1,2],[2,1,2,2]]}
[]
[null,"Frågeformulär för landmiljöer",null,null,null,null,null,null,null,null,null,null,null,null,null,null,null,null,null,"Val","Omfattning"]
[null,"När du fyller i formulerat kommer du i vissa fall få följfrågor. Svarar du \"nej\" på en huvudfråga kommer du alltid få en följdfråga om åtgärder kommer vidtas för att förbättra förutsättningarna för ekosystemtjänsterna. Om du har svårt att bedöma en fråga och vill konsultera andra personer i din organisation, ange \"vet inte\" och återkom senare till denna fråga. Försök att alltid bedöma alla frågor eftersom det ger ett mer tillförligt resultat. Lycka till !",null,null,null,null,null,null,null,null,null,null,null,null,null,null,null,null,null,"JA","LITEN"]
[null,null,null,null,null,null,null,null,null,null,null,null,null,null,null,null,null,null,null,"NEJ","MÅTTLIG"]
[null,"Nr.","Frågor","JA/NEJ","Omfattning","Noteringar",null,null,null,null,"Omfattning","JA/NEJ","Förutsättning",null,null,null,null,null,null,"VET EJ","STOR"]
[null,1,"Kommer projektet att påverka fornlämningar eller kulturlämningar så att de inte kan bevaras?",null,null,null,null,null,null,null,{"$f":"IF(D6=\"NEJ\",(_xlfn.SWITCH(E7,\"Stor\",\"Stor\",\"Måttlig\",\"Måttlig\",\"Liten\",\"Liten\",\"-\")),(_xlfn.SWITCH(E6,\"Stor\",\"Stor\",\"Måttlig\",\"Måttlig\",\"Liten\",\"Liten\",\"-\")))","v":"-"},{"$f":"IF(D6<>\"\",IF(D6<>\"Vet ej\",IF(D6=\"NEJ\",_xlfn.SWITCH(D7,\"JA\",\"Positiv\",\"NEJ\",\"Ingen påverkan\",\"Vet ej\",\"Inte definierad\",\"\",\"-\"),\"Negativ\"),\"Inte definierad\"),\"-\")","v":"-"},"Bevarande av fornlämning eller kulturlämning."]
[null,2,"Kommer projektet bidra till att upplevelsen av fornlämning eller kulturlämning förstärks?",null,null,null,null,null,null,null,{"$f":"IF(D8=\"NEJ\",(_xlfn.SWITCH(E9,\"Stor\",\"Stor\",\"Måttlig\",\"Måttlig\",\"Liten\",\"Liten\",\"-\")),(_xlfn.SWITCH(E8,\"Stor\",\"Stor\",\"Måttlig\",\"Måttlig\",\"Liten\",\"Liten\",\"-\")))","v":"-"},{"$f":"IF(D8<>\"\",IF(D8<>\"Vet ej\",IF(D8=\"NEJ\",_xlfn.SWITCH(D9,\"JA\",\"Positiv\",\"NEJ\",\"Ingen påverkan\",\"Vet ej\",\"Inte definierad\",\"\",\"-\"),\"Negativ\"),\"Inte definierad\"),\"-\")","v":"-"},"Bevarande av konserverande miljö"]
["x",3,"Kommer projektet innebära att grundvattennivån sänks? ",null,null,null,null,null,null,null,{"$f":"IF(D10=\"NEJ\",(_xlfn.SWITCH(E11,\"Stor\",\"Stor\",\"Måttlig\",\"Måttlig\",\"Liten\",\"Liten\",\"-\")),(_xlfn.SWITCH(E10,\"Stor\",\"Stor\",\"Måttlig\",\"Måttlig\",\"Liten\",\"Liten\",\"-\")))","v":"-"},{"$f":"IF(D10<>\"\",IF(D10<>\"Vet ej\",IF(D10=\"NEJ\",_xlfn.SWITCH(D11,\"JA\",\"Positiv\",\"NEJ\",\"Ingen påverkan\",\"Vet ej\",\"Inte definierad\",\"\",\"-\"),\"Negativ\"),\"Inte definierad\"),\"-\")","v":"-"},"Bevarande av lövträd och lövridåer framför barrskog"]
[null,4,"Kommer åtgärderna inom projektet höja grundvattennivån?                                           Exempelvis genom återställning av våtmarker eller igenläggning av diken.",null,null,null,null,null,null,null,{"$f":"IF(D12=\"NEJ\",(_xlfn.SWITCH(E13,\"Stor\",\"Stor\",\"Måttlig\",\"Måttlig\",\"Liten\",\"Liten\",\"-\")),(_xlfn.SWITCH(E12,\"Stor\",\"Stor\",\"Måttlig\",\"Måttlig\",\"Liten\",\"Liten\",\"-\")))","v":"-"},{"$f":"IF(D12<>\"\",IF(D12<>\"Vet ej\",IF(D12=\"NEJ\",_xlfn.SWITCH(D13,\"JA\",\"Positiv\",\"NEJ\",\"Ingen påverkan\",\"Vet ej\",\"Inte definierad\",\"\",\"-\"),\"Negativ\"),\"Inte definierad\"),\"-\")","v":"-"},"Bevarande av närmiljö och omgivning till lämning"]
[null,5,"Kommer lövträd i kantzoner till barrskog avverkas och inte ersättas?",null,null,null,null,null,null,null,{"$f":"IF(D14=\"NEJ\",(_xlfn.SWITCH(E15,\"Stor\",\"Stor\",\"Måttlig\",\"Måttlig\",\"Liten\",\"Liten\",\"-\")),(_xlfn.SWITCH(E14,\"Stor\",\"Stor\",\"Måttlig\",\"Måttlig\",\"Liten\",\"Liten\",\"-\")))","v":"-"},{"$f":"IF(D14<>\"\",IF(D14<>\"Vet ej\",IF(D14=\"NEJ\",_xlfn.SWITCH(D15,\"JA\",\"Positiv\",\"NEJ\",\"Ingen påverkan\",\"Vet ej\",\"Inte definierad\",\"\",\"-\"),\"Negativ\"),\"Inte definierad\"),\"-\")","v":"-"},"Bevarande av skyddade, rödlistade och hotade arter"]
[null,6,"Kommer lövträd planteras eller låtas tillväxa i kantzoner till barrskog?",null,null,null,null,null,null,null,{"$f":"IF(D16=\"NEJ\",(_xlfn.SWITCH(E17,\"Stor\",\"Stor\",\"Måttlig\",\"Måttlig\",\"Liten\",\"Liten\",\"-\")),(_xlfn.SWITCH(E16,\"Stor\",\"Stor\",\"Måttlig\",\"Måttlig\",\"Liten\",\"Liten\",\"-\")))","v":"-"},{"$f":"IF(D16<>\"\",IF(D16<>\"Vet ej\",IF(D16=\"NEJ\",_xlfn.SWITCH(D17,\"JA\",\"Positiv\",\"NEJ\",\"Ingen påverkan\",\"Vet ej\",\"Inte definierad\",\"\",\"-\"),\"Negativ\"),\"Inte definierad\"),\"-\")","v":"-"},"Bevarande av äldre skog"]
[null,7,"Kommer projektet att påverka eller ta i anspråk närmiljön till en forn-eller kulturlämning?",null,null,null,null,null,null,null,{"$f":"IF(D18=\"NEJ\",(_xlfn.SWITCH(E19,\"Stor\",\"Stor\",\"Måttlig\",\"Måttlig\",\"Liten\",\"Liten\",\"-\")),(_xlfn.SWITCH(E18,\"Stor\",\"Stor\",\"Måttlig\",\"Måttlig\",\"Liten\",\"Liten\",\"-\")))","v":"-"},{"$f":"IF(D18<>\"\",IF(D18<>\"Vet ej\",IF(D18=\"NEJ\",_xlfn.SWITCH(D19,\"JA\",\"Positiv\",\"NEJ\",\"Ingen påverkan\",\"Vet ej\",\"Inte definierad\",\"\",\"-\"),\"Negativ\"),\"Inte definierad\"),\"-\")","v":"-"},"Bostadsnära naturområden"]
[null,8,"Kommer projektet medföra att tillgängligheten till en lämning förstärks eller att den omges av en mer, för lämningen, skyddande miljö?",null,null,null,null,null,null,null,{"$f":"IF(D20=\"NEJ\",(_xlfn.SWITCH(E21,\"Stor\",\"Stor\",\"Måttlig\",\"Måttlig\",\"Liten\",\"Liten\",\"-\")),(_xlfn.SWITCH(E20,\"Stor\",\"Stor\",\"Måttlig\",\"Måttlig\",\"Liten\",\"Liten\",\"-\")))","v":"-"},{"$f":"IF(D20<>\"\",IF(D20<>\"Vet ej\",IF(D20=\"NEJ\",_xlfn.SWITCH(D21,\"JA\",\"Positiv\",\"NEJ\",\"Ingen påverkan\",\"Vet ej\",\"Inte definierad\",\"\",\"-\"),\"Negativ\"),\"Inte definierad\"),\"-\")","v":"-"},"Bullerfri miljö"]
[null,9,"Kommer projektet påverka födosöksområden eller reproduktionsområden för skyddade, rödlistade eller hotade arter?",null,null,null,null,null,null,null,{"$f":"IF(D28=\"NEJ\",(_xlfn.SWITCH(E29,\"Stor\",\"Stor\",\"Måttlig\",\"Måttlig\",\"Liten\",\"Liten\",\"-\")),(_xlfn.SWITCH(E28,\"Stor\",\"Stor\",\"Måttlig\",\"Måttlig\",\"Liten\",\"Liten\",\"-\")))","v":"-"},{"$f":"IF(D28<>\"\",IF(D28<>\"Vet ej\",IF(D28=\"NEJ\",_xlfn.SWITCH(D29,\"JA\",\"Positiv\",\"NEJ\",\"Ingen påverkan\",\"Vet ej\",\"Inte definierad\",\"\",\"-\"),\"Negativ\"),\"Inte definierad\"),\"-\")","v":"-"},"Frånvaro av invasiva arter"]
[null,10,"Kommer projektet förbättra förutsättningarna för skyddade, rödlistade eller hotade arter? Förbättring kan exemeplvis ske genom restaurering av artens livsmiljö, skapande av gröna korridorer som förenklar för arten att sprida sig eller minskat uttag av arten. ",null,null,null,null,null,null,null,{"$f":"IF(D24=\"NEJ\",(_xlfn.SWITCH(E25,\"Stor\",\"Stor\",\"Måttlig\",\"Måttlig\",\"Liten\",\"Liten\",\"-\")),(_xlfn.SWITCH(E24,\"Stor\",\"Stor\",\"Måttlig\",\"Måttlig\",\"Liten\",\"Liten\",\"-\")))","v":"-"},{"$f":"IF(D24<>\"\",IF(D24<>\"Vet ej\",IF(D24=\"NEJ\",_xlfn.SWITCH(D25,\"JA\",\"Positiv\",\"NEJ\",\"Ingen påverkan\",\"Vet ej\",\"Inte definierad\",\"\",\"-\"),\"Negativ\"),\"Inte definierad\"),\"-\")","v":"-"},"Förekomst av jord och markvegetation "]
[null,11,"Kommer projektet medföra att äldre skog avverkas, dikas ut eller bränns?                          Även en naturvårdsbrännning är i detta specifika avseende negativt. ",null,null,null,null,null,null,null,{"$f":"IF(D$22=\"NEJ\",(_xlfn.SWITCH(E$23,\"Stor\",\"Stor\",\"Måttlig\",\"Måttlig\",\"Liten\",\"Liten\",\"-\")),(_xlfn.SWITCH(E$22,\"Stor\",\"Stor\",\"Måttlig\",\"Måttlig\",\"Liten\",\"Liten\",\"-\")))","v":"-"},{"$f":"IF(D$22<>\"\",IF(D$22<>\"Vet ej\",IF(D$22=\"NEJ\",_xlfn.SWITCH(D$23,\"JA\",\"Positiv\",\"NEJ\",\"Ingen påverkan\",\"Vet ej\",\"Inte definierad\",\"\",\"-\"),\"Negativ\"),\"Inte definierad\"),\"-\")","v":"-"},"Förekomst av, samt frånvaro av dränerande strukturer (diken) i våtmarker, sumpskogar, tjärn och mossar."]
[null,12,"Kommer projektet medföra att äldre skog bevaras eller på sikt skapas genom skydd/förvaltning av yngre skogsbestånd så dessa tillåts bli över 100 år gamla?",null,null,null,null,null,null,null,{"$f":"IF(D26=\"NEJ\",(_xlfn.SWITCH(E27,\"Stor\",\"Stor\",\"Måttlig\",\"Måttlig\",\"Liten\",\"Liten\",\"-\")),(_xlfn.SWITCH(E26,\"Stor\",\"Stor\",\"Måttlig\",\"Måttlig\",\"Liten\",\"Liten\",\"-\")))","v":"-"},{"$f":"IF(D26<>\"\",IF(D26<>\"Vet ej\",IF(D26=\"NEJ\",_xlfn.SWITCH(D27,\"JA\",\"Positiv\",\"NEJ\",\"Ingen påverkan\",\"Vet ej\",\"Inte definierad\",\"\",\"-\"),\"Negativ\"),\"Inte definierad\"),\"-\")","v":"-"},"Förna"]
[null,13,"Kommer projektet medföra att ytan på bostadsnära naturområden minskar eller försvinner (det vill säga naturområden som ligger inom 300 meter från bebyggelse inom städer och orter)?",null,null,null,null,null,null,null,{"$f":"IF(D30=\"NEJ\",(_xlfn.SWITCH(E31,\"Stor\",\"Stor\",\"Måttlig\",\"Måttlig\",\"Liten\",\"Liten\",\"-\")),(_xlfn.SWITCH(E30,\"Stor\",\"Stor\",\"Måttlig\",\"Måttlig\",\"Liten\",\"Liten\",\"-\")))","v":"-"},{"$f":"IF(D30<>\"\",IF(D30<>\"Vet ej\",IF(D30=\"NEJ\",_xlfn.SWITCH(D31,\"JA\",\"Positiv\",\"NEJ\",\"Ingen påverkan\",\"Vet ej\",\"Inte definierad\",\"\",\"-\"),\"Negativ\"),\"Inte definierad\"),\"-\")","v":"-"},"Solljus"]
[null,14,"Kommer projektet medföra att bostadsnära naturområden skapas eller att befintliga områden restaureras?",null,null,null,null,null,null,null,{"$f":"IF(D32=\"NEJ\",(_xlfn.SWITCH(E33,\"Stor\",\"Stor\",\"Måttlig\",\"Måttlig\",\"Liten\",\"Liten\",\"-\")),(_xlfn.SWITCH(E32,\"Stor\",\"Stor\",\"Måttlig\",\"Måttlig\",\"Liten\",\"Liten\",\"-\")))","v":"-"},{"$f":"IF(D32<>\"\",IF(D32<>\"Vet ej\",IF(D32=\"NEJ\",_xlfn.SWITCH(D33,\"JA\",\"Positiv\",\"NEJ\",\"Ingen påverkan\",\"Vet ej\",\"Inte definierad\",\"\",\"-\"),\"Negativ\"),\"Inte definierad\"),\"-\")","v":"-"},"Tillgång till mångfald av biotoper"]
[null,15,"Kommer projektet medföra återkommande eller bestående bullrande aktiviteter, exempelvis från ökad fordonstrafik, anläggning eller avverkade trädridåer?",null,null,null,null,null,null,null,{"$f":"IF(D34=\"NEJ\",(_xlfn.SWITCH(E35,\"Stor\",\"Stor\",\"Måttlig\",\"Måttlig\",\"Liten\",\"Liten\",\"-\")),(_xlfn.SWITCH(E34,\"Stor\",\"Stor\",\"Måttlig\",\"Måttlig\",\"Liten\",\"Liten\",\"-\")))","v":"-"},{"$f":"IF(D34<>\"\",IF(D34<>\"Vet ej\",IF(D34=\"NEJ\",_xlfn.SWITCH(D35,\"JA\",\"Positiv\",\"NEJ\",\"Ingen påverkan\",\"Vet ej\",\"Inte definierad\",\"\",\"-\"),\"Negativ\"),\"Inte definierad\"),\"-\")","v":"-"},"Tillgång till näringsämnen"]
[null,16,"Kommer projektet avlägsna källor till buller?",null,null,null,null,null,null,null,{"$f":"IF(D$22=\"NEJ\",(_xlfn.SWITCH(E$23,\"Stor\",\"Stor\",\"Måttlig\",\"Måttlig\",\"Liten\",\"Liten\",\"-\")),(_xlfn.SWITCH(E$22,\"Stor\",\"Stor\",\"Måttlig\",\"Måttlig\",\"Liten\",\"Liten\",\"-\")))","v":"-"},{"$f":"IF(D$22<>\"\",IF(D$22<>\"Vet ej\",IF(D$22=\"NEJ\",_xlfn.SWITCH(D$23,\"JA\",\"Positiv\",\"NEJ\",\"Ingen påverkan\",\"Vet ej\",\"Inte definierad\",\"\",\"-\"),\"Negativ\"),\"Inte definierad\"),\"-\")","v":"-"},"Tillgång till våtmarker och ej uträtade vattendrag"]
[null,17,"Kommer projektet medföra att våtmarker, mossar, tjärn eller sumpskogar dräneras, minskar i areal eller tas bort?",null,null,null,null,null,null,null,{"$f":"IF(D38=\"NEJ\",(_xlfn.SWITCH(E39,\"Stor\",\"Stor\",\"Måttlig\",\"Måttlig\",\"Liten\",\"Liten\",\"-\")),(_xlfn.SWITCH(E38,\"Stor\",\"Stor\",\"Måttlig\",\"Måttlig\",\"Liten\",\"Liten\",\"-\")))","v":"-"},{"$f":"IF(D38<>\"\",IF(D38<>\"Vet ej\",IF(D38=\"NEJ\",_xlfn.SWITCH(D39,\"JA\",\"Positiv\",\"NEJ\",\"Ingen påverkan\",\"Vet ej\",\"Inte definierad\",\"\",\"-\"),\"Negativ\"),\"Inte definierad\"),\"-\")","v":"-"},"Tillgänglighet till naturområden"]
[null,18,"Kommer projektet medföra att dränerande strukturer för våtmarker, mossar, tjärn eller sumpskogar läggs igen eller kommer våtmarksområden återskapas?",null,null,null,null,null,null,null,{"$f":"IF(D36=\"NEJ\",(_xlfn.SWITCH(E37,\"Stor\",\"Stor\",\"Måttlig\",\"Måttlig\",\"Liten\",\"Liten\",\"-\")),(_xlfn.SWITCH(E36,\"Stor\",\"Stor\",\"Måttlig\",\"Måttlig\",\"Liten\",\"Liten\",\"-\")))","v":"-"},{"$f":"IF(D36<>\"\",IF(D36<>\"Vet ej\",IF(D36=\"NEJ\",_xlfn.SWITCH(D37,\"JA\",\"Positiv\",\"NEJ\",\"Ingen påverkan\",\"Vet ej\",\"Inte definierad\",\"\",\"-\"),\"Negativ\"),\"Inte definierad\"),\"-\")","v":"-"},"Tillgång till växttillgängligt vatten"]
[null,19,"Kommer projektet leda till att naturområden ersätts med hårdgjorda ytor? ",null,null,null,null,null,null,null,{"$f":"IF(D40=\"NEJ\",(_xlfn.SWITCH(E41,\"Stor\",\"Stor\",\"Måttlig\",\"Måttlig\",\"Liten\",\"Liten\",\"-\")),(_xlfn.SWITCH(E40,\"Stor\",\"Stor\",\"Måttlig\",\"Måttlig\",\"Liten\",\"Liten\",\"-\")))","v":"-"},{"$f":"IF(D40<>\"\",IF(D40<>\"Vet ej\",IF(D40=\"NEJ\",_xlfn.SWITCH(D41,\"JA\",\"Positiv\",\"NEJ\",\"Ingen påverkan\",\"Vet ej\",\"Inte definierad\",\"\",\"-\"),\"Negativ\"),\"Inte definierad\"),\"-\")","v":"-"},"Upprätthållande av hävd för biotoper där så är skäligt."]
[null,20,"Kommer projektet leda till att befintliga områden med hårdgjord mark återskapas till naturområden?",null,null,null,null,null,null,null,{"$f":"IF(D42=\"NEJ\",(_xlfn.SWITCH(E43,\"Stor\",\"Stor\",\"Måttlig\",\"Måttlig\",\"Liten\",\"Liten\",\"-\")),(_xlfn.SWITCH(E42,\"Stor\",\"Stor\",\"Måttlig\",\"Måttlig\",\"Liten\",\"Liten\",\"-\")))","v":"-"},{"$f":"IF(D42<>\"\",IF(D42<>\"Vet ej\",IF(D42=\"NEJ\",_xlfn.SWITCH(D43,\"JA\",\"Positiv\",\"NEJ\",\"Ingen påverkan\",\"Vet ej\",\"Inte definierad\",\"\",\"-\"),\"Negativ\"),\"Inte definierad\"),\"-\")","v":"-"},"Upprätthållande av näringskedjor"]
[null,21,"Kommer projektet röja träd och buskar på naturmark?",null,null,null,null,null,null,null,{"$f":"IF(D44=\"NEJ\",(_xlfn.SWITCH(E45,\"Stor\",\"Stor\",\"Måttlig\",\"Måttlig\",\"Liten\",\"Liten\",\"-\")),(_xlfn.SWITCH(E44,\"Stor\",\"Stor\",\"Måttlig\",\"Måttlig\",\"Liten\",\"Liten\",\"-\")))","v":"-"},{"$f":"IF(D44<>\"\",IF(D44<>\"Vet ej\",IF(D44=\"NEJ\",_xlfn.SWITCH(D45,\"JA\",\"Positiv\",\"NEJ\",\"Ingen påverkan\",\"Vet ej\",\"Inte definierad\",\"\",\"-\"),\"Negativ\"),\"Inte definierad\"),\"-\")","v":"-"},"Upprätthållande av pollinering och fröspridning"]
[null,22,"Kommer projektet plantera träd eller buskar på naturmark där dessa strukturer idag är sparsamma?",null,null,null,null,null,null,null,{"$f":"IF(D46=\"NEJ\",(_xlfn.SWITCH(E47,\"Stor\",\"Stor\",\"Måttlig\",\"Måttlig\",\"Liten\",\"Liten\",\"-\")),(_xlfn.SWITCH(E46,\"Stor\",\"Stor\",\"Måttlig\",\"Måttlig\",\"Liten\",\"Liten\",\"-\")))","v":"-"},{"$f":"IF(D46<>\"\",IF(D46<>\"Vet ej\",IF(D46=\"NEJ\",_xlfn.SWITCH(D47,\"JA\",\"Positiv\",\"NEJ\",\"Ingen påverkan\",\"Vet ej\",\"Inte definierad\",\"\",\"-\"),\"Negativ\"),\"Inte definierad\"),\"-\")","v":"-"},"Upprätthållande av spridningsvägar för växter och djur"]
[null,23,"Kommer projektet plantera ut främmande arter och/eller underlätta för främmande arter att sprida sig eller tillväxa? ",null,null,null,null,null,null,null,{"$f":"IF(D48=\"NEJ\",(_xlfn.SWITCH(E49,\"Stor\",\"Stor\",\"Måttlig\",\"Måttlig\",\"Liten\",\"Liten\",\"-\")),(_xlfn.SWITCH(E48,\"Stor\",\"Stor\",\"Måttlig\",\"Måttlig\",\"Liten\",\"Liten\",\"-\")))","v":"-"},{"$f":"IF(D48<>\"\",IF(D48<>\"Vet ej\",IF(D48=\"NEJ\",_xlfn.SWITCH(D49,\"JA\",\"Positiv\",\"NEJ\",\"Ingen påverkan\",\"Vet ej\",\"Inte definierad\",\"\",\"-\"),\"Negativ\"),\"Inte definierad\"),\"-\")","v":"-"},"Vegetation, främst träd och buskar."]
[null,24,"Kommer projektet aktivt arbeta för att röja främmande arter från platser där de förekommer? Röjningsarbetet ska ske med för arten rekommenderade metoder. ",null,null,null,null,null,null,null,{"$f":"IF(D50=\"NEJ\",(_xlfn.SWITCH(E51,\"Stor\",\"Stor\",\"Måttlig\",\"Måttlig\",\"Liten\",\"Liten\",\"-\")),(_xlfn.SWITCH(E50,\"Stor\",\"Stor\",\"Måttlig\",\"Måttlig\",\"Liten\",\"Liten\",\"-\")))","v":"-"},{"$f":"IF(D50<>\"\",IF(D50<>\"Vet ej\",IF(D50=\"NEJ\",_xlfn.SWITCH(D51,\"JA\",\"Positiv\",\"NEJ\",\"Ingen påverkan\",\"Vet ej\",\"Inte definierad\",\"\",\"-\"),\"Negativ\"),\"Inte definierad\"),\"-\")","v":"-"},"Visuellt ostörd miljö"]
[null,25,"Kommer naturområden som starkt gynnas av solljus och värme beskuggas från nya byggnader eller anläggningar?"]
[null,26,"Kommer beskuggande anläggningar eller vegetation tas bort intill naturområden som hyser naturvärden som starkt gynnas av solljus och värme?"]
[null,27,"Kommer naturområden minska i omfattning eller helt tas bort?"]
[null,28,"Kommer naturområden restaureras eller återskapas?"]
[null,29,"Kommer projektet att öka tillgången till näringsämnen såsom fosfor och kväve?"]
[null,30,"Kommer projektet att minska tillgången till näringsämnen såsom fosfor och kväve?"]
["X",31,"Kommer projektet att påverka avvattningen av området eller sänka grundvattennivån?         Detta kan ske genom exempelvis anläggning av dränerande strukturer som diken och tunnlar."]
["X",32,"Kommer projektet ta bort dränerande strukturer som återupprättar vattenbalansen i omgivande marker?"]
[null,33,"Kommer projektet försvåra möjliggheten för personer att nå ett naturområde med turismverksamhet eller rekreationverksamhet (exempelvis vandringsleder, naturcentrumm, badplaster)?"]
[null,34,"Kommer projektet anlägga strukturer som förenklar tillgängligheten till naturområden, exempelvis parkeringsplatser, cykelparkering, bussförbindelser, cykelvägar, informationsskyltar och kartor?"]
[null,35,"Kommer projektet medföra att bete upphör eller försvåras på befintliga hävdmarker? "]
[null,36,"Kommer projektet resaturera igenvuxna ängs- och betesmarker och/eller återinföra hävd på betesmarker som riskerar att växa igen? ",null,null," "]
[null,37,"Kommer projektet innebära ökat uttag av en eller flera av ekosystemets inhemska arter?      Ökat uttag kan exempelvis ske genom jakt eller insamling individer inom någon art för bioenergi.  "]
[null,38,"Kommer projektet förbättra förustättningarna för en eller flera av ekosystemets inhemska arter?      Förbättring kan exempelvis ske genom restaurering av artens livsmiljö eller minskat uttag av arten. "]
[null,39,"Kommer projektet sprida bekämpningsmedel som skadar eller dödar svamp, mögel eller insekter (exempelvis bin, humlor, flugor och fjärilar)?"]
[null,40,"Kommer projektet medföra att befintliga källa/spridning av bekämpningsmedel tas bort/upphör?"]
[null,41,"Kommer projektet ta bort så kallade stepping stones för växter och djur? "]
[null,42,"Kommer projektet skapa gröna miljöer/stepping stones i ett övrigt homogent landskap eller inom bebyggt område?"]
[null,43,"Kommer projektet röja större vegetation (buskar och träd) som ej återplanteras?"]
[null,44,"Kommer projektet plantera nya områden med buskar och träd?"]
[null,45,"Kommer projeket innebära att nya anläggningar, byggnader eller ljuskällor upprättas?          Med ljuskällor syftas på gatubelysning, tomtbelysning eller punktbelysning från exempelvis master och antenner. "]
[null,46,"Kommer projektet medföra att anläggningar, byggnader eller befintliga ljuskällor som påverkar vy och utsikt försvinner?"]

{"sheet":"Steg 4 Resultat för vattenmiljö","index":5,"n_rows":161,"n_cols":18,"rows_kept":161,"cut":false,"hidden":false,"merged":[[161,3,161,5],[161,6,161,7],[1,2,1,8],[5,4,5,7],[14,2,18,7],[22,4,22,5],[31,4,31,5],[8,4,8,7],[11,4,11,7],[2,2,2,7],[160,3,160,5],[160,6,160,7],[180,3,180,5],[181,3,181,5],[182,3,182,5],[183,3,183,5],[174,3,174,5],[175,3,175,5],[176,3,176,5],[177,3,177,5],[178,3,178,5],[170,3,170,5],[171,3,171,5],[172,3,172,5],[173,3,173,5],[179,3,179,5],[165,3,165,5],[166,3,166,5],[167,3,167,5],[168,3,168,5],[169,3,169,5],[185,3,185,5],[163,6,163,7],[164,6,164,7],[165,6,165,7],[166,6,166,7],[167,6,167,7],[168,6,168,7],[169,6,169,7],[170,6,170,7],[171,6,171,7],[172,6,172,7],[173,6,173,7],[174,6,174,7],[175,6,175,7],[163,3,163,5],[164,3,164,5],[190,3,190,5],[186,6,186,7],[187,6,187,7],[188,6,188,7],[190,6,190,7],[189,3,189,5],[189,6,189,7],[162,3,162,5],[162,6,162,7],[186,3,186,5],[187,3,187,5],[188,3,188,5],[181,6,181,7],[182,6,182,7],[183,6,183,7],[184,6,184,7],[185,6,185,7],[176,6,176,7],[177,6,177,7],[178,6,178,7],[179,6,179,7],[180,6,180,7],[184,3,184,5]]}
[]
[]
[null,null,"Åtgärder och verksamheter vid strandnära miljöer                                                                                                              Resultat från bedömning av påverkan på vattenanknutna ekosystemtjänster"]
[null,null,"Projektinformation:",null,"Utförare:"]
[null,null,"Projektnamn",null,"Namn på utförare"]
[null,null,{"$f":"IF('Steg 1a Projektinformation'!C7=\"\",\"\",'Steg 1a Projektinformation'!C7)","v":""},null,{"$f":"IF('Steg 1a Projektinformation'!E7:H7=\"\",\"\",'Steg 1a Projektinformation'!E7:H7)","v":""}]
[]
[null,null,"Diarenummer/projektnummer",null,"Organisation/enhet"]
[null,null,{"$f":"IF('Steg 1a Projektinformation'!C10=\"\",\"\",'Steg 1a Projektinformation'!C10)","v":""},null,{"$f":"IF('Steg 1a Projektinformation'!E10=\"\",\"\",'Steg 1a Projektinformation'!E10)","v":""}]
[]
[null,null,"Datum för analys",null,"Typ av vatten"]
[null,null,{"$f":"IF('Steg 1a Projektinformation'!C13=\"\",\"\",'Steg 1a Projektinformation'!C13)","v":""},null,{"$f":"IF('Steg 1a Projektinformation'!E13=\"\",\"\",'Steg 1a Projektinformation'!E13)","v":""}]
[]
[null,null,"Noteringar om projektet:"]
[null,null,{"$f":"IF('Steg 1a Projektinformation'!C16:H16<>\"\",'Steg 1a Projektinformation'!C16:H16,\"\")","v":""}]
[]
[]
[]
[]
[]
[null,null,"Resultat"]
[]
[null,null,"Primärproduktion i vatten",null,null,null,null,null,null,null,null,null,null,null,null,null,"Ekosystemtjänster"]
[1,null,"Sammanvägd bedömning av påverkan",null,{"$f":"IF(COUNTIF(E25:E27,\"Stor\")>=1,\"Stor\",IF(COUNTIF(E25:E27,\"Måttlig\")>=1,\"Måttlig\",IF(COUNTIF(E25:E27,\"Liten\")>=1,\"Liten\",\"\")))","v":""},{"$f":"IF(COUNTIF(F25:F27,\"Negativ\")>=1,\"Negativ\",IF(COUNTIF(F25:F27,\"Positiv\")>=1,\"Positiv\",IF(COUNTIF(F25:F27,\"Ingen påverkan\")>=1,\"Oförändrad\",IF(COUNTIF(F25:F27,\"Oförändrad\")>=1,\"Oförändrad\",IF(COUNTIF(F25:F27,\"Inte definierad\")>=1,\"Inte definierad\",\"\")))))","v":""},null,null,null,null,null,null,null,null,null,null,{"$f":"C23","v":"Primärproduktion i vatten"},{"$f":"N32","v":0}]
[null,null,"Solljus",null,{"$f":"'Steg 2 Frågor kring vattenmiljö'!K18","v":"-"},{"$f":"'Steg 2 Frågor kring vattenmiljö'!L18","v":"-"},null,null,null,null,{"$f":"IF(E25=\"Liten\",1,IF(E25=\"Måttlig\",2,IF(E25=\"Stor\",3,0)))","v":0},{"$f":"IF(F25=\"Negativ\",-1,IF(F25=\"Positiv\",1,0))","v":0},{"$f":"C25","v":"Solljus"},{"$f":"K25*L25","v":0},{"$f":"IF(OR(N25=3,N25=-3),\"Stor\",IF(OR(N25=2,N25=-2),\"Måttlig\",IF(OR(N25=1,N25=-1),\"Liten\",\"Ingen\")))","v":"Ingen"},null,{"$f":"C28","v":"Upprätthållande av biokemiska cykler"},{"$f":"N32","v":0}]
[null,null,"Tillgång till näringsämnen",null,{"$f":"IF(F26=\"Ingen påverkan\",\"-\",'Steg 2 Frågor kring vattenmiljö'!K19)","v":"-"},{"$f":"IF('Steg 2 Frågor kring vattenmiljö'!D33=\"Nej\",'Steg 2 Frågor kring vattenmiljö'!L19,IF('Steg 2 Frågor kring vattenmiljö'!D32=\"Vet ej\",'Steg 2 Frågor kring vattenmiljö'!L19,IF(AND('Steg 2 Frågor kring vattenmiljö'!D32=\"Ja\",'Steg 2 Frågor kring vattenmiljö'!D33=\"Vet ej\"),\"Negativ\",IF('Steg 2 Frågor kring vattenmiljö'!L19=\"Positiv\",\"Negativ\",IF('Steg 2 Frågor kring vattenmiljö'!L19=\"Negativ\",\"Positiv\",\"-\")))))","v":"-"},null,null,null,null,0,0,"Tillgång till näringsämnen",0,"Ingen",null,{"$f":"C32","v":"Bevarande av livsmiljöer"},{"$f":"N46","v":0}]
[null,null,"Upprätthållande av biokemiska cykler",null,{"$f":"IF(E29<>\"\",E29,\"-\")","v":"-"},{"$f":"IF(F29=\"Oförändrad\",\"Ingen påverkan\",IF(F29<>\"\",F29,\"-\"))","v":"-"},null,null,null,null,0,0,"Upprätthållande av biokemiska cykler",0,"Ingen",null,{"$f":"C46","v":"Levande processers nedbrytning av avfall och giftiga ämnen"},{"$f":"N53","v":0}]
[null,null,"Upprätthållande av biokemiska cykler",null,null,null,null,null,null,null,null,null,null,{"$f":"AVERAGE(N25:N27)","v":0},null,null,{"$f":"C53","v":"Minskad övergödning"},{"$f":"N58","v":0}]
[null,null,"Sammanvägd bedömning",null,{"$f":"IF(COUNTIF(E30:E31,\"Stor\")>=1,\"Stor\",IF(COUNTIF(E30:E31,\"Måttlig\")>=1,\"Måttlig\",IF(COUNTIF(E30:E31,\"Liten\")>=1,\"Liten\",\"\")))","v":""},{"$f":"IF(COUNTIF(F30:F31,\"Negativ\")>=1,\"Negativ\",IF(COUNTIF(F30:F31,\"Positiv\")>=1,\"Positiv\",IF(COUNTIF(F30:F31,\"Ingen påverkan\")>=1,\"Oförändrad\",IF(COUNTIF(F30:F31,\"Oförändrad\")>=1,\"Oförändrad\",IF(COUNTIF(F30:F31,\"Inte definierad\")>=1,\"Inte definierad\",\"\")))))","v":""},null,null,null,null,null,null,null,null,null,null,{"$f":"C59","v":"Reglering av vattenflöden och vattenmagasinering"},{"$f":"N65","v":0}]
[null,null,"Naturliga bottnar",null,{"$f":"'Steg 2 Frågor kring vattenmiljö'!K15","v":"-"},{"$f":"'Steg 2 Frågor kring vattenmiljö'!L15","v":"-"},null,null,null,null,0,0,"Naturliga bottnar",0,"Ingen",null,{"$f":"C65","v":"Naturlig luftrening"},{"$f":"N71","v":0}]
[null,null,"Solljus",null,{"$f":"'Steg 2 Frågor kring vattenmiljö'!K18","v":"-"},{"$f":"'Steg 2 Frågor kring vattenmiljö'!L18","v":"-"},null,null,null,null,0,0,"Solljus",0,"Ingen",null,{"$f":"C71","v":"Reglering av atmosfärens kemiska sammansättning (kolbindning)"},{"$f":"N76","v":0}]
[null,null,"Bevarande av livsmiljöer",null,null,null,null,null,null,null,null,null,null,{"$f":"AVERAGE(N30:N31)","v":0},null,null,{"$f":"C76","v":"Livsmedel från vilda och odlade vattenlevande växter och djur"},{"$f":"N82","v":0}]
[2,null,"Sammanvägd bedömning av påverkan",null,{"$f":"IF(COUNTIF(E34:E45,\"Stor\")>=1,\"Stor\",IF(COUNTIF(E34:E45,\"Måttlig\")>=1,\"Måttlig\",IF(COUNTIF(E34:E45,\"Liten\")>=1,\"Liten\",\"\")))","v":""},{"$f":"IF(COUNTIF(F34:F45,\"Negativ\")>=1,\"Negativ\",IF(COUNTIF(F34:F45,\"Positiv\")>=1,\"Positiv\",IF(COUNTIF(F34:F45,\"Ingen påverkan\")>=1,\"Oförändrad\",IF(COUNTIF(F34:F45,\"Oförändrad\")>=1,\"Oförändrad\",IF(COUNTIF(F34:F45,\"Inte definierad\")>=1,\"Inte definierad\",\"\")))))","v":""},null,null,null,null,null,null,null,null,null,null,{"$f":"C82","v":"Råvaror"},{"$f":"N87","v":0}]
[null,null,"Solljus",null,{"$f":"'Steg 2 Frågor kring vattenmiljö'!K18","v":"-"},{"$f":"'Steg 2 Frågor kring vattenmiljö'!L18","v":"-"},null,null,null,null,{"$f":"IF(E34=\"Liten\",1,IF(E34=\"Måttlig\",2,IF(E34=\"Stor\",3,0)))","v":0},{"$f":"IF(F34=\"Negativ\",-1,IF(F34=\"Positiv\",1,0))","v":0},{"$f":"C34","v":"Solljus"},{"$f":"K34*L34","v":0},{"$f":"IF(OR(N34=3,N34=-3),\"Stor\",IF(OR(N34=2,N34=-2),\"Måttlig\",IF(OR(N34=1,N34=-1),\"Liten\",\"Ingen\")))","v":"Ingen"},null,{"$f":"C87","v":"Bevarande av genetiska resurser"},{"$f":"N91","v":0}]
[null,null,"Vattentemperatur",null,{"$f":"IF(F35=\"Ingen påverkan\",\"-\",'Steg 2 Frågor kring vattenmiljö'!K23)","v":"-"},{"$f":"'Steg 2 Frågor kring vattenmiljö'!L23","v":"-"},null,null,null,null,{"$f":"IF(E35=\"Liten\",1,IF(E35=\"Måttlig\",2,IF(E35=\"Stor\",3,0)))","v":0},{"$f":"IF(F35=\"Negativ\",-1,IF(F35=\"Positiv\",1,0))","v":0},{"$f":"C35","v":"Vattentemperatur"},0,"Ingen",null,{"$f":"C91","v":"Resurser bioteknik och kemikalieråvaror"},{"$f":"N98","v":0}]
[null,null,"pH",null,{"$f":"'Steg 2 Frågor kring vattenmiljö'!K17","v":"-"},{"$f":"'Steg 2 Frågor kring vattenmiljö'!L17","v":"-"},null,null,null,null,0,0,{"$f":"C36","v":"pH"},0,"Ingen",null,{"$f":"C98","v":"Bevarande av kulturarv"},{"$f":"N104","v":0}]
[null,null,"Naturlig strandkant",null,{"$f":"'Steg 2 Frågor kring vattenmiljö'!K14","v":"-"},{"$f":"'Steg 2 Frågor kring vattenmiljö'!L14","v":"-"},null,null,null,null,0,0,"Naturlig strandkant",0,"Ingen",null,{"$f":"C104","v":"Rekreation och hälsa i akvatiska miljöer"},{"$f":"N114","v":0}]
[null,null,"Naturligt varierat vattenflöde",null,{"$f":"'Steg 2 Frågor kring vattenmiljö'!K16","v":"-"},{"$f":"'Steg 2 Frågor kring vattenmiljö'!L16","v":"-"},null,null,null,null,0,0,"Naturligt varierat vattenflöde",0,"Ingen",null,{"$f":"C114","v":"Turism"},{"$f":"N125","v":0}]
[null,null,"Naturliga bottnar",null,{"$f":"'Steg 2 Frågor kring vattenmiljö'!K15","v":"-"},{"$f":"'Steg 2 Frågor kring vattenmiljö'!L15","v":"-"},null,null,null,null,0,0,"Naturliga bottnar",0,"Ingen",null,{"$f":"C125","v":"Kunskap (vetenskap och utbildning)"},{"$f":"N130","v":0}]
[null,null,"Begränsad grumlighet",null,{"$f":"'Steg 2 Frågor kring vattenmiljö'!K6","v":"-"},{"$f":"'Steg 2 Frågor kring vattenmiljö'!L6","v":"-"},null,null,null,null,{"$f":"IF(E40=\"Liten\",1,IF(E40=\"Måttlig\",2,IF(E40=\"Stor\",3,0)))","v":0},0,"Begränsad grumlighet",0,"Ingen",null,{"$f":"C130","v":"Upprätthållande av akvatiska livscykler och näringsvävarnas dynamik"},{"$f":"N134","v":0}]
[null,null,"Förekomst av svämplan",null,{"$f":"E56","v":"-"},{"$f":"F56","v":"-"},null,null,null,null,{"$f":"IF(E41=\"Liten\",1,IF(E41=\"Måttlig\",2,IF(E41=\"Stor\",3,0)))","v":0},{"$f":"IF(F41=\"Negativ\",-1,IF(F41=\"Positiv\",1,0))","v":0},"Förekomst av svämplan",0,"Ingen",null,{"$f":"C135","v":"Upprätthållande av biologisk mångfald"},{"$f":"N140","v":0}]
[null,null,null,null,null,null,null,null,null,null,0,0,0,0,"Ingen",null,{"$f":"C141","v":"Kontroll av skededjur och sjukdomar"},{"$f":"N145","v":0}]
[null,null,"Minskad övergödning",null,{"$f":"IF(E54<>\"\",E54,\"-\")","v":"-"},{"$f":"IF(F54=\"\",\"-\",IF(F54<>\"Oförändrad\",F54,\"Ingen påverkan\"))","v":"-"},null,null,null,null,0,0,"Minskad övergödning",0,"Ingen",null,{"$f":"C146","v":"Estetik"},{"$f":"N151","v":0}]
[null,null,"Upprätthållande av biokemiska cykler",null,{"$f":"IF(E29<>\"\",E29,\"-\")","v":"-"},{"$f":"IF(F29=\"Oförändrad\",\"Ingen påverkan\",IF(F29<>\"\",F29,\"-\"))","v":"-"},null,null,null,null,0,0,"Upprätthållande av biokemiska cykler",0,"Ingen",null,{"$f":"C152","v":"Inspiration"},{"$f":"N157","v":0}]
[null,null,"Tillgång till näringsämnen",null,{"$f":"IF(F45=\"Ingen påverkan\",\"-\",'Steg 2 Frågor kring vattenmiljö'!K19)","v":"-"},{"$f":"'Steg 2 Frågor kring vattenmiljö'!L19","v":"-"},null,null,null,null,0,0,{"$f":"C45","v":"Tillgång till näringsämnen"},0,"Ingen",null,"SUMMA",{"$f":"AVERAGE(R24:R44)","v":0}]
[null,null,"Levande processers nedbrytning av avfall och giftiga ämnen",null,null,null,null,null,null,null,null,null,null,{"$f":"AVERAGE(N34:N45)","v":0}]
[null,null,"Sammanvägd bedömning av påverkan",null,{"$f":"IF(COUNTIF(E48:E52,\"Stor\")>=1,\"Stor\",IF(COUNTIF(E48:E52,\"Måttlig\")>=1,\"Måttlig\",IF(COUNTIF(E48:E52,\"Liten\")>=1,\"Liten\",\"\")))","v":""},{"$f":"IF(COUNTIF(F48:F52,\"Negativ\")>=1,\"Negativ\",IF(COUNTIF(F48:F52,\"Positiv\")>=1,\"Positiv\",IF(COUNTIF(F48:F52,\"Ingen påverkan\")>=1,\"Oförändrad\",IF(COUNTIF(F48:F52,\"Oförändrad\")>=1,\"Oförändrad\",IF(COUNTIF(F48:F52,\"Inte definierad\")>=1,\"Inte definierad\",\"\")))))","v":""}]
[null,null,"Primärproduktion",null,{"$f":"IF(E24<>\"\",E24,\"-\")","v":"-"},{"$f":"IF(F24=\"Oförändrad\",\"Ingen påverkan\",IF(F24<>\"\",F24,\"-\"))","v":"-"},null,null,null,null,{"$f":"IF(E48=\"Liten\",1,IF(E48=\"Måttlig\",2,IF(E48=\"Stor\",3,0)))","v":0},{"$f":"IF(F48=\"Negativ\",-1,IF(F48=\"Positiv\",1,0))","v":0},{"$f":"C48","v":"Primärproduktion"},{"$f":"K48*L48","v":0},{"$f":"IF(OR(N48=3,N48=-3),\"Stor\",IF(OR(N48=2,N48=-2),\"Måttlig\",IF(OR(N48=1,N48=-1),\"Liten\",\"Ingen\")))","v":"Ingen"}]
[null,null,"Naturliga strandkanter",null,{"$f":"'Steg 2 Frågor kring vattenmiljö'!K14","v":"-"},{"$f":"'Steg 2 Frågor kring vattenmiljö'!L14","v":"-"},null,null,null,null,{"$f":"IF(E49=\"Liten\",1,IF(E49=\"Måttlig\",2,IF(E49=\"Stor\",3,0)))","v":0},{"$f":"IF(F49=\"Negativ\",-1,IF(F49=\"Positiv\",1,0))","v":0},{"$f":"C49","v":"Naturliga strandkanter"},{"$f":"K49*L49","v":0},{"$f":"IF(OR(N49=3,N49=-3),\"Stor\",IF(OR(N49=2,N49=-2),\"Måttlig\",IF(OR(N49=1,N49=-1),\"Liten\",\"Ingen\")))","v":"Ingen"}]
[null,null,"pH",null,{"$f":"'Steg 2 Frågor kring vattenmiljö'!K17","v":"-"},{"$f":"'Steg 2 Frågor kring vattenmiljö'!L17","v":"-"},null,null,null,null,{"$f":"IF(E50=\"Liten\",1,IF(E50=\"Måttlig\",2,IF(E50=\"Stor\",3,0)))","v":0},{"$f":"IF(F50=\"Negativ\",-1,IF(F50=\"Positiv\",1,0))","v":0},{"$f":"C50","v":"pH"},{"$f":"K50*L50","v":0},{"$f":"IF(OR(N50=3,N50=-3),\"Stor\",IF(OR(N50=2,N50=-2),\"Måttlig\",IF(OR(N50=1,N50=-1),\"Liten\",\"Ingen\")))","v":"Ingen"}]
[null,null,"Upprätthållande av biologisk mångfald",null,{"$f":"IF(F51=\"Ingen påverkan\",\"-\",IF(E136<>\"\",E136,\"-\"))","v":"-"},{"$f":"IF(F136=\"\",\"-\",IF(F136<>\"Oförändrad\",F136,\"Ingen påverkan\"))","v":"-"},null,null,null,null,{"$f":"IF(E51=\"Liten\",1,IF(E51=\"Måttlig\",2,IF(E51=\"Stor\",3,0)))","v":0},{"$f":"IF(F51=\"Negativ\",-1,IF(F51=\"Positiv\",1,0))","v":0},{"$f":"C51","v":"Upprätthållande av biologisk mångfald"},{"$f":"K51*L51","v":0},{"$f":"IF(OR(N51=3,N51=-3),\"Stor\",IF(OR(N51=2,N51=-2),\"Måttlig\",IF(OR(N51=1,N51=-1),\"Liten\",\"Ingen\")))","v":"Ingen"}]
[null,null,"Minskad övergödning",null,{"$f":"IF(E54<>\"\",E54,\"-\")","v":"-"},{"$f":"IF(F54=\"\",\"-\",IF(F54<>\"Oförändrad\",F54,\"Ingen påverkan\"))","v":"-"},null,null,null,null,{"$f":"IF(E52=\"Liten\",1,IF(E52=\"Måttlig\",2,IF(E52=\"Stor\",3,0)))","v":0},{"$f":"IF(F52=\"Negativ\",-1,IF(F52=\"Positiv\",1,0))","v":0},{"$f":"C52","v":"Minskad övergödning"},{"$f":"K52*L52","v":0},{"$f":"IF(OR(N52=3,N52=-3),\"Stor\",IF(OR(N52=2,N52=-2),\"Måttlig\",IF(OR(N52=1,N52=-1),\"Liten\",\"Ingen\")))","v":"Ingen"}]
[null,null,"Minskad övergödning",null,null,null,null,null,null,null,null,null,null,{"$f":"AVERAGE(N48:N52)","v":0}]
[3,null,"Sammanvägd bedömning av påverkan",null,{"$f":"IF(COUNTIF(E55:E57,\"Stor\")>=1,\"Stor\",IF(COUNTIF(E55:E57,\"Måttlig\")>=1,\"Måttlig\",IF(COUNTIF(E55:E57,\"Liten\")>=1,\"Liten\",\"\")))","v":""},{"$f":"IF(COUNTIF(F55:F57,\"Negativ\")>=1,\"Negativ\",IF(COUNTIF(F55:F57,\"Positiv\")>=1,\"Positiv\",IF(COUNTIF(F55:F57,\"Ingen påverkan\")>=1,\"Oförändrad\",IF(COUNTIF(F55:F57,\"Oförändrad\")>=1,\"Oförändrad\",IF(COUNTIF(F25:F27,\"Inte definierad\")>=1,\"Inte definierad\",\"\")))))","v":""}]
[null,null,"pH",null,{"$f":"'Steg 2 Frågor kring vattenmiljö'!K17","v":"-"},{"$f":"'Steg 2 Frågor kring vattenmiljö'!L17","v":"-"},null,null,null,null,{"$f":"IF(E55=\"Liten\",1,IF(E55=\"Måttlig\",2,IF(E55=\"Stor\",3,0)))","v":0},{"$f":"IF(F55=\"Negativ\",-1,IF(F55=\"Positiv\",1,0))","v":0},{"$f":"C55","v":"pH"},{"$f":"K55*L55","v":0}]
[null,null,"Förekomst av svämplan",null,{"$f":"'Steg 2 Frågor kring vattenmiljö'!K13","v":"-"},{"$f":"'Steg 2 Frågor kring vattenmiljö'!L13","v":"-"},null,null,null,null,{"$f":"IF(E56=\"Liten\",1,IF(E56=\"Måttlig\",2,IF(E55=\"Stor\",3,0)))","v":0},{"$f":"IF(F56=\"Negativ\",-1,IF(F56=\"Positiv\",1,0))","v":0},{"$f":"C56","v":"Förekomst av svämplan"},{"$f":"K56*L56","v":0}]
[null,null,"Naturligt varierat vattenflöde",null,{"$f":"'Steg 2 Frågor kring vattenmiljö'!K16","v":"-"},{"$f":"'Steg 2 Frågor kring vattenmiljö'!L16","v":"-"},null,null,null,null,{"$f":"IF(E57=\"Liten\",1,IF(E57=\"Måttlig\",2,IF(E56=\"Stor\",3,0)))","v":0},{"$f":"IF(F57=\"Negativ\",-1,IF(F57=\"Positiv\",1,0))","v":0},{"$f":"C57","v":"Naturligt varierat vattenflöde"},{"$f":"K57*L57","v":0}]
[null,null,null,null,null,null,null,null,null,null,null,null,null,{"$f":"AVERAGE(N55:N57)","v":0}]
[null,null,"Reglering av vattenflöden och vattenmagasinering"]
[null,null,"Sammanvägd bedömning av påverkan",null,{"$f":"IF(COUNTIF(E61:E63,\"Stor\")>=1,\"Stor\",IF(COUNTIF(E61:E63,\"Måttlig\")>=1,\"Måttlig\",IF(COUNTIF(E61:E63,\"Liten\")>=1,\"Liten\",\"\")))","v":""},{"$f":"IF(COUNTIF(F61:F63,\"Negativ\")>=1,\"Negativ\",IF(COUNTIF(F61:F63,\"Positiv\")>=1,\"Positiv\",IF(COUNTIF(F61:F63,\"Ingen påverkan\")>=1,\"Oförändrad\",IF(COUNTIF(F61:F63,\"Oförändrad\")>=1,\"Oförändrad\",IF(COUNTIF(F61:F63,\"Inte definierad\")>=1,\"Inte definierad\",\"\")))))","v":""}]
[null,null,"Förekomst av svämplan eller översvämningsyta",null,{"$f":"'Steg 2 Frågor kring vattenmiljö'!K13","v":"-"},{"$f":"'Steg 2 Frågor kring vattenmiljö'!L13","v":"-"},null,null,null,null,{"$f":"IF(E61=\"Liten\",1,IF(E61=\"Måttlig\",2,IF(E61=\"Stor\",3,0)))","v":0},{"$f":"IF(F61=\"Negativ\",-1,IF(F61=\"Positiv\",1,0))","v":0},{"$f":"C61","v":"Förekomst av svämplan eller översvämningsyta"},{"$f":"K61*L61","v":0},{"$f":"IF(OR(N61=3,N61=-3),\"Stor\",IF(OR(N61=2,N61=-2),\"Måttlig\",IF(OR(N61=1,N61=-1),\"Liten\",\"Ingen\")))","v":"Ingen"}]
[null,null,"Förekomst av naturliga strandkanter",null,{"$f":"'Steg 2 Frågor kring vattenmiljö'!K14","v":"-"},{"$f":"'Steg 2 Frågor kring vattenmiljö'!L14","v":"-"},null,null,null,null,{"$f":"IF(E62=\"Liten\",1,IF(E62=\"Måttlig\",2,IF(E62=\"Stor\",3,0)))","v":0},{"$f":"IF(F62=\"Negativ\",-1,IF(F62=\"Positiv\",1,0))","v":0},{"$f":"C62","v":"Förekomst av naturliga strandkanter"},{"$f":"K62*L62","v":0},{"$f":"IF(OR(N62=3,N62=-3),\"Stor\",IF(OR(N62=2,N62=-2),\"Måttlig\",IF(OR(N62=1,N62=-1),\"Liten\",\"Ingen\")))","v":"Ingen"}]
[null,null,"Naturligt varierat vattenflöde",null,{"$f":"'Steg 2 Frågor kring vattenmiljö'!K16","v":"-"},{"$f":"'Steg 2 Frågor kring vattenmiljö'!L16","v":"-"},null,null,null,null,{"$f":"IF(E63=\"Liten\",1,IF(E63=\"Måttlig\",2,IF(E63=\"Stor\",3,0)))","v":0},{"$f":"IF(F63=\"Negativ\",-1,IF(F63=\"Positiv\",1,0))","v":0},{"$f":"C63","v":"Naturligt varierat vattenflöde"},{"$f":"K63*L63","v":0},{"$f":"IF(OR(N63=3,N63=-3),\"Stor\",IF(OR(N63=2,N63=-2),\"Måttlig\",IF(OR(N63=1,N63=-1),\"Liten\",\"Ingen\")))","v":"Ingen"}]
[]
[null,null,"Naturlig luftrening",null,null,null,null,null,null,null,null,null,null,{"$f":"AVERAGE(N61:N63)","v":0}]
[null,null,"Sammanvägd bedömning",null,{"$f":"IF(COUNTIF(E67:E69,\"Stor\")>=1,\"Stor\",IF(COUNTIF(E67:E69,\"Måttlig\")>=1,\"Måttlig\",IF(COUNTIF(E67:E69,\"Liten\")>=1,\"Liten\",\"\")))","v":""},{"$f":"IF(COUNTIF(F67:F69,\"Negativ\")>=1,\"Negativ\",IF(COUNTIF(F67:F69,\"Positiv\")>=1,\"Positiv\",IF(COUNTIF(F67:F69,\"Ingen påverkan\")>=1,\"Oförändrad\",IF(COUNTIF(F67:F69,\"Oförändrad\")>=1,\"Oförändrad\",IF(COUNTIF(F67:F69,\"Inte definierad\")>=1,\"Inte definierad\",\"\")))))","v":""}]
[null,null,"Träd i strandzonen",null,{"$f":"'Steg 2 Frågor kring vattenmiljö'!K21","v":"-"},{"$f":"'Steg 2 Frågor kring vattenmiljö'!L21","v":"-"},null,null,null,null,{"$f":"IF(E67=\"Liten\",1,IF(E67=\"Måttlig\",2,IF(E67=\"Stor\",3,0)))","v":0},{"$f":"IF(F67=\"Negativ\",-1,IF(F67=\"Positiv\",1,0))","v":0},{"$f":"C67","v":"Träd i strandzonen"},{"$f":"K67*L67","v":0},{"$f":"IF(OR(N67=3,N67=-3),\"Stor\",IF(OR(N67=2,N67=-2),\"Måttlig\",IF(OR(N67=1,N67=-1),\"Liten\",\"Ingen\")))","v":"Ingen"}]
[null,null,"Primärproduktion",null,{"$f":"IF(E24<>\"\",E24,\"-\")","v":"-"},{"$f":"IF(F24=\"Oförändrad\",\"Ingen påverkan\",IF(F24<>\"\",F24,\"-\"))","v":"-"},null,null,null,null,{"$f":"IF(E68=\"Liten\",1,IF(E68=\"Måttlig\",2,IF(E68=\"Stor\",3,0)))","v":0},{"$f":"IF(F68=\"Negativ\",-1,IF(F68=\"Positiv\",1,0))","v":0},{"$f":"C68","v":"Primärproduktion"},{"$f":"K68*L68","v":0},{"$f":"IF(OR(N68=3,N68=-3),\"Stor\",IF(OR(N68=2,N68=-2),\"Måttlig\",IF(OR(N68=1,N68=-1),\"Liten\",\"Ingen\")))","v":"Ingen"}]
[null,null,"Upprätthållande av biokemiska cykler",null,{"$f":"IF(E29<>\"\",E29,\"-\")","v":"-"},{"$f":"IF(F29=\"Oförändrad\",\"Ingen påverkan\",IF(F29<>\"\",F29,\"-\"))","v":"-"},null,null,null,null,{"$f":"IF(E69=\"Liten\",1,IF(E69=\"Måttlig\",2,IF(E69=\"Stor\",3,0)))","v":0},{"$f":"IF(F69=\"Negativ\",-1,IF(F69=\"Positiv\",1,0))","v":0},{"$f":"C69","v":"Upprätthållande av biokemiska cykler"},{"$f":"K69*L69","v":0},{"$f":"IF(OR(N69=3,N69=-3),\"Stor\",IF(OR(N69=2,N69=-2),\"Måttlig\",IF(OR(N69=1,N69=-1),\"Liten\",\"Ingen\")))","v":"Ingen"}]
[]
[null,null,"Reglering av atmosfärens kemiska sammansättning (kolbindning)",null,null,null,null,null,null,null,null,null,null,{"$f":"AVERAGE(N67:N69)","v":0}]
[null,null,"Sammanvägd bedömning",null,{"$f":"IF(COUNTIF(E73:E74,\"Stor\")>=1,\"Stor\",IF(COUNTIF(E73:E74,\"Måttlig\")>=1,\"Måttlig\",IF(COUNTIF(E73:E74,\"Liten\")>=1,\"Liten\",\"\")))","v":""},{"$f":"IF(COUNTIF(F73:F74,\"Negativ\")>=1,\"Negativ\",IF(COUNTIF(F73:F74,\"Positiv\")>=1,\"Positiv\",IF(COUNTIF(F73:F74,\"Ingen påverkan\")>=1,\"Oförändrad\",IF(COUNTIF(F73:F74,\"Oförändrad\")>=1,\"Oförändrad\",IF(COUNTIF(F73:F74,\"Inte definierad\")>=1,\"Inte definierad\",\"\")))))","v":""}]
[null,null,"Primärproduktion",null,{"$f":"IF(E24<>\"\",E24,\"-\")","v":"-"},{"$f":"IF(F24=\"Oförändrad\",\"Ingen påverkan\",IF(F24<>\"\",F24,\"-\"))","v":"-"},null,null,null,null,{"$f":"IF(E73=\"Liten\",1,IF(E73=\"Måttlig\",2,IF(E73=\"Stor\",3,0)))","v":0},{"$f":"IF(F73=\"Negativ\",-1,IF(F73=\"Positiv\",1,0))","v":0},{"$f":"C73","v":"Primärproduktion"},{"$f":"K73*L73","v":0},{"$f":"IF(OR(N73=3,N73=-3),\"Stor\",IF(OR(N73=2,N73=-2),\"Måttlig\",IF(OR(N73=1,N73=-1),\"Liten\",\"Ingen\")))","v":"Ingen"}]
[null,null,"Naturliga bottnar",null,{"$f":"'Steg 2 Frågor kring vattenmiljö'!K15","v":"-"},{"$f":"'Steg 2 Frågor kring vattenmiljö'!L15","v":"-"},null,null,null,null,{"$f":"IF(E74=\"Liten\",1,IF(E74=\"Måttlig\",2,IF(E74=\"Stor\",3,0)))","v":0},{"$f":"IF(F74=\"Negativ\",-1,IF(F74=\"Positiv\",1,0))","v":0},{"$f":"C74","v":"Naturliga bottnar"},{"$f":"K74*L74","v":0},{"$f":"IF(OR(N74=3,N74=-3),\"Stor\",IF(OR(N74=2,N74=-2),\"Måttlig\",IF(OR(N74=1,N74=-1),\"Liten\",\"Ingen\")))","v":"Ingen"}]
[]
[null,null,"Livsmedel från vilda och odlade vattenlevande växter och djur",null,null,null,null,null,null,null,null,null,null,{"$f":"AVERAGE(N73:N74)","v":0}]
[null,null,"Sammanvägd bedömning",null,{"$f":"IF(COUNTIF(E78:E80,\"Stor\")>=1,\"Stor\",IF(COUNTIF(E78:E80,\"Måttlig\")>=1,\"Måttlig\",IF(COUNTIF(E78:E80,\"Liten\")>=1,\"Liten\",\"\")))","v":""},{"$f":"IF(COUNTIF(F78:F80,\"Negativ\")>=1,\"Negativ\",IF(COUNTIF(F78:F80,\"Positiv\")>=1,\"Positiv\",IF(COUNTIF(F78:F80,\"Ingen påverkan\")>=1,\"Oförändrad\",IF(COUNTIF(F78:F80,\"Oförändrad\")>=1,\"Oförändrad\",IF(COUNTIF(F78:F80,\"Inte definierad\")>=1,\"Inte definierad\",\"\")))))","v":""}]
[null,null,"Bevarande av livsmiljöer",null,{"$f":"IF(E33<>\"\",E33,\"-\")","v":"-"},{"$f":"IF(F33=\"\",\"-\",IF(F33<>\"\",IF(F33=\"Oförändrad\",\"Ingen påverkan\",F33)))","v":"-"},null,null,null,null,{"$f":"IF(E78=\"Liten\",1,IF(E78=\"Måttlig\",2,IF(E78=\"Stor\",3,0)))","v":0},{"$f":"IF(F78=\"Negativ\",-1,IF(F78=\"Positiv\",1,0))","v":0},{"$f":"C78","v":"Bevarande av livsmiljöer"},{"$f":"K78*L78","v":0},{"$f":"IF(OR(N78=3,N78=-3),\"Stor\",IF(OR(N78=2,N78=-2),\"Måttlig\",IF(OR(N78=1,N78=-1),\"Liten\",\"Ingen\")))","v":"Ingen"}]
[null,null,"Tillgänglighet till strandzonen och vattenförekomst",null,{"$f":"'Steg 2 Frågor kring vattenmiljö'!K20","v":"-"},{"$f":"'Steg 2 Frågor kring vattenmiljö'!L20","v":"-"},null,null,null,null,{"$f":"IF(E79=\"Liten\",1,IF(E79=\"Måttlig\",2,IF(E79=\"Stor\",3,0)))","v":0},{"$f":"IF(F79=\"Negativ\",-1,IF(F79=\"Positiv\",1,0))","v":0},{"$f":"C79","v":"Tillgänglighet till strandzonen och vattenförekomst"},{"$f":"K79*L79","v":0},{"$f":"IF(OR(N79=3,N79=-3),\"Stor\",IF(OR(N79=2,N79=-2),\"Måttlig\",IF(OR(N79=1,N79=-1),\"Liten\",\"Ingen\")))","v":"Ingen"}]
[null,null,"Upprätthållande av biologisk mångfald",null,{"$f":"IF(E$136<>\"\",E$136,\"-\")","v":"-"},{"$f":"IF(F136=\"\",\"-\",IF(F136<>\"Oförändrad\",F136,\"Ingen påverkan\"))","v":"-"},null,null,null,null,{"$f":"IF(E80=\"Liten\",1,IF(E80=\"Måttlig\",2,IF(E80=\"Stor\",3,0)))","v":0},{"$f":"IF(F80=\"Negativ\",-1,IF(F80=\"Positiv\",1,0))","v":0},{"$f":"C80","v":"Upprätthållande av biologisk mångfald"},{"$f":"K80*L80","v":0},{"$f":"IF(OR(N80=3,N80=-3),\"Stor\",IF(OR(N80=2,N80=-2),\"Måttlig\",IF(OR(N80=1,N80=-1),\"Liten\",\"Ingen\")))","v":"Ingen"}]
[]
[null,null,"Råvaror",null,null,null,null,null,null,null,null,null,null,{"$f":"AVERAGE(N78:N80)","v":0}]
[null,null,"Sammanvägd bedömning",null,{"$f":"IF(COUNTIF(E84:E86,\"Stor\")>=1,\"Stor\",IF(COUNTIF(E84:E86,\"Måttlig\")>=1,\"Måttlig\",IF(COUNTIF(E84:E86,\"Liten\")>=1,\"Liten\",\"\")))","v":""},{"$f":"IF(COUNTIF(F84:F86,\"Negativ\")>=1,\"Negativ\",IF(COUNTIF(F84:F86,\"Positiv\")>=1,\"Positiv\",IF(COUNTIF(F84:F86,\"Ingen påverkan\")>=1,\"Oförändrad\",IF(COUNTIF(F84:F86,\"Oförändrad\")>=1,\"Oförändrad\",IF(COUNTIF(F84:F86,\"Inte definierad\")>=1,\"Inte definierad\",\"\")))))","v":""}]
[null,null,"Bevarande av livsmiljöer",null,{"$f":"IF(E33<>\"\",E33,\"-\")","v":"-"},{"$f":"IF(F33=\"\",\"-\",IF(F33<>\"\",IF(F33=\"Oförändrad\",\"Ingen påverkan\",F33)))","v":"-"},null,null,null,null,{"$f":"IF(E84=\"Liten\",1,IF(E84=\"Måttlig\",2,IF(E84=\"Stor\",3,0)))","v":0},{"$f":"IF(F84=\"Negativ\",-1,IF(F84=\"Positiv\",1,0))","v":0},{"$f":"C84","v":"Bevarande av livsmiljöer"},{"$f":"K84*L84","v":0},{"$f":"IF(OR(N84=3,N84=-3),\"Stor\",IF(OR(N84=2,N84=-2),\"Måttlig\",IF(OR(N84=1,N84=-1),\"Liten\",\"Ingen\")))","v":"Ingen"}]
[null,null,"Upprätthållande av biologisk mångfald",null,{"$f":"IF(E$136<>\"\",E$136,\"-\")","v":"-"},{"$f":"IF(F136=\"\",\"-\",IF(F136<>\"Oförändrad\",F136,\"Ingen påverkan\"))","v":"-"},null,null,null,null,{"$f":"IF(E85=\"Liten\",1,IF(E85=\"Måttlig\",2,IF(E85=\"Stor\",3,0)))","v":0},{"$f":"IF(F85=\"Negativ\",-1,IF(F85=\"Positiv\",1,0))","v":0},{"$f":"C85","v":"Upprätthållande av biologisk mångfald"},{"$f":"K85*L85","v":0},{"$f":"IF(OR(N85=3,N85=-3),\"Stor\",IF(OR(N85=2,N85=-2),\"Måttlig\",IF(OR(N85=1,N85=-1),\"Liten\",\"Ingen\")))","v":"Ingen"}]
[null,null,"Bevarande av genetiska resurser",null,{"$f":"IF(E$88<>\"\",E$88,\"-\")","v":"-"},{"$f":"IF(F88=\"\",\"-\",IF(F88<>\"Oförändrad\",F88,\"Ingen påverkan\"))","v":"-"},null,null,null,null,{"$f":"IF(E86=\"Liten\",1,IF(E86=\"Måttlig\",2,IF(E86=\"Stor\",3,0)))","v":0},{"$f":"IF(F86=\"Negativ\",-1,IF(F86=\"Positiv\",1,0))","v":0},{"$f":"C86","v":"Bevarande av genetiska resurser"},{"$f":"K86*L86","v":0},{"$f":"IF(OR(N86=3,N86=-3),\"Stor\",IF(OR(N86=2,N86=-2),\"Måttlig\",IF(OR(N86=1,N86=-1),\"Liten\",\"Ingen\")))","v":"Ingen"}]
[null,null,"Bevarande av genetiska resurser",null,null,null,null,null,null,null,null,null,null,{"$f":"AVERAGE(N84:N86)","v":0}]
[6,null,"Sammanvägd bedömning",null,{"$f":"IF(COUNTIF(E89:E90,\"Stor\")>=1,\"Stor\",IF(COUNTIF(E89:E90,\"Måttlig\")>=1,\"Måttlig\",IF(COUNTIF(E89:E90,\"Liten\")>=1,\"Liten\",\"\")))","v":""},{"$f":"IF(COUNTIF(F89:F90,\"Negativ\")>=1,\"Negativ\",IF(COUNTIF(F89:F90,\"Positiv\")>=1,\"Positiv\",IF(COUNTIF(F89:F90,\"Ingen påverkan\")>=1,\"Oförändrad\",IF(COUNTIF(F89:F90,\"Oförändrad\")>=1,\"Oförändrad\",IF(COUNTIF(F89:F90,\"Inte definierad\")>=1,\"Inte definierad\",\"\")))))","v":""}]
[null,null,"Upprätthållande av biologisk mångfald",null,{"$f":"IF(E$136<>\"\",E$136,\"-\")","v":"-"},{"$f":"IF(F136=\"\",\"-\",IF(F136<>\"Oförändrad\",F136,\"Ingen påverkan\"))","v":"-"},null,null,null,null,{"$f":"IF(E89=\"Liten\",1,IF(E89=\"Måttlig\",2,IF(E89=\"Stor\",3,0)))","v":0},{"$f":"IF(F89=\"Negativ\",-1,IF(F89=\"Positiv\",1,0))","v":0},{"$f":"C89","v":"Upprätthållande av biologisk mångfald"},{"$f":"K89*L89","v":0},{"$f":"IF(OR(N89=3,N89=-3),\"Stor\",IF(OR(N89=2,N89=-2),\"Måttlig\",IF(OR(N89=1,N89=-1),\"Liten\",\"Ingen\")))","v":"Ingen"}]
[null,null,"Bevarande av livsmiljöer",null,{"$f":"IF(E33<>\"\",E33,\"-\")","v":"-"},{"$f":"IF(F33=\"\",\"-\",IF(F33<>\"\",IF(F33=\"Oförändrad\",\"Ingen påverkan\",F33)))","v":"-"},null,null,null,null,0,0,"Bevarande av livsmiljöer",0,"Ingen"]
[null,null,"Resurser bioteknik och kemikalieråvaror",null,null,null,null,null,null,null,null,null,null,{"$f":"AVERAGE(N89:N90)","v":0}]
[7,null,"Sammanvägd bedömning",null,{"$f":"IF(COUNTIF(E93:E95,\"Stor\")>=1,\"Stor\",IF(COUNTIF(E93:E95,\"Måttlig\")>=1,\"Måttlig\",IF(COUNTIF(E93:E95,\"Liten\")>=1,\"Liten\",\"\")))","v":""},{"$f":"IF(COUNTIF(F93:F95,\"Negativ\")>=1,\"Negativ\",IF(COUNTIF(F93:F95,\"Positiv\")>=1,\"Positiv\",IF(COUNTIF(F93:F95,\"Ingen påverkan\")>=1,\"Oförändrad\",IF(COUNTIF(F93:F95,\"Oförändrad\")>=1,\"Oförändrad\",IF(COUNTIF(F89:F90,\"Inte definierad\")>=1,\"Inte definierad\",\"\")))))","v":""}]
[null,null,"Bevarande av livsmiljöer",null,{"$f":"IF(E33<>\"\",E33,\"-\")","v":"-"},{"$f":"IF(F33=\"\",\"-\",IF(F33<>\"\",IF(F33=\"Oförändrad\",\"Ingen påverkan\",F33)))","v":"-"},null,null,null,null,0,0,"Bevarande av livsmiljöer",0,"Ingen"]
[null,null,"Upprätthållande av biologisk mångfald",null,{"$f":"IF(E$136<>\"\",E$136,\"-\")","v":"-"},{"$f":"IF(F136=\"\",\"-\",IF(F136<>\"Oförändrad\",F136,\"Ingen påverkan\"))","v":"-"},null,null,null,null,0,0,"Upprätthållande av biologisk mångfald",0,"Ingen"]
[null,null,"Bevarande av genetiska resurser",null,{"$f":"IF(E$88<>\"\",E$88,\"-\")","v":"-"},{"$f":"IF(F88=\"\",\"-\",IF(F88<>\"Oförändrad\",F88,\"Ingen påverkan\"))","v":"-"},null,null,null,null,0,0,"Bevarande av genetiska resurser",0,"Ingen"]
[]
[]
[null,null,"Bevarande av kulturarv",null,null,null,null,null,null,null,null,null,null,{"$f":"AVERAGE(N93:N95)","v":0}]
[null,null,"Sammanvägd bedömning",null,{"$f":"IF(COUNTIF(E100:E102,\"Stor\")>=1,\"Stor\",IF(COUNTIF(E100:E102,\"Måttlig\")>=1,\"Måttlig\",IF(COUNTIF(E100:E102,\"Liten\")>=1,\"Liten\",\"\")))","v":""},{"$f":"IF(COUNTIF(F100:F102,\"Negativ\")>=1,\"Negativ\",IF(COUNTIF(F100:F102,\"Positiv\")>=1,\"Positiv\",IF(COUNTIF(F100:F102,\"Ingen påverkan\")>=1,\"Oförändrad\",IF(COUNTIF(F100:F102,\"Oförändrad\")>=1,\"Oförändrad\",IF(COUNTIF(F100:F102,\"Inte definierad\")>=1,\"Inte definierad\",\"\")))))","v":""}]
[null,null,"Bevarande av fornlämning eller kulturlämning",null,{"$f":"'Steg 2 Frågor kring vattenmiljö'!K7","v":"-"},{"$f":"'Steg 2 Frågor kring vattenmiljö'!L7","v":"-"},null,null,null,null,0,0,"Bevarande av fornlämning eller kulturlämning",0,"Ingen"]
[null,null,"Bevarande av närmiljö och omgivning till lämning",null,{"$f":"'Steg 2 Frågor kring vattenmiljö'!K9","v":"-"},{"$f":"'Steg 2 Frågor kring vattenmiljö'!L9","v":"-"},null,null,null,null,0,0,"Bevarande av närmiljö och omgivning till lämning",0,"Ingen"]
[null,null,"Bevarande av konserverande miljö",null,{"$f":"'Steg 2 Frågor kring vattenmiljö'!K8","v":"-"},{"$f":"'Steg 2 Frågor kring vattenmiljö'!L8","v":"-"},null,null,null,null,0,0,"Bevarande av konserverande miljö",0,"Ingen"]
[]
[null,null,"Rekreation och hälsa i akvatiska miljöer",null,null,null,null,null,null,null,null,null,null,{"$f":"AVERAGE(N100:N102)","v":0}]
[null,null,"Sammanvägd bedömning",null,{"$f":"IF(COUNTIF(E106:E112,\"Stor\")>=1,\"Stor\",IF(COUNTIF(E106:E112,\"Måttlig\")>=1,\"Måttlig\",IF(COUNTIF(E106:E112,\"Liten\")>=1,\"Liten\",\"\")))","v":""},{"$f":"IF(COUNTIF(F106:F112,\"Negativ\")>=1,\"Negativ\",IF(COUNTIF(F106:F112,\"Positiv\")>=1,\"Positiv\",IF(COUNTIF(F106:F112,\"Ingen påverkan\")>=1,\"Oförändrad\",IF(COUNTIF(F106:F112,\"Oförändrad\")>=1,\"Oförändrad\",IF(COUNTIF(F106:F112,\"Inte definierad\")>=1,\"Inte definierad\",\"\")))))","v":""}]
[null,null,"Bullerfria miljöer",null,{"$f":"'Steg 2 Frågor kring vattenmiljö'!K$11","v":"-"},{"$f":"'Steg 2 Frågor kring vattenmiljö'!L11","v":"-"},null,null,null,null,0,0,"Bullerfria miljöer",0,"Ingen"]
[null,null,"Tillgänglighet till stranden och vattenförekomsten",null,{"$f":"'Steg 2 Frågor kring vattenmiljö'!K20","v":"-"},{"$f":"'Steg 2 Frågor kring vattenmiljö'!L20","v":"-"},null,null,null,null,0,0,"Tillgänglighet till stranden och vattenförekomsten",0,"Ingen"]
[null,null,"Visuellt ostörda miljöer",null,{"$f":"IF(F108=\"Ingen påverkan\",\"-\",'Steg 2 Frågor kring vattenmiljö'!K24)","v":"-"},{"$f":"'Steg 2 Frågor kring vattenmiljö'!L24","v":"-"},null,null,null,null,0,0,"Visuellt ostörda miljöer",0,"Ingen"]
[null,null,"Begränsad grumlighet",null,{"$f":"'Steg 2 Frågor kring vattenmiljö'!K6","v":"-"},{"$f":"'Steg 2 Frågor kring vattenmiljö'!L6","v":"-"},null,null,null,null,0,0,"Begränsad grumlighet",0,"Ingen"]
[null,null,"Upprätthållande av biologisk mångfald",null,{"$f":"IF(E$136<>\"\",E$136,\"-\")","v":"-"},{"$f":"IF(F136=\"\",\"-\",IF(F136<>\"Oförändrad\",F136,\"Ingen påverkan\"))","v":"-"},null,null,null,null,0,0,"Upprätthållande av biologisk mångfald",0,"Ingen"]
[null,null,"Bevarande kulturarv",null,{"$f":"IF(E$99<>\"\",E$99,\"-\")","v":"-"},{"$f":"IF(F99=\"Oförändrad\",\"Ingen påverkan\",IF(F99<>\"\",F99,\"-\"))","v":"-"},null,null,null,null,0,0,"Bevarande kulturarv",0,"Ingen"]
[null,null,"Reglering av giftiga ämnen",null,{"$f":"IF(E$47<>\"\",E$47,\"-\")","v":"-"},{"$f":"IF(F47=\"\",\"-\",IF(F47<>\"Oförändrad\",F47,\"Ingen påverkan\"))","v":"-"},null,null,null,null,0,0,{"$f":"C112","v":"Reglering av giftiga ämnen"},{"$f":"K112*L112","v":0},"Ingen"]
[]
[null,null,"Turism",null,null,null,null,null,null,null,null,null,null,{"$f":"AVERAGE(N106:N112)","v":0}]
[null,null,"Sammanvägd bedömning",null,{"$f":"IF(COUNTIF(E116:E123,\"Stor\")>=1,\"Stor\",IF(COUNTIF(E116:E123,\"Måttlig\")>=1,\"Måttlig\",IF(COUNTIF(E116:E123,\"Liten\")>=1,\"Liten\",\"\")))","v":""},{"$f":"IF(COUNTIF(F116:F123,\"Negativ\")>=1,\"Negativ\",IF(COUNTIF(F116:F123,\"Positiv\")>=1,\"Positiv\",IF(COUNTIF(F116:F123,\"Ingen påverkan\")>=1,\"Oförändrad\",IF(COUNTIF(F116:F123,\"Oförändrad\")>=1,\"Oförändrad\",IF(COUNTIF(F116:F123,\"Inte definierad\")>=1,\"Inte definierad\",\"\")))))","v":""}]
[null,null,"Bevarande av livsmiljöer",null,{"$f":"IF(E33<>\"\",E33,\"-\")","v":"-"},{"$f":"IF(F33=\"\",\"-\",IF(F33<>\"\",IF(F33=\"Oförändrad\",\"Ingen påverkan\",F33)))","v":"-"},null,null,null,null,0,0,"Bevarande av livsmiljöer",0,"Ingen"]
[null,null,"Tillgänglighet till stranden och vattenförekomsten",null,{"$f":"'Steg 2 Frågor kring vattenmiljö'!K20","v":"-"},{"$f":"'Steg 2 Frågor kring vattenmiljö'!L20","v":"-"},null,null,null,null,0,0,"Tillgänglighet till stranden och vattenförekomsten",0,"Ingen"]
[null,null,"Visuellt ostörda miljöer",null,{"$f":"IF(F118=\"Ingen påverkan\",\"-\",'Steg 2 Frågor kring vattenmiljö'!K24)","v":"-"},{"$f":"'Steg 2 Frågor kring vattenmiljö'!L24","v":"-"},null,null,null,null,0,0,"Visuellt ostörda miljöer",0,"Ingen"]
[null,null,"Begränsad grumlighet",null,{"$f":"'Steg 2 Frågor kring vattenmiljö'!K6","v":"-"},{"$f":"'Steg 2 Frågor kring vattenmiljö'!L6","v":"-"},null,null,null,null,0,0,"Begränsad grumlighet",0,"Ingen"]
[null,null,"Upprätthållande av biologisk mångfald",null,{"$f":"IF(E$136<>\"\",E$136,\"-\")","v":"-"},{"$f":"IF(F136=\"\",\"-\",IF(F136<>\"Oförändrad\",F136,\"Ingen påverkan\"))","v":"-"},null,null,null,null,0,0,"Upprätthållande av biologisk mångfald",0,"Ingen"]
[null,null,"Bullerfria miljöer",null,{"$f":"E106","v":"-"},{"$f":"F106","v":"-"},null,null,null,null,0,0,"Bullerfria miljöer",0,"Ingen"]
[null,null,"Bevarande av kulturarv",null,{"$f":"IF(E$99<>\"\",E$99,\"-\")","v":"-"},{"$f":"IF(F99=\"Oförändrad\",\"Ingen påverkan\",IF(F99<>\"\",F99,\"-\"))","v":"-"},null,null,null,null,0,0,"Bevarande av kulturarv",0,"Ingen"]
[null,null,"Bevarande av skyddade, rödlistade och hotade arter",null,{"$f":"'Steg 2 Frågor kring vattenmiljö'!K10","v":"-"},{"$f":"'Steg 2 Frågor kring vattenmiljö'!L10","v":"-"},null,null,null,null,0,0,"Bevarande av skyddade, rödlistade och hotade arter",0,"Ingen"]
[]
[null,null,"Kunskap (vetenskap och utbildning)",null,null,null,null,null,null,null,null,null,null,{"$f":"AVERAGE(N116:N123)","v":0}]
[8,null,"Sammanvägd bedömning",null,{"$f":"IF(COUNTIF(E127:E129,\"Stor\")>=1,\"Stor\",IF(COUNTIF(E127:E129,\"Måttlig\")>=1,\"Måttlig\",IF(COUNTIF(E127:E129,\"Liten\")>=1,\"Liten\",\"\")))","v":""},{"$f":"IF(COUNTIF(F127:F129,\"Negativ\")>=1,\"Negativ\",IF(COUNTIF(F127:F129,\"Positiv\")>=1,\"Positiv\",IF(COUNTIF(F127:F129,\"Ingen påverkan\")>=1,\"Oförändrad\",IF(COUNTIF(F127:F129,\"Oförändrad\")>=1,\"Oförändrad\",IF(COUNTIF(F127:F129,\"Inte definierad\")>=1,\"Inte definierad\",\"\")))))","v":""}]
[null,null,"Bevarande av livsmiljöer",null,{"$f":"IF(E33<>\"\",E33,\"-\")","v":"-"},{"$f":"IF(F33=\"\",\"-\",IF(F33<>\"\",IF(F33=\"Oförändrad\",\"Ingen påverkan\",F33)))","v":"-"},null,null,null,null,0,0,"Bevarande av livsmiljöer",0,"Ingen"]
[null,null,"Upprätthållande av biologisk mångfald",null,{"$f":"IF(E$136<>\"\",E$136,\"-\")","v":"-"},{"$f":"IF(F136=\"\",\"-\",IF(F136<>\"Oförändrad\",F136,\"Ingen påverkan\"))","v":"-"},null,null,null,null,0,0,"Upprätthållande av biologisk mångfald",0,"Ingen"]
[null,null,"Bevarande av kulturarv",null,{"$f":"IF(E$99<>\"\",E$99,\"-\")","v":"-"},{"$f":"IF(F99=\"Oförändrad\",\"Ingen påverkan\",IF(F99<>\"\",F99,\"-\"))","v":"-"},null,null,null,null,0,0,"Bevarande av kulturarv",0,"Ingen"]
[null,null,"Upprätthållande av akvatiska livscykler och näringsvävarnas dynamik",null,null,null,null,null,null,null,null,null,null,{"$f":"AVERAGE(N127:N129)","v":0}]
[9,null,"Sammanvägd bedömning",null,{"$f":"IF(COUNTIF(E132:E133,\"Stor\")>=1,\"Stor\",IF(COUNTIF(E132:E133,\"Måttlig\")>=1,\"Måttlig\",IF(COUNTIF(E132:E133,\"Liten\")>=1,\"Liten\",\"\")))","v":""},{"$f":"IF(COUNTIF(F132:F133,\"Negativ\")>=1,\"Negativ\",IF(COUNTIF(F132:F133,\"Positiv\")>=1,\"Positiv\",IF(COUNTIF(F132:F133,\"Ingen påverkan\")>=1,\"Oförändrad\",IF(COUNTIF(F132:F133,\"Ofärndrad\")>=1,\"Oförändrad\",IF(COUNTIF(F132:F133,\"Inte definierad\")>=1,\"Inte definierad\",\"\")))))","v":""}]
[null,null,"Upprätthållande av biologisk mångfald",null,{"$f":"IF(E$136<>\"\",E$136,\"-\")","v":"-"},{"$f":"IF(F136=\"\",\"-\",IF(F136<>\"Oförändrad\",F136,\"Ingen påverkan\"))","v":"-"},null,null,null,null,{"$f":"IF(E132=\"Liten\",1,IF(E132=\"Måttlig\",2,IF(E132=\"Stor\",3,0)))","v":0},{"$f":"IF(F132=\"Negativ\",-1,IF(F132=\"Positiv\",1,0))","v":0},{"$f":"C132","v":"Upprätthållande av biologisk mångfald"},{"$f":"K132*L132","v":0},"Ingen"]
[null,null,"Upprätthållande av näringskedjor",null,{"$f":"'Steg 2 Frågor kring vattenmiljö'!K22","v":"-"},{"$f":"'Steg 2 Frågor kring vattenmiljö'!L22","v":"-"},null,null,null,null,{"$f":"IF(E133=\"Liten\",1,IF(E133=\"Måttlig\",2,IF(E133=\"Stor\",3,0)))","v":0},{"$f":"IF(F133=\"Negativ\",-1,IF(F133=\"Positiv\",1,0))","v":0},{"$f":"C133","v":"Upprätthållande av näringskedjor"},{"$f":"K133*L133","v":0},"Ingen"]
[null,null,null,null,null,null,null,null,null,null,null,null,null,{"$f":"AVERAGE(N132:N133)","v":0}]
[10,null,"Upprätthållande av biologisk mångfald"]
[null,null,"Sammanvägd bedömning",null,{"$f":"IF(COUNTIF(E137:E139,\"Stor\")>=1,\"Stor\",IF(COUNTIF(E137:E139,\"Måttlig\")>=1,\"Måttlig\",IF(COUNTIF(E137:E139,\"Liten\")>=1,\"Liten\",\"\")))","v":""},{"$f":"IF(COUNTIF(F137:F139,\"Negativ\")>=1,\"Negativ\",IF(COUNTIF(F137:F139,\"Positiv\")>=1,\"Positiv\",IF(COUNTIF(F137:F139,\"Ingen påverkan\")>=1,\"Oförändrad\",IF(COUNTIF(F137:F139,\"Oförändrad\")>=1,\"Oförändrad\",IF(COUNTIF(F137:F139,\"Inte definierad\")>=1,\"Inte definierad\",\"\")))))","v":""},null,null,null,null,{"$f":"IF(E137=\"Liten\",1,IF(E137=\"Måttlig\",2,IF(E137=\"Stor\",3,0)))","v":0},{"$f":"IF(F137=\"Negativ\",-1,IF(F137=\"Positiv\",1,0))","v":0},{"$f":"C137","v":"Bevarande av livsmiljöer"},{"$f":"L136*K136","v":0},"Ingen"]
[null,null,"Bevarande av livsmiljöer",null,{"$f":"IF(E33<>\"\",E33,\"-\")","v":"-"},{"$f":"IF(F33=\"\",\"-\",IF(F33<>\"\",IF(F33=\"Oförändrad\",\"Ingen påverkan\",F33)))","v":"-"},null,null,null,null,{"$f":"IF(E138=\"Liten\",1,IF(E138=\"Måttlig\",2,IF(E138=\"Stor\",3,0)))","v":0},{"$f":"IF(F138=\"Negativ\",-1,IF(F138=\"Positiv\",1,0))","v":0},{"$f":"C138","v":"Bevarande av skyddade, rödlistade och hotade arter"},{"$f":"L137*K137","v":0},"Ingen"]
[null,null,"Bevarande av skyddade, rödlistade och hotade arter",null,{"$f":"'Steg 2 Frågor kring vattenmiljö'!K10","v":"-"},{"$f":"'Steg 2 Frågor kring vattenmiljö'!L10","v":"-"},null,null,null,null,{"$f":"IF(E139=\"Liten\",1,IF(E139=\"Måttlig\",2,IF(E139=\"Stor\",3,0)))","v":0},{"$f":"IF(F139=\"Negativ\",-1,IF(F139=\"Positiv\",1,0))","v":0},{"$f":"C139","v":"Frånvaro av främmande arter"},{"$f":"L138*K138","v":0},"Ingen"]
[null,null,"Frånvaro av främmande arter",null,{"$f":"'Steg 2 Frågor kring vattenmiljö'!K12","v":"-"},{"$f":"'Steg 2 Frågor kring vattenmiljö'!L12","v":"-"}]
[null,null,null,null,null,null,null,null,null,null,null,null,null,{"$f":"AVERAGE(N136:N138)","v":0}]
[11,null,"Kontroll av skededjur och sjukdomar"]
[null,null,"Sammanvägd bedömning",null,{"$f":"IF(COUNTIF(E143:E145,\"Stor\")>=1,\"Stor\",IF(COUNTIF(E143:E145,\"Måttlig\")>=1,\"Måttlig\",IF(COUNTIF(E143:E145,\"Liten\")>=1,\"Liten\",\"\")))","v":""},{"$f":"IF(COUNTIF(F143:F145,\"Negativ\")>=1,\"Negativ\",IF(COUNTIF(F143:F145,\"Positiv\")>=1,\"Positiv\",IF(COUNTIF(F143:F145,\"Ingen påverkan\")>=1,\"Oförändrad\",IF(COUNTIF(F143:F145,\"Oförändrad\")>=1,\"Oförändrad\",IF(COUNTIF(F143:F145,\"Inte definierad\")>=1,\"Inte definierad\",\"\")))))","v":""},null,null,null,null,{"$f":"IF(E143=\"Liten\",1,IF(E143=\"Måttlig\",2,IF(E143=\"Stor\",3,0)))","v":0},{"$f":"IF(F143=\"Negativ\",-1,IF(F143=\"Positiv\",1,0))","v":0},{"$f":"C143","v":"Upprätthållande av akvatiska livscykler och näringsvävarnas dynamik"},{"$f":"K142*L142","v":0},"Ingen"]
[null,null,"Upprätthållande av akvatiska livscykler och näringsvävarnas dynamik",null,{"$f":"IF(E$131<>\"\",E$131,\"-\")","v":"-"},{"$f":"IF(F131=\"\",\"-\",IF(F131<>\"Oförändrad\",F131,\"Ingen påverkan\"))","v":"-"},null,null,null,null,{"$f":"IF(E144=\"Liten\",1,IF(E144=\"Måttlig\",2,IF(E144=\"Stor\",3,0)))","v":0},{"$f":"IF(F144=\"Negativ\",-1,IF(F144=\"Positiv\",1,0))","v":0},{"$f":"C144","v":"Upprätthållande av biologisk mångfald"},{"$f":"K143*L143","v":0},"Ingen"]
[null,null,"Upprätthållande av biologisk mångfald",null,{"$f":"IF(E$136<>\"\",E$136,\"-\")","v":"-"},{"$f":"IF(F136=\"\",\"-\",IF(F136<>\"Oförändrad\",F136,\"Ingen påverkan\"))","v":"-"},null,null,null,null,{"$f":"IF(E145=\"Liten\",1,IF(E145=\"Måttlig\",2,IF(E145=\"Stor\",3,0)))","v":0},{"$f":"IF(F145=\"Negativ\",-1,IF(F145=\"Positiv\",1,0))","v":0},{"$f":"C145","v":"Levande processers nedbrytning av avfall och giftiga ämnen"},{"$f":"K144*L144","v":0},"Ingen"]
[null,null,"Levande processers nedbrytning av avfall och giftiga ämnen",null,{"$f":"IF(E$47<>\"\",E$47,\"-\")","v":"-"},{"$f":"IF(F47=\"\",\"-\",IF(F47<>\"Oförändrad\",F47,\"Ingen påverkan\"))","v":"-"},null,null,null,null,null,null,null,{"$f":"AVERAGE(N142:N144)","v":0}]
[13,null,"Estetik"]
[null,null,"Sammanvägd bedömning",null,{"$f":"IF(COUNTIF(E148:E151,\"Stor\")>=1,\"Stor\",IF(COUNTIF(E148:E151,\"Måttlig\")>=1,\"Måttlig\",IF(COUNTIF(E148:E151,\"Liten\")>=1,\"Liten\",\"\")))","v":""},{"$f":"IF(COUNTIF(F148:F151,\"Negativ\")>=1,\"Negativ\",IF(COUNTIF(F148:F151,\"Positiv\")>=1,\"Positiv\",IF(COUNTIF(F148:F151,\"Ingen påverkan\")>=1,\"Oförändrad\",IF(COUNTIF(F148:F151,\"Oförändrad\")>=1,\"Oförändrad\",IF(COUNTIF(F148:F151,\"Inte definierad\")>=1,\"Inte definierad\",\"\")))))","v":""},null,null,null,null,{"$f":"IF(E148=\"Liten\",1,IF(E148=\"Måttlig\",2,IF(E148=\"Stor\",3,0)))","v":0},{"$f":"IF(F148=\"Negativ\",-1,IF(F148=\"Positiv\",1,0))","v":0},{"$f":"C148","v":"Visuellt ostörd miljö"},{"$f":"K147*L147","v":0},"Ingen"]
[null,null,"Visuellt ostörd miljö",null,{"$f":"IF(F148=\"Ingen påverkan\",\"-\",'Steg 2 Frågor kring vattenmiljö'!K24)","v":"-"},{"$f":"'Steg 2 Frågor kring vattenmiljö'!L24","v":"-"},null,null,null,null,{"$f":"IF(E149=\"Liten\",1,IF(E149=\"Måttlig\",2,IF(E149=\"Stor\",3,0)))","v":0},{"$f":"IF(F149=\"Negativ\",-1,IF(F149=\"Positiv\",1,0))","v":0},{"$f":"C149","v":"Bullerfri miljö"},{"$f":"K148*L148","v":0},"Ingen"]
[null,null,"Bullerfri miljö",null,{"$f":"E106","v":"-"},{"$f":"F106","v":"-"},null,null,null,null,{"$f":"IF(E150=\"Liten\",1,IF(E150=\"Måttlig\",2,IF(E150=\"Stor\",3,0)))","v":0},{"$f":"IF(F150=\"Negativ\",-1,IF(F150=\"Positiv\",1,0))","v":0},{"$f":"C150","v":"Begränsad grumlighet"},{"$f":"K149*L149","v":0},"Ingen"]
[null,null,"Begränsad grumlighet",null,{"$f":"'Steg 2 Frågor kring vattenmiljö'!K6","v":"-"},{"$f":"'Steg 2 Frågor kring vattenmiljö'!L6","v":"-"},null,null,null,null,{"$f":"IF(E151=\"Liten\",1,IF(E151=\"Måttlig\",2,IF(E151=\"Stor\",3,0)))","v":0},{"$f":"IF(F151=\"Negativ\",-1,IF(F151=\"Positiv\",1,0))","v":0},{"$f":"C151","v":"Bevarande av kulturarv"},{"$f":"K150*L150","v":0},"Ingen"]
[null,null,"Bevarande av kulturarv",null,{"$f":"IF(E99<>\"\",E99,\"-\")","v":"-"},{"$f":"IF(F99<>\"\",F99,\"-\")","v":"-"},null,null,null,null,null,null,null,{"$f":"AVERAGE(N147:N150)","v":0}]
[14,null,"Inspiration"]
[null,null,"Sammanvägd bedömning",null,{"$f":"IF(COUNTIF(E154:E157,\"Stor\")>=1,\"Stor\",IF(COUNTIF(E154:E157,\"Måttlig\")>=1,\"Måttlig\",IF(COUNTIF(E154:E157,\"Liten\")>=1,\"Liten\",\"\")))","v":""},{"$f":"IF(COUNTIF(F154:F157,\"Negativ\")>=1,\"Negativ\",IF(COUNTIF(F154:F157,\"Positiv\")>=1,\"Positiv\",IF(COUNTIF(F154:F157,\"Ingen påverkan\")>=1,\"Oförändrad\",IF(COUNTIF(F154:F157,\"Oförändrad\")>=1,\"Oförändrad\",IF(COUNTIF(F154:F157,\"Inte definierad\")>=1,\"Inte definierad\",\"\")))))","v":""},null,null,null,null,{"$f":"IF(E154=\"Liten\",1,IF(E154=\"Måttlig\",2,IF(E154=\"Stor\",3,0)))","v":0},{"$f":"IF(F154=\"Negativ\",-1,IF(F154=\"Positiv\",1,0))","v":0},{"$f":"C154","v":"Visuellt ostörda miljöer"},{"$f":"K153*L153","v":0},{"$f":"IF(OR(N153=3,N153=-3),\"Stor\",IF(OR(N153=2,N153=-2),\"Måttlig\",IF(OR(N153=1,N153=-1),\"Liten\",\"Ingen\")))","v":"Ingen"}]
[null,null,"Visuellt ostörda miljöer",null,{"$f":"IF(F154=\"Ingen påverkan\",\"-\",'Steg 2 Frågor kring vattenmiljö'!K24)","v":"-"},{"$f":"'Steg 2 Frågor kring vattenmiljö'!L24","v":"-"},null,null,null,null,{"$f":"IF(E155=\"Liten\",1,IF(E155=\"Måttlig\",2,IF(E155=\"Stor\",3,0)))","v":0},{"$f":"IF(F155=\"Negativ\",-1,IF(F155=\"Positiv\",1,0))","v":0},{"$f":"C155","v":"Bullerfria miljöer"},{"$f":"K154*L154","v":0},{"$f":"IF(OR(N154=3,N154=-3),\"Stor\",IF(OR(N154=2,N154=-2),\"Måttlig\",IF(OR(N154=1,N154=-1),\"Liten\",\"Ingen\")))","v":"Ingen"}]
[null,null,"Bullerfria miljöer",null,{"$f":"E149","v":"-"},{"$f":"F149","v":"-"},null,null,null,null,{"$f":"IF(E156=\"Liten\",1,IF(E156=\"Måttlig\",2,IF(E156=\"Stor\",3,0)))","v":0},{"$f":"IF(F156=\"Negativ\",-1,IF(F156=\"Positiv\",1,0))","v":0},{"$f":"C156","v":"Bevarande av livsmiljö"},{"$f":"K155*L155","v":0},{"$f":"IF(OR(N155=3,N155=-3),\"Stor\",IF(OR(N155=2,N155=-2),\"Måttlig\",IF(OR(N155=1,N155=-1),\"Liten\",\"Ingen\")))","v":"Ingen"}]
[null,null,"Bevarande av livsmiljö",null,{"$f":"IF(E33<>\"\",E33,\"-\")","v":"-"},{"$f":"IF(F33=\"\",\"-\",IF(F33<>\"\",IF(F33=\"Oförändrad\",\"Ingen påverkan\",F33)))","v":"-"},null,null,null,null,{"$f":"IF(E157=\"Liten\",1,IF(E157=\"Måttlig\",2,IF(E157=\"Stor\",3,0)))","v":0},{"$f":"IF(F157=\"Negativ\",-1,IF(F157=\"Positiv\",1,0))","v":0},{"$f":"C157","v":"Upprätthållande av biologisk mångfald"},{"$f":"K156*L156","v":0},{"$f":"IF(OR(N156=3,N156=-3),\"Stor\",IF(OR(N156=2,N156=-2),\"Måttlig\",IF(OR(N156=1,N156=-1),\"Liten\",\"Ingen\")))","v":"Ingen"}]
[null,null,"Upprätthållande av biologisk mångfald",null,{"$f":"IF(E$136<>\"\",E$136,\"-\")","v":"-"},{"$f":"IF(F136=\"\",\"-\",IF(F136<>\"Oförändrad\",F136,\"Ingen påverkan\"))","v":"-"},null,null,null,null,null,null,null,{"$f":"AVERAGE(N153:N156)","v":0}]
[]
[null,null,"Resultat påverkan på samhällsgrupper"]
[]
[null,null,"Grupper som påverkas","Typ av påverkan",null,null,"Storlek",null,"Antal"]

{"sheet":"Steg 5 Resultat för landmiljö","index":6,"n_rows":154,"n_cols":18,"rows_kept":154,"cut":false,"hidden":false,"merged":[[54,2,54,3],[41,2,41,3],[22,4,22,5],[32,4,32,5],[1,2,1,8],[2,2,2,7],[5,4,5,7],[8,4,8,7],[11,4,11,7],[14,2,18,7],[153,3,153,5],[153,6,153,7],[155,3,155,5],[155,6,155,7],[156,3,156,5],[156,6,156,7],[154,3,154,5],[154,6,154,7],[157,3,157,5],[157,6,157,7],[158,3,158,5],[158,6,158,7],[159,3,159,5],[159,6,159,7],[160,3,160,5],[160,6,160,7],[161,3,161,5],[161,6,161,7],[162,3,162,5],[162,6,162,7],[163,3,163,5],[163,6,163,7],[164,3,164,5],[164,6,164,7],[165,3,165,5],[165,6,165,7],[166,3,166,5],[166,6,166,7],[167,3,167,5],[167,6,167,7],[168,3,168,5],[168,6,168,7],[174,6,174,7],[169,3,169,5],[169,6,169,7],[170,3,170,5],[170,6,170,7],[171,3,171,5],[171,6,171,7],[178,3,178,5],[178,6,178,7],[182,3,182,5],[182,6,182,7],[183,3,183,5],[183,6,183,7],[179,3,179,5],[179,6,179,7],[92,2,92,3],[73,2,73,3],[93,2,93,3],[184,3,184,5],[184,6,184,7],[175,3,175,5],[175,6,175,7],[176,3,176,5],[176,6,176,7],[177,3,177,5],[177,6,177,7],[172,3,172,5],[172,6,172,7],[173,3,173,5],[173,6,173,7],[174,3,174,5]]}
[]
[]
[null,null,"Åtgärder och verksamheter vid strandnära miljöer                                                                                                              Resultat från bedömning av påverkan på ekosystemtjänster på land"]
[null,null,"Projektinformation:",null,"Utförare:"]
[null,null,"Projektnamn",null,"Namn på utförare"]
[null,null,{"$f":"IF('Steg 1a Projektinformation'!C7=\"\",\"\",'Steg 1a Projektinformation'!C7)","v":""},null,{"$f":"IF('Steg 1a Projektinformation'!E7:H7=\"\",\"\",'Steg 1a Projektinformation'!E7:H7)","v":""}]
[]
[null,null,"Diarenummer/projektnummer",null,"Organisation/enhet"]
[null,null,{"$f":"IF('Steg 1a Projektinformation'!C10=\"\",\"\",'Steg 1a Projektinformation'!C10)","v":""},null,{"$f":"IF('Steg 1a Projektinformation'!E10=\"\",\"\",'Steg 1a Projektinformation'!E10)","v":""}]
[]
[null,null,"Datum för analys",null,"Typ av vatten"]
[null,null,{"$f":"IF('Steg 1a Projektinformation'!C13=\"\",\"\",'Steg 1a Projektinformation'!C13)","v":""},null,{"$f":"IF('Steg 1a Projektinformation'!E13=\"\",\"\",'Steg 1a Projektinformation'!E13)","v":""}]
[]
[null,null,"Noteringar om projektet:"]
[null,null,{"$f":"IF('Steg 1a Projektinformation'!C16:H16<>\"\",'Steg 1a Projektinformation'!C16:H16,\"\")","v":""}]
[]
[]
[]
[]
[]
[null,null,"Resultat"]
[]
[null,null,"Estetik",null,null,null,null,null,null,null,null,null,null,null,null,null,"Ekosystemtjänster"]
[1,null,"Sammanvägd bedömning av påverkan",null,{"$f":"IF(COUNTIF(E25:E28,\"Stor\")>=1,\"Stor\",IF(COUNTIF(E25:E28,\"Måttlig\")>=1,\"Måttlig\",IF(COUNTIF(E25:E28,\"Liten\")>=1,\"Liten\",\"\")))","v":""},{"$f":"IF(COUNTIF(F25:F28,\"Negativ\")>=1,\"Negativ\",IF(COUNTIF(F25:F28,\"Positiv\")>=1,\"Positiv\",IF(COUNTIF(F25:F28,\"Ingen påverkan\")>=1,\"Oförändrad\",\"\")))","v":""},null,null,null,null,null,null,null,null,null,null,{"$f":"C23","v":"Estetik"},{"$f":"N29","v":0}]
[null,null,"Bullerfria miljöer",null,{"$f":"'Steg 3 Frågor kring landmiljö'!K13","v":"-"},{"$f":"'Steg 3 Frågor kring landmiljö'!L13","v":"-"},null,null,null,null,{"$f":"IF(E25=\"Liten\",1,IF(E25=\"Måttlig\",2,IF(E25=\"Stor\",3,0)))","v":0},{"$f":"IF(F25=\"Negativ\",-1,IF(F25=\"Positiv\",1,0))","v":0},{"$f":"C25","v":"Bullerfria miljöer"},{"$f":"K25*L25","v":0},{"$f":"IF(OR(N25=3,N25=-3),\"Stor\",IF(OR(N25=2,N25=-2),\"Måttlig\",IF(OR(N25=1,N25=-1),\"Liten\",\"Ingen\")))","v":"Ingen"},null,{"$f":"C29","v":"Genetiska resurser"},{"$f":"N33","v":0}]
[null,null,"Visuellt ostörd miljö",null,{"$f":"'Steg 3 Frågor kring landmiljö'!K29","v":"-"},{"$f":"'Steg 3 Frågor kring landmiljö'!L29","v":"-"},null,null,null,null,{"$f":"IF(E26=\"Liten\",1,IF(E26=\"Måttlig\",2,IF(E26=\"Stor\",3,0)))","v":0},{"$f":"IF(F26=\"Negativ\",-1,IF(F26=\"Positiv\",1,0))","v":0},{"$f":"C26","v":"Visuellt ostörd miljö"},{"$f":"K26*L26","v":0},{"$f":"IF(OR(N26=3,N26=-3),\"Stor\",IF(OR(N26=2,N26=-2),\"Måttlig\",IF(OR(N26=1,N26=-1),\"Liten\",\"Ingen\")))","v":"Ingen"},null,{"$f":"C33","v":"Inspiration"},{"$f":"N40","v":0}]
[null,null,"Bevarande av kulturarv",null,{"$f":"IF(E45<>\"\",E45,\"-\")","v":"-"},{"$f":"IF(F45=\"Oförändrad\",\"Ingen påverkan\",IF(F45<>\"\",F45,\"-\"))","v":"-"},null,null,null,null,0,0,"Bevarande av kulturarv",0,"Ingen",null,{"$f":"C40","v":"Jordmånsbildning"},{"$f":"N44","v":0}]
[null,null,"Upprätthållande av biologisk mångfald",null,{"$f":"IF(E$111<>\"\",E$111,\"-\")","v":"-"},{"$f":"IF(F$111=\"Oförändrad\",\"Ingen påverkan\",IF(F$111<>\"\",F$111,\"-\"))","v":"-"},null,null,null,null,0,0,"Upprätthållande av biologisk mångfald",0,"Ingen",null,{"$f":"C44","v":" Kulturarv"},{"$f":"N50","v":0}]
[null,null,"Genetiska resurser",null,null,null,null,null,null,null,null,null,null,{"$f":"AVERAGE(N25:N28)","v":0},null,null,{"$f":"C50","v":"Levande processers nedbrytning av avfall och giftiga ämnen"},{"$f":"N56","v":0}]
[null,null,"Sammanvägd bedömning",null,{"$f":"IF(F30=\"Oförändrad\",\"\",IF(COUNTIF(E31:E32,\"Stor\")>=1,\"Stor\",IF(COUNTIF(E31:E32,\"Måttlig\")>=1,\"Måttlig\",IF(COUNTIF(E31:E32,\"Liten\")>=1,\"Liten\",\"\"))))","v":""},{"$f":"IF(COUNTIF(F31:F32,\"Negativ\")>=1,\"Negativ\",IF(COUNTIF(F31:F32,\"Positiv\")>=1,\"Positiv\",IF(COUNTIF(F31:F32,\"Ingen påverkan\")>=1,\"Oförändrad\",\"\")))","v":""},null,null,null,null,null,null,null,null,null,null,{"$f":"C56","v":"Naturlig luftrening"},{"$f":"N60","v":0}]
[null,null,"Upprätthållande av spridningsvägar för växter och djur",null,{"$f":"IF(F31=\"Ingen påverkan\",\"-\",'Steg 3 Frågor kring landmiljö'!K27)","v":"-"},{"$f":"'Steg 3 Frågor kring landmiljö'!L27","v":"-"},null,null,null,null,0,0,"Upprätthållande av spridningsvägar för växter och djur",0,"Ingen",null,{"$f":"C60","v":"Primärproduktion på land"},{"$f":"N66","v":0}]
[null,null,"Upprätthållande av biologisk mångfald",null,{"$f":"IF(E$111<>\"\",E$111,\"-\")","v":"-"},{"$f":"IF(F$111=\"Oförändrad\",\"Ingen påverkan\",IF(F$111<>\"\",F$111,\"-\"))","v":"-"},null,null,null,null,0,0,"Upprätthållande av biologisk mångfald",0,"Ingen",null,{"$f":"C66","v":"Reglering av atmosfärens kemiska sammansättning (kolbindning)"},{"$f":"N71","v":0}]
[null,null,"Inspiration",null,null,null,null,null,null,null,null,null,null,{"$f":"AVERAGE(N31:N32)","v":0},null,null,{"$f":"C71","v":"Reglering av fastmaterialflöden och extrema händelser"},{"$f":"N76","v":0}]
[2,null,"Sammanvägd bedömning av påverkan",null,{"$f":"IF(F34=\"Oförändrad\",\"\",IF(COUNTIF(E35:E39,\"Stor\")>=1,\"Stor\",IF(COUNTIF(E35:E39,\"Måttlig\")>=1,\"Måttlig\",IF(COUNTIF(E35:E39,\"Liten\")>=1,\"Liten\",\"\"))))","v":""},{"$f":"IF(COUNTIF(F35:F39,\"Negativ\")>=1,\"Negativ\",IF(COUNTIF(F35:F39,\"Positiv\")>=1,\"Positiv\",IF(COUNTIF(F35:F39,\"Ingen påverkan\")>=1,\"Oförändrad\",\"\")))","v":""},null,null,null,null,null,null,null,null,null,null,{"$f":"C76","v":"Reglering av luftflöden och mikroklimat"},{"$f":"N81","v":0}]
[null,null,"Bullerfri miljö",null,{"$f":"'Steg 3 Frågor kring landmiljö'!K13","v":"-"},{"$f":"'Steg 3 Frågor kring landmiljö'!L13","v":"-"},null,null,null,null,0,0,"Bullerfri miljö",0,"Ingen",null,{"$f":"C81","v":"Rekreation och hälsa i terrestra miljöer"},{"$f":"N89","v":0}]
[null,null,"Visuellt ostörd miljö",null,{"$f":"'Steg 3 Frågor kring landmiljö'!K29","v":"-"},{"$f":"'Steg 3 Frågor kring landmiljö'!L29","v":"-"},null,null,null,null,0,0,"Visuellt ostörd miljö",0,"Ingen",null,{"$f":"C89","v":"Livsmiljö (terrester)"},{"$f":"N97","v":0}]
[null,null,"Bevarande av livsmiljö",null,{"$f":"IF(E$104<>\"\",E$104,\"-\")","v":"-"},{"$f":"IF(F$104=\"Oförändrad\",\"Ingen påverkan\",IF(F$104<>\"\",F$104,\"-\"))","v":"-"},null,null,null,null,0,0,"Bevarande av livsmiljö",0,"Ingen",null,{"$f":"C97","v":"Turism"},{"$f":"N106","v":0}]
[null,null,"Upprätthållande av biologisk mångfald",null,{"$f":"IF(E$111<>\"\",E$111,\"-\")","v":"-"},{"$f":"IF(F$111=\"Oförändrad\",\"Ingen påverkan\",IF(F$111<>\"\",F$111,\"-\"))","v":"-"},null,null,null,null,0,0,"Upprätthållande av biologisk mångfald",0,"Ingen",null,{"$f":"C106","v":"Uppräthållande av biokemiska cykler"},{"$f":"N110","v":0}]
[null,null,"Bevarande av kulturarv",null,{"$f":"IF(E45<>\"\",E45,\"-\")","v":"-"},{"$f":"IF(F45=\"Oförändrad\",\"Ingen påverkan\",IF(F45<>\"\",F45,\"-\"))","v":"-"},null,null,null,null,{"$f":"IF(E39=\"Liten\",1,IF(E39=\"Måttlig\",2,IF(E39=\"Stor\",3,0)))","v":0},{"$f":"IF(F39=\"Negativ\",-1,IF(F39=\"Positiv\",1,0))","v":0},{"$f":"C39","v":"Bevarande av kulturarv"},0,"Ingen",null,{"$f":"C110","v":"Upprätthållande av biologisk mångfald"},{"$f":"N115","v":0}]
[null,null,"Jordmånsbildning",null,null,null,null,null,null,null,null,null,null,{"$f":"AVERAGE(N35:N39)","v":0},null,null,{"$f":"C115","v":"Upprätthållande av terrestra livscykler och näringsvävarnas dynamik"},{"$f":"N121","v":0}]
[null,null,"Sammanvägd bedömning av påverkan",null,{"$f":"IF(COUNTIF(E42:E43,\"Stor\")>=1,\"Stor\",IF(COUNTIF(E42:E43,\"Måttlig\")>=1,\"Måttlig\",IF(COUNTIF(E42:E43,\"Liten\")>=1,\"Liten\",\"\")))","v":""},{"$f":"IF(COUNTIF(F42:F43,\"Negativ\")>=1,\"Negativ\",IF(COUNTIF(F42:F43,\"Positiv\")>=1,\"Positiv\",IF(COUNTIF(F42:F43,\"Ingen påverkan\")>=1,\"Oförändrad\",\"\")))","v":""},null,null,null,null,null,null,null,null,null,null,{"$f":"C121","v":"Utsmyckningar"},{"$f":"N126","v":0}]
[null,null,"Förekomst av jord och markvegetation",null,{"$f":"'Steg 3 Frågor kring landmiljö'!K15","v":"-"},{"$f":"'Steg 3 Frågor kring landmiljö'!L15","v":"-"},null,null,null,null,{"$f":"IF(E42=\"Liten\",1,IF(E42=\"Måttlig\",2,IF(E42=\"Stor\",3,0)))","v":0},{"$f":"IF(F42=\"Negativ\",-1,IF(F42=\"Positiv\",1,0))","v":0},{"$f":"C42","v":"Förekomst av jord och markvegetation"},0,"Ingen",null,{"$f":"C126","v":"Kunskap (vetenskap och utbildning)"},{"$f":"N131","v":0}]
[null,null,"Förnapåfyllning",null,{"$f":"'Steg 3 Frågor kring landmiljö'!K17","v":"-"},{"$f":"'Steg 3 Frågor kring landmiljö'!L17","v":"-"},null,null,null,null,{"$f":"IF(E43=\"Liten\",1,IF(E43=\"Måttlig\",2,IF(E43=\"Stor\",3,0)))","v":0},{"$f":"IF(F43=\"Negativ\",-1,IF(F43=\"Positiv\",1,0))","v":0},{"$f":"C43","v":"Förnapåfyllning"},0,"Ingen",null,{"$f":"C131","v":"Kontroll av skadedjur och sjukdomar"},{"$f":"N135","v":0}]
[null,null," Kulturarv",null,null,null,null,null,null,null,null,null,null,{"$f":"AVERAGE(N42:N43)","v":0},null,null,{"$f":"C135","v":"Livsmedel från terrestra vilda och odlade växter och djur"},{"$f":"N141","v":0}]
[3,null,"Sammanvägd bedömning av påverkan",null,{"$f":"IF(COUNTIF(E46:E48,\"Stor\")>=1,\"Stor\",IF(COUNTIF(E46:E48,\"Måttlig\")>=1,\"Måttlig\",IF(COUNTIF(E46:E48,\"Liten\")>=1,\"Liten\",\"\")))","v":""},{"$f":"IF(COUNTIF(F46:F48,\"Negativ\")>=1,\"Negativ\",IF(COUNTIF(F46:F48,\"Positiv\")>=1,\"Positiv\",IF(COUNTIF(F46:F48,\"Ingen påverkan\")>=1,\"Oförändrad\",\"\")))","v":""},null,null,null,null,null,null,null,null,null,null,{"$f":"C141","v":"Terrestra fiberråvaror"},{"$f":"N144","v":0}]
[null,null,"Bevarande av fornlämning eller kulturlämning",null,{"$f":"'Steg 3 Frågor kring landmiljö'!K6","v":"-"},{"$f":"'Steg 3 Frågor kring landmiljö'!L6","v":"-"},null,null,null,null,{"$f":"IF(E46=\"Liten\",1,IF(E46=\"Måttlig\",2,IF(E46=\"Stor\",3,0)))","v":0},{"$f":"IF(F46=\"Negativ\",-1,IF(F46=\"Positiv\",1,0))","v":0},{"$f":"C46","v":"Bevarande av fornlämning eller kulturlämning"},0,{"$f":"IF(OR(N46=3,N46=-3),\"Stor\",IF(OR(N46=2,N46=-2),\"Måttlig\",IF(OR(N46=1,N46=-1),\"Liten\",\"Ingen\")))","v":"Ingen"},null,{"$f":"C144","v":"Resurser bioteknik och kemikalieråvaror"},{"$f":"N148","v":0}]
[null,null,"Bevarande av närmiljö och omgivning till lämning",null,{"$f":"'Steg 3 Frågor kring landmiljö'!K9","v":"-"},{"$f":"'Steg 3 Frågor kring landmiljö'!L9","v":"-"},null,null,null,null,{"$f":"IF(E47=\"Liten\",1,IF(E47=\"Måttlig\",2,IF(E47=\"Stor\",3,0)))","v":0},{"$f":"IF(F47=\"Negativ\",-1,IF(F47=\"Positiv\",1,0))","v":0},{"$f":"C47","v":"Bevarande av närmiljö och omgivning till lämning"},0,{"$f":"IF(OR(N47=3,N47=-3),\"Stor\",IF(OR(N47=2,N47=-2),\"Måttlig\",IF(OR(N47=1,N47=-1),\"Liten\",\"Ingen\")))","v":"Ingen"},null,{"$f":"C148","v":"Bioenergi från terrestra växter"},{"$f":"N152","v":0}]
[null,null,"Bevarande av konserverande miljö",null,{"$f":"'Steg 3 Frågor kring landmiljö'!K7","v":"-"},{"$f":"'Steg 3 Frågor kring landmiljö'!L7","v":"-"},null,null,null,null,{"$f":"IF(E48=\"Liten\",1,IF(E48=\"Måttlig\",2,IF(E48=\"Stor\",3,0)))","v":0},{"$f":"IF(F48=\"Negativ\",-1,IF(F48=\"Positiv\",1,0))","v":0},{"$f":"C48","v":"Bevarande av konserverande miljö"},0,{"$f":"IF(OR(N48=3,N48=-3),\"Stor\",IF(OR(N48=2,N48=-2),\"Måttlig\",IF(OR(N48=1,N48=-1),\"Liten\",\"Ingen\")))","v":"Ingen"}]
[null,null,null,null,null,null,null,null,null,null,null,null,null,null,null,null,"SUMMA",{"$f":"AVERAGE(R24:R48)","v":0}]
[null,null,"Levande processers nedbrytning av avfall och giftiga ämnen",null,null,null,null,null,null,null,null,null,null,{"$f":"AVERAGE(N46:N48)","v":0}]
[null,null,"Sammanvägd bedömning av påverkan",null,{"$f":"IF(COUNTIF(E52:E54,\"Stor\")>=1,\"Stor\",IF(COUNTIF(E52:E54,\"Måttlig\")>=1,\"Måttlig\",IF(COUNTIF(E52:E54,\"Liten\")>=1,\"Liten\",\"\")))","v":""},{"$f":"IF(COUNTIF(F52:F55,\"Negativ\")>=1,\"Negativ\",IF(COUNTIF(F52:F55,\"Positiv\")>=1,\"Positiv\",IF(COUNTIF(F52:F55,\"Ingen påverkan\")>=1,\"Oförändrad\",\"\")))","v":""}]
[null,null,"Förekomst av jord och markvegetation",null,{"$f":"'Steg 3 Frågor kring landmiljö'!K15","v":"-"},{"$f":"'Steg 3 Frågor kring landmiljö'!L15","v":"-"},null,null,null,null,{"$f":"IF(E52=\"Liten\",1,IF(E52=\"Måttlig\",2,IF(E52=\"Stor\",3,0)))","v":0},{"$f":"IF(F52=\"Negativ\",-1,IF(F52=\"Positiv\",1,0))","v":0},{"$f":"C52","v":"Förekomst av jord och markvegetation"},0,{"$f":"IF(OR(N52=3,N52=-3),\"Stor\",IF(OR(N52=2,N52=-2),\"Måttlig\",IF(OR(N52=1,N52=-1),\"Liten\",\"Ingen\")))","v":"Ingen"}]
[null,null,"Frånvaro av dränerande strukturer i våtmarker, sumpskogar, tjärn och mossar",null,{"$f":"'Steg 3 Frågor kring landmiljö'!K16","v":"-"},{"$f":"'Steg 3 Frågor kring landmiljö'!L16","v":"-"},null,null,null,null,{"$f":"IF(E53=\"Liten\",1,IF(E53=\"Måttlig\",2,IF(E53=\"Stor\",3,0)))","v":0},{"$f":"IF(F53=\"Negativ\",-1,IF(F53=\"Positiv\",1,0))","v":0},{"$f":"C53","v":"Frånvaro av dränerande strukturer i våtmarker, sumpskogar, tjärn och mossar"},0,{"$f":"IF(OR(N53=3,N53=-3),\"Stor\",IF(OR(N53=2,N53=-2),\"Måttlig\",IF(OR(N53=1,N53=-1),\"Liten\",\"Ingen\")))","v":"Ingen"}]
[null,null,"Upprätthållande av biologisk mångfald",null,{"$f":"IF(E$111<>\"\",E$111,\"-\")","v":"-"},{"$f":"IF(F$111=\"Oförändrad\",\"Ingen påverkan\",IF(F$111<>\"\",F$111,\"-\"))","v":"-"},null,null,null,null,{"$f":"IF(E54=\"Liten\",1,IF(E54=\"Måttlig\",2,IF(E54=\"Stor\",3,0)))","v":0},{"$f":"IF(F54=\"Negativ\",-1,IF(F54=\"Positiv\",1,0))","v":0},{"$f":"C54","v":"Upprätthållande av biologisk mångfald"},0,{"$f":"IF(OR(N54=3,N54=-3),\"Stor\",IF(OR(N54=2,N54=-2),\"Måttlig\",IF(OR(N54=1,N54=-1),\"Liten\",\"Ingen\")))","v":"Ingen"}]
[]
[null,null,"Naturlig luftrening",null,null,null,null,null,null,null,null,null,null,{"$f":"AVERAGE(N52:N54)","v":0}]
[4,null,"Sammanvägd bedömning av påverkan",null,{"$f":"IF(COUNTIF(E58:E59,\"Stor\")>=1,\"Stor\",IF(COUNTIF(E58:E59,\"Måttlig\")>=1,\"Måttlig\",IF(COUNTIF(E58:E59,\"Liten\")>=1,\"Liten\",\"\")))","v":""},{"$f":"IF(COUNTIF(F58:F59,\"Negativ\")>=1,\"Negativ\",IF(COUNTIF(F58:F59,\"Positiv\")>=1,\"Positiv\",IF(COUNTIF(F58:F59,\"Ingen påverkan\")>=1,\"Oförändrad\",\"\")))","v":""}]
[null,null,"Vegetation, främst träd och buskar",null,{"$f":"'Steg 3 Frågor kring landmiljö'!K28","v":"-"},{"$f":"'Steg 3 Frågor kring landmiljö'!L28","v":"-"},null,null,null,null,{"$f":"IF(E58=\"Liten\",1,IF(E58=\"Måttlig\",2,IF(E58=\"Stor\",3,0)))","v":0},{"$f":"IF(F58=\"Negativ\",-1,IF(F58=\"Positiv\",1,0))","v":0},{"$f":"C58","v":"Vegetation, främst träd och buskar"},0,{"$f":"IF(OR(N58=3,N58=-3),\"Stor\",IF(OR(N58=2,N58=-2),\"Måttlig\",IF(OR(N58=1,N58=-1),\"Liten\",\"Ingen\")))","v":"Ingen"}]
[null,null,"Primärproduktion ",null,{"$f":"IF(E$61<>\"\",E$61,\"-\")","v":"-"},{"$f":"IF(F$61=\"Oförändrad\",\"Ingen påverkan\",IF(F$61<>\"\",F$61,\"-\"))","v":"-"},null,null,null,null,{"$f":"IF(E59=\"Liten\",1,IF(E59=\"Måttlig\",2,IF(E59=\"Stor\",3,0)))","v":0},{"$f":"IF(F59=\"Negativ\",-1,IF(F59=\"Positiv\",1,0))","v":0},{"$f":"C59","v":"Primärproduktion "},0,{"$f":"IF(OR(N59=3,N59=-3),\"Stor\",IF(OR(N59=2,N59=-2),\"Måttlig\",IF(OR(N59=1,N59=-1),\"Liten\",\"Ingen\")))","v":"Ingen"}]
[null,null,"Primärproduktion på land",null,null,null,null,null,null,null,null,null,null,{"$f":"AVERAGE(N58:N59)","v":0}]
[null,null,"Sammanvägd bedömning",null,{"$f":"IF(COUNTIF(E62:E65,\"Stor\")>=1,\"Stor\",IF(COUNTIF(E62:E65,\"Måttlig\")>=1,\"Måttlig\",IF(COUNTIF(E62:E65,\"Liten\")>=1,\"Liten\",\"\")))","v":""},{"$f":"IF(COUNTIF(F62:F65,\"Negativ\")>=1,\"Negativ\",IF(COUNTIF(F62:F65,\"Positiv\")>=1,\"Positiv\",IF(COUNTIF(F62:F65,\"Ingen påverkan\")>=1,\"Oförändrad\",\"\")))","v":""}]
[null,null,"Solljus",null,{"$f":"'Steg 3 Frågor kring landmiljö'!K18","v":"-"},{"$f":"'Steg 3 Frågor kring landmiljö'!L18","v":"-"},null,null,null,null,{"$f":"IF(E62=\"Liten\",1,IF(E62=\"Måttlig\",2,IF(E62=\"Stor\",3,0)))","v":0},{"$f":"IF(F62=\"Negativ\",-1,IF(F62=\"Positiv\",1,0))","v":0},{"$f":"C62","v":"Solljus"},0,{"$f":"IF(OR(N62=3,N62=-3),\"Stor\",IF(OR(N62=2,N62=-2),\"Måttlig\",IF(OR(N62=1,N62=-1),\"Liten\",\"Ingen\")))","v":"Ingen"}]
[null,null,"Tillgång på näringsämnen",null,{"$f":"'Steg 3 Frågor kring landmiljö'!K20","v":"-"},{"$f":"IF('Steg 3 Frågor kring landmiljö'!L20=\"Positiv\",\"Negativ\",IF('Steg 3 Frågor kring landmiljö'!L20=\"Negativ\",\"Positiv\",'Steg 3 Frågor kring landmiljö'!L20))","v":"-"},null,null,null,null,{"$f":"IF(E63=\"Liten\",1,IF(E63=\"Måttlig\",2,IF(E63=\"Stor\",3,0)))","v":0},{"$f":"IF(F63=\"Negativ\",-1,IF(F63=\"Positiv\",1,0))","v":0},{"$f":"C63","v":"Tillgång på näringsämnen"},0,{"$f":"IF(OR(N63=3,N63=-3),\"Stor\",IF(OR(N63=2,N63=-2),\"Måttlig\",IF(OR(N63=1,N63=-1),\"Liten\",\"Ingen\")))","v":"Ingen"}]
[null,null,"Tillgång till växttillgängligt vatten",null,{"$f":"'Steg 3 Frågor kring landmiljö'!K23","v":"-"},{"$f":"'Steg 3 Frågor kring landmiljö'!L23","v":"-"},null,null,null,null,{"$f":"IF(E64=\"Liten\",1,IF(E64=\"Måttlig\",2,IF(E64=\"Stor\",3,0)))","v":0},{"$f":"IF(F64=\"Negativ\",-1,IF(F64=\"Positiv\",1,0))","v":0},{"$f":"C64","v":"Tillgång till växttillgängligt vatten"},0,{"$f":"IF(OR(N64=3,N64=-3),\"Stor\",IF(OR(N64=2,N64=-2),\"Måttlig\",IF(OR(N64=1,N64=-1),\"Liten\",\"Ingen\")))","v":"Ingen"}]
[null,null,"Upprätthållande av biokemiska cykler",null,{"$f":"IF(E107=\"\",\"-\",E107)","v":"-"},{"$f":"IF(F$107=\"Oförändrad\",\"Ingen påverkan\",IF(F$107<>\"\",F$107,\"-\"))","v":"-"},null,null,null,null,{"$f":"IF(E65=\"Liten\",1,IF(E65=\"Måttlig\",2,IF(E65=\"Stor\",3,0)))","v":0},{"$f":"IF(F65=\"Negativ\",-1,IF(F65=\"Positiv\",1,0))","v":0},{"$f":"C65","v":"Upprätthållande av biokemiska cykler"},0,{"$f":"IF(OR(N65=3,N65=-3),\"Stor\",IF(OR(N65=2,N65=-2),\"Måttlig\",IF(OR(N65=1,N65=-1),\"Liten\",\"Ingen\")))","v":"Ingen"}]
[null,null,"Reglering av atmosfärens kemiska sammansättning (kolbindning)",null,null,null,null,null,null,null,null,null,null,{"$f":"AVERAGE(N62:N65)","v":0}]
[null,null,"Sammanvägd bedömning",null,{"$f":"IF(COUNTIF(E68:E70,\"Stor\")>=1,\"Stor\",IF(COUNTIF(E68:E70,\"Måttlig\")>=1,\"Måttlig\",IF(COUNTIF(E68:E70,\"Liten\")>=1,\"Liten\",\"\")))","v":""},{"$f":"IF(COUNTIF(F68:F70,\"Negativ\")>=1,\"Negativ\",IF(COUNTIF(F68:F70,\"Positiv\")>=1,\"Positiv\",IF(COUNTIF(F68:F70,\"Ingen påverkan\")>=1,\"Oförändrad\",\"\")))","v":""}]
[null,null,"Primärproduktion",null,{"$f":"IF(E$61=\"\",\"-\",E$61)","v":"-"},{"$f":"IF(F$61=\"Oförändrad\",\"Ingen påverkan\",IF(F$61<>\"\",F$61,\"-\"))","v":"-"},null,null,null,null,{"$f":"IF(E68=\"Liten\",1,IF(E68=\"Måttlig\",2,IF(E68=\"Stor\",3,0)))","v":0},{"$f":"IF(F68=\"Negativ\",-1,IF(F68=\"Positiv\",1,0))","v":0},{"$f":"C68","v":"Primärproduktion"},0,{"$f":"IF(OR(N68=3,N68=-3),\"Stor\",IF(OR(N68=2,N68=-2),\"Måttlig\",IF(OR(N68=1,N68=-1),\"Liten\",\"Ingen\")))","v":"Ingen"}]
[null,null,"Bevarande av äldre skog",null,{"$f":"E125","v":"-"},{"$f":"F125","v":"-"},null,null,null,null,{"$f":"IF(E69=\"Liten\",1,IF(E69=\"Måttlig\",2,IF(E69=\"Stor\",3,0)))","v":0},{"$f":"IF(F69=\"Negativ\",-1,IF(F69=\"Positiv\",1,0))","v":0},{"$f":"C69","v":"Bevarande av äldre skog"},0,{"$f":"IF(OR(N69=3,N69=-3),\"Stor\",IF(OR(N69=2,N69=-2),\"Måttlig\",IF(OR(N69=1,N69=-1),\"Liten\",\"Ingen\")))","v":"Ingen"}]
[null,null,"Förekomst av jord och markvegetation",null,{"$f":"'Steg 3 Frågor kring landmiljö'!K15","v":"-"},{"$f":"'Steg 3 Frågor kring landmiljö'!L15","v":"-"},null,null,null,null,{"$f":"IF(E70=\"Liten\",1,IF(E70=\"Måttlig\",2,IF(E70=\"Stor\",3,0)))","v":0},{"$f":"IF(F70=\"Negativ\",-1,IF(F70=\"Positiv\",1,0))","v":0},{"$f":"C70","v":"Förekomst av jord och markvegetation"},0,{"$f":"IF(OR(N70=3,N70=-3),\"Stor\",IF(OR(N70=2,N70=-2),\"Måttlig\",IF(OR(N70=1,N70=-1),\"Liten\",\"Ingen\")))","v":"Ingen"}]
[null,null,"Reglering av fastmaterialflöden och extrema händelser",null,null,null,null,null,null,null,null,null,null,{"$f":"AVERAGE(N68:N70)","v":0}]
[null,null,"Sammanvägd bedömning",null,{"$f":"IF(COUNTIF(E73:E74,\"Stor\")>=1,\"Stor\",IF(COUNTIF(E73:E74,\"Måttlig\")>=1,\"Måttlig\",IF(COUNTIF(E73:E74,\"Liten\")>=1,\"Liten\",\"\")))","v":""},{"$f":"IF(COUNTIF(F73:F74,\"Negativ\")>=1,\"Negativ\",IF(COUNTIF(F73:F74,\"Positiv\")>=1,\"Positiv\",IF(COUNTIF(F73:F74,\"Ingen påverkan\")>=1,\"Oförändrad\",\"\")))","v":""}]
[null,null,"Förekomst av jord och markvegetation",null,{"$f":"'Steg 3 Frågor kring landmiljö'!K15","v":"-"},{"$f":"'Steg 3 Frågor kring landmiljö'!L15","v":"-"},null,null,null,null,{"$f":"IF(E73=\"Liten\",1,IF(E73=\"Måttlig\",2,IF(E73=\"Stor\",3,0)))","v":0},{"$f":"IF(F73=\"Negativ\",-1,IF(F73=\"Positiv\",1,0))","v":0},{"$f":"C73","v":"Förekomst av jord och markvegetation"},0,{"$f":"IF(OR(N73=3,N73=-3),\"Stor\",IF(OR(N73=2,N73=-2),\"Måttlig\",IF(OR(N73=1,N73=-1),\"Liten\",\"Ingen\")))","v":"Ingen"}]
[null,null,"Frånvaro av dränerande strukturer i våtmarker, sumpskogar, tjärn och mossar",null,{"$f":"'Steg 3 Frågor kring landmiljö'!K16","v":"-"},{"$f":"'Steg 3 Frågor kring landmiljö'!L16","v":"-"},null,null,null,null,{"$f":"IF(E74=\"Liten\",1,IF(E74=\"Måttlig\",2,IF(E74=\"Stor\",3,0)))","v":0},{"$f":"IF(F74=\"Negativ\",-1,IF(F74=\"Positiv\",1,0))","v":0},{"$f":"C74","v":"Frånvaro av dränerande strukturer i våtmarker, sumpskogar, tjärn och mossar"},0,{"$f":"IF(OR(N74=3,N74=-3),\"Stor\",IF(OR(N74=2,N74=-2),\"Måttlig\",IF(OR(N74=1,N74=-1),\"Liten\",\"Ingen\")))","v":"Ingen"}]
[]
[null,null,"Reglering av luftflöden och mikroklimat",null,null,null,null,null,null,null,null,null,null,{"$f":"AVERAGE(N73:N74)","v":0}]
[null,null,"Sammanvägd bedömning",null,{"$f":"IF(COUNTIF(E78:E79,\"Stor\")>=1,\"Stor\",IF(COUNTIF(E78:E79,\"Måttlig\")>=1,\"Måttlig\",IF(COUNTIF(E78:E79,\"Liten\")>=1,\"Liten\",\"\")))","v":""},{"$f":"IF(COUNTIF(F78:F79,\"Negativ\")>=1,\"Negativ\",IF(COUNTIF(F78:F79,\"Positiv\")>=1,\"Positiv\",IF(COUNTIF(F78:F79,\"Ingen\")>=1,\"Oförändrad\",\"\")))","v":""}]
[null,null,"Bevarande av lövträd och lövridåer framför barrträdsbestånd",null,{"$f":"'Steg 3 Frågor kring landmiljö'!K8","v":"-"},{"$f":"'Steg 3 Frågor kring landmiljö'!L8","v":"-"},null,null,null,null,{"$f":"IF(E78=\"Liten\",1,IF(E78=\"Måttlig\",2,IF(E78=\"Stor\",3,0)))","v":0},{"$f":"IF(F78=\"Negativ\",-1,IF(F78=\"Positiv\",1,0))","v":0},{"$f":"C78","v":"Bevarande av lövträd och lövridåer framför barrträdsbestånd"},0,{"$f":"IF(OR(N78=3,N78=-3),\"Stor\",IF(OR(N78=2,N78=-2),\"Måttlig\",IF(OR(N78=1,N78=-1),\"Liten\",\"Ingen\")))","v":"Ingen"}]
[null,null,"Förekomst av vegetation, främst träd och buskar",null,{"$f":"'Steg 3 Frågor kring landmiljö'!K28","v":"-"},{"$f":"'Steg 3 Frågor kring landmiljö'!L28","v":"-"},null,null,null,null,{"$f":"IF(E79=\"Liten\",1,IF(E79=\"Måttlig\",2,IF(E79=\"Stor\",3,0)))","v":0},{"$f":"IF(F79=\"Negativ\",-1,IF(F79=\"Positiv\",1,0))","v":0},{"$f":"C79","v":"Förekomst av vegetation, främst träd och buskar"},0,{"$f":"IF(OR(N79=3,N79=-3),\"Stor\",IF(OR(N79=2,N79=-2),\"Måttlig\",IF(OR(N79=1,N79=-1),\"Liten\",\"Ingen\")))","v":"Ingen"}]
[]
[null,null,"Rekreation och hälsa i terrestra miljöer",null,null,null,null,null,null,null,null,null,null,{"$f":"AVERAGE(N78:N79)","v":0}]
[6,null,"Sammanvägd bedömning",null,{"$f":"IF(COUNTIF(E83:E88,\"Stor\")>=1,\"Stor\",IF(COUNTIF(E83:E88,\"Måttlig\")>=1,\"Måttlig\",IF(COUNTIF(E83:E88,\"Liten\")>=1,\"Liten\",\"\")))","v":""},{"$f":"IF(COUNTIF(F83:F88,\"Negativ\")>=1,\"Negativ\",IF(COUNTIF(F83:F88,\"Positiv\")>=1,\"Positiv\",IF(COUNTIF(F83:F88,\"Ingen påverkan\")>=1,\"Oförändrad\",\"\")))","v":""}]
[null,null,"Bostadsnära naturområden",null,{"$f":"'Steg 3 Frågor kring landmiljö'!K12","v":"-"},{"$f":"'Steg 3 Frågor kring landmiljö'!L12","v":"-"},null,null,null,null,{"$f":"IF(E83=\"Liten\",1,IF(E83=\"Måttlig\",2,IF(E83=\"Stor\",3,0)))","v":0},{"$f":"IF(F83=\"Negativ\",-1,IF(F83=\"Positiv\",1,0))","v":0},{"$f":"C83","v":"Bostadsnära naturområden"},0,{"$f":"IF(OR(N83=3,N83=-3),\"Stor\",IF(OR(N83=2,N83=-2),\"Måttlig\",IF(OR(N83=1,N83=-1),\"Liten\",\"Ingen\")))","v":"Ingen"}]
[null,null,"Visuellt ostörd miljö",null,{"$f":"'Steg 3 Frågor kring landmiljö'!K29","v":"-"},{"$f":"'Steg 3 Frågor kring landmiljö'!L29","v":"-"},null,null,null,null,0,0,"Visuellt ostörd miljö",0,"Ingen"]
[null,null,"Bullerfri miljö",null,{"$f":"'Steg 3 Frågor kring landmiljö'!K13","v":"-"},{"$f":"'Steg 3 Frågor kring landmiljö'!L13","v":"-"},null,null,null,null,0,0,"Bullerfri miljö",0,"Ingen"]
[null,null,"Upprätthållande av biologisk mångfald",null,{"$f":"IF(E$111<>\"\",E$111,\"-\")","v":"-"},{"$f":"IF(F$111=\"Oförändrad\",\"Ingen påverkan\",IF(F$111<>\"\",F$111,\"-\"))","v":"-"},null,null,null,null,0,0,"Upprätthållande av biologisk mångfald",0,"Ingen"]
[null,null,"Bevarande av livsmiljö",null,{"$f":"'Steg 3 Frågor kring landmiljö'!K15","v":"-"},{"$f":"'Steg 3 Frågor kring landmiljö'!L15","v":"-"},null,null,null,null,0,0,"Bevarande av livsmiljö",0,"Ingen"]
[null,null,"Bevarande av kulturarv",null,{"$f":"IF(E45<>\"\",E45,\"-\")","v":"-"},{"$f":"IF(F45=\"Oförändrad\",\"Ingen påverkan\",IF(F45<>\"\",F45,\"-\"))","v":"-"},null,null,null,null,0,0,"Bevarande av kulturarv",0,"Ingen"]
[null,null,"Livsmiljö (terrester)",null,null,null,null,null,null,null,null,null,null,{"$f":"AVERAGE(N83:N88)","v":0}]
[7,null,"Sammanvägd bedömning",null,{"$f":"IF(F90=\"Oförändrad\",\"\",IF(COUNTIF(E91:E96,\"Stor\")>=1,\"Stor\",IF(COUNTIF(E91:E96,\"Måttlig\")>=1,\"Måttlig\",IF(COUNTIF(E91:E96,\"Liten\")>=1,\"Liten\",\"\"))))","v":""},{"$f":"IF(COUNTIF(F91:F96,\"Negativ\")>=1,\"Negativ\",IF(COUNTIF(F91:F96,\"Positiv\")>=1,\"Positiv\",IF(COUNTIF(F91:F96,\"Ingen påverkan\")>=1,\"Oförändrad\",\"\")))","v":""}]
[null,null,"Frånvaro av dränerande strukturer (diken) i våtmarker, sumpskogar, tjärn och mossar",null,{"$f":"'Steg 3 Frågor kring landmiljö'!K16","v":"-"},{"$f":"'Steg 3 Frågor kring landmiljö'!L16","v":"-"},null,null,null,null,{"$f":"IF(E91=\"Liten\",1,IF(E91=\"Måttlig\",2,IF(E91=\"Stor\",3,0)))","v":0},{"$f":"IF(F91=\"Negativ\",-1,IF(F91=\"Positiv\",1,0))","v":0},{"$f":"C91","v":"Frånvaro av dränerande strukturer (diken) i våtmarker, sumpskogar, tjärn och mossar"},0,{"$f":"IF(OR(N91=3,N91=-3),\"Stor\",IF(OR(N91=2,N91=-2),\"Måttlig\",IF(OR(N91=1,N91=-1),\"Liten\",\"Ingen\")))","v":"Ingen"}]
[null,null,"Tillgång till en mångfald av biotoper",null,{"$f":"'Steg 3 Frågor kring landmiljö'!K19","v":"-"},{"$f":"'Steg 3 Frågor kring landmiljö'!L19","v":"-"},null,null,null,null,0,0,"Tillgång till en mångfald av biotoper",0,{"$f":"IF(OR(N92=3,N92=-3),\"Stor\",IF(OR(N92=2,N92=-2),\"Måttlig\",IF(OR(N92=1,N92=-1),\"Liten\",\"Ingen\")))","v":"Ingen"}]
[null,null,"Upprätthållande av hävd (bete, slåtter) för biotoper där så är skäligt (betesmark, äng)",null,{"$f":"'Steg 3 Frågor kring landmiljö'!K24","v":"-"},{"$f":"'Steg 3 Frågor kring landmiljö'!L24","v":"-"},null,null,null,null,0,0,"Upprätthållande av hävd (bete, slåtter) för biotoper där så är skäligt (betesmark, äng)",{"$f":"K93*L93","v":0},{"$f":"IF(OR(N93=3,N93=-3),\"Stor\",IF(OR(N93=2,N93=-2),\"Måttlig\",IF(OR(N93=1,N93=-1),\"Liten\",\"Ingen\")))","v":"Ingen"}]
[null,null,"Upprätthållande av spridningsvägar för växter och djur",null,{"$f":"IF(F94=\"Ingen påverkan\",\"-\",'Steg 3 Frågor kring landmiljö'!K27)","v":"-"},{"$f":"'Steg 3 Frågor kring landmiljö'!L27","v":"-"},null,null,null,null,0,0,"Upprätthållande av spridningsvägar för växter och djur",0,"Ingen"]
[null,null,"Primärproduktion",null,{"$f":"IF(E$61=\"\",\"-\",E$61)","v":"-"},{"$f":"IF(F$61=\"Oförändrad\",\"Ingen påverkan\",IF(F61=\"Positiv\",\"Negativ\",IF(F61=\"Negativ\",\"Positiv\",IF(F$61<>\"\",F$61,\"-\"))))","v":"-"},null,null,null,null,0,0,"Primärproduktion",0,"Ingen"]
[null,null,"Upprätthållande av biokemiska cykler",null,{"$f":"E107","v":"-"},{"$f":"IF(F107=\"Oförändrad\",\"Ingen påverkan\",F107)","v":"-"},null,null,null,null,0,0,"Upprätthållande av biokemiska cykler",0,"Ingen"]
[null,null,"Turism",null,null,null,null,null,null,null,null,null,null,{"$f":"AVERAGE(N91:N96)","v":0},"Ingen"]
[null,null,"Sammanvägd bedömning",null,{"$f":"IF(COUNTIF(E99:E105,\"Stor\")>=1,\"Stor\",IF(COUNTIF(E99:E105,\"Måttlig\")>=1,\"Måttlig\",IF(COUNTIF(E99:E105,\"Liten\")>=1,\"Liten\",\"\")))","v":""},{"$f":"IF(COUNTIF(F99:F105,\"Negativ\")>=1,\"Negativ\",IF(COUNTIF(F99:F105,\"Positiv\")>=1,\"Positiv\",IF(COUNTIF(F99:F105,\"Ingen påverkan\")>=1,\"Oförändrad\",\"\")))","v":""}]
[null,null,"Bullerfri miljö",null,{"$f":"'Steg 3 Frågor kring landmiljö'!K13","v":"-"},{"$f":"'Steg 3 Frågor kring landmiljö'!L13","v":"-"},null,null,null,null,{"$f":"IF(E99=\"Liten\",1,IF(E99=\"Måttlig\",2,IF(E99=\"Stor\",3,0)))","v":0},{"$f":"IF(F99=\"Negativ\",-1,IF(F99=\"Positiv\",1,0))","v":0},{"$f":"C99","v":"Bullerfri miljö"},0,"Ingen"]
[null,null,"Tillgänglighet till naturområden",null,{"$f":"'Steg 3 Frågor kring landmiljö'!K22","v":"-"},{"$f":"'Steg 3 Frågor kring landmiljö'!L22","v":"-"},null,null,null,null,0,0,"Tillgänglighet till naturområden",0,"Ingen"]
[null,null,"Visuellt ostörd miljö",null,{"$f":"'Steg 3 Frågor kring landmiljö'!K29","v":"-"},{"$f":"'Steg 3 Frågor kring landmiljö'!L29","v":"-"},null,null,null,null,0,0,"Visuellt ostörd miljö",0,"Ingen"]
[null,null,"Bevarande av skyddade, rödlistade och hotade arter",null,{"$f":"E112","v":"-"},{"$f":"F112","v":"-"},null,null,null,null,0,0,"Bevarande av skyddade, rödlistade och hotade arter",0,"Ingen"]
[null,null,"Upprätthållande av biologisk mångfald",null,{"$f":"IF(E$111<>\"\",E$111,\"-\")","v":"-"},{"$f":"IF(F$111=\"Oförändrad\",\"Ingen påverkan\",IF(F$111<>\"\",F$111,\"-\"))","v":"-"},null,null,null,null,0,0,"Upprätthållande av biologisk mångfald",0,"Ingen"]
[null,null,"Bevarande av livsmiljö",null,{"$f":"IF(E$90<>\"\",E$90,\"-\")","v":"-"},{"$f":"IF(F$90=\"Oförändrad\",\"Ingen påverkan\",IF(F$90<>\"\",F$90,\"-\"))","v":"-"},null,null,null,null,0,0,"Bevarande av livsmiljö",0,"Ingen"]
[null,null,"Bevarande av kulturarv",null,{"$f":"IF(E45<>\"\",E45,\"-\")","v":"-"},{"$f":"IF(F45=\"Oförändrad\",\"Ingen påverkan\",IF(F45<>\"\",F45,\"-\"))","v":"-"},null,null,null,null,0,0,"Bevarande av kulturarv",0,"Ingen"]
[null,null,"Uppräthållande av biokemiska cykler",null,null,null,null,null,null,null,null,null,null,{"$f":"AVERAGE(N99:N105)","v":0}]
[null,null,"Sammanvägd bedömning",null,{"$f":"E108","v":"-"},{"$f":"IF(COUNTIF(F108:F108,\"Negativ\")>=1,\"Negativ\",IF(COUNTIF(F108:F108,\"Positiv\")>=1,\"Positiv\",IF(COUNTIF(F108:F108,\"Ingen påverkan\")>=1,\"Oförändrad\",\"-\")))","v":"-"}]
[null,null,"Förekomst av jord och markvegetation",null,{"$f":"'Steg 3 Frågor kring landmiljö'!K15","v":"-"},{"$f":"'Steg 3 Frågor kring landmiljö'!L15","v":"-"},null,null,null,null,{"$f":"IF(E108=\"Liten\",1,IF(E108=\"Måttlig\",2,IF(E108=\"Stor\",3,0)))","v":0},{"$f":"IF(F108=\"Negativ\",-1,IF(F108=\"Positiv\",1,0))","v":0},{"$f":"C108","v":"Förekomst av jord och markvegetation"},0,"Ingen"]
[]
[null,null,"Upprätthållande av biologisk mångfald",null,null,null,null,null,null,null,null,null,null,{"$f":"AVERAGE(N108)","v":0}]
[null,null,"Sammanvägd bedömning",null,{"$f":"IF(F111=\"Oförändrad\",\"\",IF(COUNTIF(E112:E114,\"Stor\")>=1,\"Stor\",IF(COUNTIF(E112:E114,\"Måttlig\")>=1,\"Måttlig\",IF(COUNTIF(E112:E114,\"Liten\")>=1,\"Liten\",\"\"))))","v":""},{"$f":"IF(COUNTIF(F112:F114,\"Negativ\")>=1,\"Negativ\",IF(COUNTIF(F112:F114,\"Positiv\")>=1,\"Positiv\",IF(COUNTIF(F112:F114,\"Ingen påverkan\")>=1,\"Oförändrad\",\"\")))","v":""}]
[null,null,"Bevarande av skyddade, rödlistade och hotade arter",null,{"$f":"'Steg 3 Frågor kring landmiljö'!K10","v":"-"},{"$f":"'Steg 3 Frågor kring landmiljö'!L10","v":"-"},null,null,null,null,{"$f":"IF(E112=\"Liten\",1,IF(E112=\"Måttlig\",2,IF(E112=\"Stor\",3,0)))","v":0},{"$f":"IF(F112=\"Negativ\",-1,IF(F112=\"Positiv\",1,0))","v":0},{"$f":"C112","v":"Bevarande av skyddade, rödlistade och hotade arter"},0,"Ingen"]
[null,null,"Frånvaro av främmande invasiva arter",null,{"$f":"'Steg 3 Frågor kring landmiljö'!K14","v":"-"},{"$f":"'Steg 3 Frågor kring landmiljö'!L14","v":"-"},null,null,null,null,{"$f":"IF(E113=\"Liten\",1,IF(E113=\"Måttlig\",2,IF(E113=\"Stor\",3,0)))","v":0},{"$f":"IF(F113=\"Negativ\",-1,IF(F113=\"Positiv\",1,0))","v":0},{"$f":"C113","v":"Frånvaro av främmande invasiva arter"},0,"Ingen"]
[null,null,"Bevarande av livsmiljöer",null,{"$f":"IF(E$90<>\"\",E$90,\"-\")","v":"-"},{"$f":"IF(F$90=\"Oförändrad\",\"Ingen påverkan\",IF(F$90<>\"\",F$90,\"-\"))","v":"-"},null,null,null,null,{"$f":"IF(E114=\"Liten\",1,IF(E114=\"Måttlig\",2,IF(E114=\"Stor\",3,0)))","v":0},{"$f":"IF(F114=\"Negativ\",-1,IF(F114=\"Positiv\",1,0))","v":0},{"$f":"C114","v":"Bevarande av livsmiljöer"},0,"Ingen"]
[null,null,"Upprätthållande av terrestra livscykler och näringsvävarnas dynamik",null,null,null,null,null,null,null,null,null,null,{"$f":"AVERAGE(N112:N114)","v":0}]
[null,null,"Sammanvägd bedömning",null,{"$f":"IF(COUNTIF(E117:E120,\"Stor\")>=1,\"Stor\",IF(COUNTIF(E117:E120,\"Måttlig\")>=1,\"Måttlig\",IF(COUNTIF(E117:E120,\"Liten\")>=1,\"Liten\",\"\")))","v":""},{"$f":"IF(COUNTIF(F117:F120,\"Negativ\")>=1,\"Negativ\",IF(COUNTIF(F117:F120,\"Positiv\")>=1,\"Positiv\",IF(COUNTIF(F117:F120,\"Ingen påverkan\")>=1,\"Oförändrad\",\"\")))","v":""}]
[null,null,"Upprätthållande av pollinering och fröspridning",null,{"$f":"IF(F117=\"Ingen påverkan\",\"-\",'Steg 3 Frågor kring landmiljö'!K26)","v":"-"},{"$f":"'Steg 3 Frågor kring landmiljö'!L26","v":"-"},null,null,null,null,{"$f":"IF(E117=\"Liten\",1,IF(E117=\"Måttlig\",2,IF(E117=\"Stor\",3,0)))","v":0},{"$f":"IF(F117=\"Negativ\",-1,IF(F117=\"Positiv\",1,0))","v":0},{"$f":"C117","v":"Upprätthållande av pollinering och fröspridning"},0,"Ingen"]
[null,null,"Upprätthållande av biologisk mångfald",null,{"$f":"IF(E$111<>\"\",E$111,\"-\")","v":"-"},{"$f":"IF(F$111=\"Oförändrad\",\"Ingen påverkan\",IF(F$111<>\"\",F$111,\"-\"))","v":"-"},null,null,null,null,{"$f":"IF(E118=\"Liten\",1,IF(E118=\"Måttlig\",2,IF(E118=\"Stor\",3,0)))","v":0},{"$f":"IF(F118=\"Negativ\",-1,IF(F118=\"Positiv\",1,0))","v":0},{"$f":"C118","v":"Upprätthållande av biologisk mångfald"},0,"Ingen"]
[null,null,"Upprätthållande av näringskedjor",null,{"$f":"'Steg 3 Frågor kring landmiljö'!K25","v":"-"},{"$f":"'Steg 3 Frågor kring landmiljö'!L25","v":"-"},null,null,null,null,{"$f":"IF(E119=\"Liten\",1,IF(E119=\"Måttlig\",2,IF(E119=\"Stor\",3,0)))","v":0},{"$f":"IF(F119=\"Negativ\",-1,IF(F119=\"Positiv\",1,0))","v":0},{"$f":"C119","v":"Upprätthållande av näringskedjor"},0,"Ingen"]
[null,null,"Bevarande av livsmiljöer",null,{"$f":"IF(E$90<>\"\",E$90,\"-\")","v":"-"},{"$f":"IF(F$90=\"Oförändrad\",\"Ingen påverkan\",IF(F$90<>\"\",F$90,\"-\"))","v":"-"},null,null,null,null,{"$f":"IF(E120=\"Liten\",1,IF(E120=\"Måttlig\",2,IF(E120=\"Stor\",3,0)))","v":0},{"$f":"IF(F120=\"Negativ\",-1,IF(F120=\"Positiv\",1,0))","v":0},{"$f":"C120","v":"Bevarande av livsmiljöer"},0,"Ingen"]
[null,null,"Utsmyckningar",null,null,null,null,null,null,null,null,null,null,{"$f":"AVERAGE(N117:N120)","v":0}]
[8,null,"Sammanvägd bedömning",null,{"$f":"IF(COUNTIF(E123:E125,\"Stor\")>=1,\"Stor\",IF(COUNTIF(E123:E125,\"Måttlig\")>=1,\"Måttlig\",IF(COUNTIF(E123:E125,\"Liten\")>=1,\"Liten\",\"\")))","v":""},{"$f":"IF(COUNTIF(F123:F125,\"Negativ\")>=1,\"Negativ\",IF(COUNTIF(F123:F125,\"Positiv\")>=1,\"Positiv\",IF(COUNTIF(F123:F125,\"Ingen påverkan\")>=1,\"Oförändrad\",\"\")))","v":""}]
[null,null,"Upprätthållande av biologisk mångfald",null,{"$f":"IF(E$111<>\"\",E$111,\"-\")","v":"-"},{"$f":"IF(F$111=\"Oförändrad\",\"Ingen påverkan\",IF(F$111<>\"\",F$111,\"-\"))","v":"-"},null,null,null,null,{"$f":"IF(E123=\"Liten\",1,IF(E123=\"Måttlig\",2,IF(E123=\"Stor\",3,0)))","v":0},{"$f":"IF(F123=\"Negativ\",-1,IF(F123=\"Positiv\",1,0))","v":0},{"$f":"C123","v":"Upprätthållande av biologisk mångfald"},0,"Ingen"]
[null,null,"Bevarande av livsmiljöer",null,{"$f":"IF(E$90<>\"\",E$90,\"-\")","v":"-"},{"$f":"IF(F$90=\"Oförändrad\",\"Ingen påverkan\",IF(F$90<>\"\",F$90,\"-\"))","v":"-"},null,null,null,null,{"$f":"IF(E124=\"Liten\",1,IF(E124=\"Måttlig\",2,IF(E124=\"Stor\",3,0)))","v":0},{"$f":"IF(F124=\"Negativ\",-1,IF(F124=\"Positiv\",1,0))","v":0},{"$f":"C124","v":"Bevarande av livsmiljöer"},0,"Ingen"]
[null,null,"Bevarande av äldre skog",null,{"$f":"'Steg 3 Frågor kring landmiljö'!K11","v":"-"},{"$f":"'Steg 3 Frågor kring landmiljö'!L11","v":"-"},null,null,null,null,{"$f":"IF(E125=\"Liten\",1,IF(E125=\"Måttlig\",2,IF(E125=\"Stor\",3,0)))","v":0},{"$f":"IF(F125=\"Negativ\",-1,IF(F125=\"Positiv\",1,0))","v":0},{"$f":"C125","v":"Bevarande av äldre skog"},0,"Ingen"]
[null,null,"Kunskap (vetenskap och utbildning)",null,null,null,null,null,null,null,null,null,null,{"$f":"AVERAGE(N123:N125)","v":0}]
[8,null,"Sammanvägd bedömning",null,{"$f":"IF(COUNTIF(E128:E130,\"Stor\")>=1,\"Stor\",IF(COUNTIF(E128:E130,\"Måttlig\")>=1,\"Måttlig\",IF(COUNTIF(E128:E130,\"Liten\")>=1,\"Liten\",\"\")))","v":""},{"$f":"IF(COUNTIF(F128:F130,\"Negativ\")>=1,\"Negativ\",IF(COUNTIF(F128:F130,\"Positiv\")>=1,\"Positiv\",IF(COUNTIF(F128:F130,\"Ingen påverkan\")>=1,\"Oförändrad\",\"\")))","v":""}]
[null,null,"Upprätthållande av biologisk mångfald",null,{"$f":"IF(E$111<>\"\",E$111,\"-\")","v":"-"},{"$f":"IF(F$111=\"Oförändrad\",\"Ingen påverkan\",IF(F$111<>\"\",F$111,\"-\"))","v":"-"},null,null,null,null,{"$f":"IF(E128=\"Liten\",1,IF(E128=\"Måttlig\",2,IF(E128=\"Stor\",3,0)))","v":0},{"$f":"IF(F128=\"Negativ\",-1,IF(F128=\"Positiv\",1,0))","v":0},{"$f":"C128","v":"Upprätthållande av biologisk mångfald"},0,"Ingen"]
[null,null,"Bevarande av livsmiljöer",null,{"$f":"IF(E$90<>\"\",E$90,\"-\")","v":"-"},{"$f":"IF(F$90=\"Oförändrad\",\"Ingen påverkan\",IF(F$90<>\"\",F$90,\"-\"))","v":"-"},null,null,null,null,{"$f":"IF(E129=\"Liten\",1,IF(E129=\"Måttlig\",2,IF(E129=\"Stor\",3,0)))","v":0},{"$f":"IF(F129=\"Negativ\",-1,IF(F129=\"Positiv\",1,0))","v":0},{"$f":"C129","v":"Bevarande av livsmiljöer"},0,"Ingen"]
[null,null,"Bevarande av kulturarv",null,{"$f":"IF(E105<>\"\",E105,\"-\")","v":"-"},{"$f":"IF(F45=\"Oförändrad\",\"Ingen påverkan\",IF(F45<>\"\",F45,\"-\"))","v":"-"},null,null,null,null,{"$f":"IF(E130=\"Liten\",1,IF(E130=\"Måttlig\",2,IF(E130=\"Stor\",3,0)))","v":0},{"$f":"IF(F130=\"Negativ\",-1,IF(F130=\"Positiv\",1,0))","v":0},{"$f":"C130","v":"Bevarande av kulturarv"},0,"Ingen"]
[null,null,"Kontroll av skadedjur och sjukdomar",null,null,null,null,null,null,null,null,null,null,{"$f":"AVERAGE(N128:N130)","v":0}]
[8,null,"Sammanvägd bedömning",null,{"$f":"IF(COUNTIF(E133:E134,\"Stor\")>=1,\"Stor\",IF(COUNTIF(E133:E134,\"Måttlig\")>=1,\"Måttlig\",IF(COUNTIF(E133:E134,\"Liten\")>=1,\"Liten\",\"\")))","v":""},{"$f":"IF(COUNTIF(F133:F134,\"Negativ\")>=1,\"Negativ\",IF(COUNTIF(F133:F134,\"Positiv\")>=1,\"Positiv\",IF(COUNTIF(F133:F134,\"Ingen påverkan\")>=1,\"Oförändrad\",\"\")))","v":""}]
[null,null,"Upprätthållande av biologisk mångfald",null,{"$f":"IF(E$111<>\"\",E$111,\"-\")","v":"-"},{"$f":"IF(F$111=\"Oförändrad\",\"Ingen påverkan\",IF(F$111<>\"\",F$111,\"-\"))","v":"-"},null,null,null,null,{"$f":"IF(E133=\"Liten\",1,IF(E133=\"Måttlig\",2,IF(E133=\"Stor\",3,0)))","v":0},{"$f":"IF(F133=\"Negativ\",-1,IF(F133=\"Positiv\",1,0))","v":0},{"$f":"C133","v":"Upprätthållande av biologisk mångfald"},0,"Ingen"]
[null,null,"Upprätthållande av terrestra livscykler och näringsvävarnas dynamik",null,{"$f":"IF(E116=\"\",\"-\",IF(F134=\"Ingen påverkan\",\"-\",E116))","v":"-"},{"$f":"IF(F$116=\"Oförändrad\",\"Ingen påverkan\",IF(F$116<>\"\",F$116,\"-\"))","v":"-"},null,null,null,null,{"$f":"IF(E134=\"Liten\",1,IF(E134=\"Måttlig\",2,IF(E134=\"Stor\",3,0)))","v":0},{"$f":"IF(F134=\"Negativ\",-1,IF(F134=\"Positiv\",1,0))","v":0},{"$f":"C134","v":"Upprätthållande av terrestra livscykler och näringsvävarnas dynamik"},0,"Ingen"]
[null,null,"Livsmedel från terrestra vilda och odlade växter och djur",null,null,null,null,null,null,null,null,null,null,{"$f":"AVERAGE(N133:N134)","v":0}]
[8,null,"Sammanvägd bedömning",null,{"$f":"IF(COUNTIF(E137:E140,\"Stor\")>=1,\"Stor\",IF(COUNTIF(E137:E140,\"Måttlig\")>=1,\"Måttlig\",IF(COUNTIF(E137:E140,\"Liten\")>=1,\"Liten\",\"\")))","v":""},{"$f":"IF(COUNTIF(F137:F140,\"Negativ\")>=1,\"Negativ\",IF(COUNTIF(F137:F140,\"Positiv\")>=1,\"Positiv\",IF(COUNTIF(F137:F140,\"Ingen påverkan\")>=1,\"Oförändrad\",\"\")))","v":""}]
[null,null,"Upprätthållande av biologisk mångfald",null,{"$f":"IF(E$111<>\"\",E$111,\"-\")","v":"-"},{"$f":"IF(F$111=\"Oförändrad\",\"Ingen påverkan\",IF(F$111<>\"\",F$111,\"-\"))","v":"-"},null,null,null,null,{"$f":"IF(E137=\"Liten\",1,IF(E137=\"Måttlig\",2,IF(E137=\"Stor\",3,0)))","v":0},{"$f":"IF(F137=\"Negativ\",-1,IF(F137=\"Positiv\",1,0))","v":0},{"$f":"C137","v":"Upprätthållande av biologisk mångfald"},0,"Ingen"]
[null,null,"Bevarande av livsmiljöer",null,{"$f":"E129","v":"-"},{"$f":"F129","v":"-"},null,null,null,null,{"$f":"IF(E138=\"Liten\",1,IF(E138=\"Måttlig\",2,IF(E138=\"Stor\",3,0)))","v":0},{"$f":"IF(F138=\"Negativ\",-1,IF(F138=\"Positiv\",1,0))","v":0},{"$f":"C138","v":"Bevarande av livsmiljöer"},0,"Ingen"]
[null,null,"Kontroll av skadedjur och sjukdomar",null,{"$f":"IF(E$132=\"\",\"-\",IF(F$139=\"Ingen påverkan\",\"-\",E$132))","v":"-"},{"$f":"IF(F$132=\"Oförändrad\",\"Ingen påverkan\",IF(F$132<>\"\",F$132,\"-\"))","v":"-"},null,null,null,null,{"$f":"IF(E139=\"Liten\",1,IF(E139=\"Måttlig\",2,IF(E139=\"Stor\",3,0)))","v":0},{"$f":"IF(F139=\"Negativ\",-1,IF(F139=\"Positiv\",1,0))","v":0},{"$f":"C139","v":"Kontroll av skadedjur och sjukdomar"},0,"Ingen"]
[null,null,"Bevarande av genetiska resurser",null,{"$f":"IF(E$30=\"\",\"-\",E$30)","v":"-"},{"$f":"IF(F$30=\"Oförändrad\",\"Ingen påverkan\",IF(F$30<>\"\",F$30,\"-\"))","v":"-"},null,null,null,null,{"$f":"IF(E140=\"Liten\",1,IF(E140=\"Måttlig\",2,IF(E140=\"Stor\",3,0)))","v":0},{"$f":"IF(F140=\"Negativ\",-1,IF(F140=\"Positiv\",1,0))","v":0},{"$f":"C140","v":"Bevarande av genetiska resurser"},0,"Ingen"]
[null,null,"Terrestra fiberråvaror",null,null,null,null,null,null,null,null,null,null,{"$f":"AVERAGE(N137:N140)","v":0}]
[8,null,"Sammanvägd bedömning",null,{"$f":"IF(COUNTIF(E143:E143,\"Stor\")>=1,\"Stor\",IF(COUNTIF(E143:E143,\"Måttlig\")>=1,\"Måttlig\",IF(COUNTIF(E143:E143,\"Liten\")>=1,\"Liten\",\"\")))","v":""},{"$f":"IF(COUNTIF(F143:F143,\"Negativ\")>=1,\"Negativ\",IF(COUNTIF(F143:F143,\"Positiv\")>=1,\"Positiv\",IF(COUNTIF(F143:F143,\"Ingen påverkan\")>=1,\"Oförändrad\",\"\")))","v":""}]
[null,null,"Upprätthållande av biologisk mångfald",null,{"$f":"IF(E$111<>\"\",E$111,\"-\")","v":"-"},{"$f":"IF(F$111=\"Oförändrad\",\"Ingen påverkan\",IF(F$111<>\"\",F$111,\"-\"))","v":"-"},null,null,null,null,{"$f":"IF(E143=\"Liten\",1,IF(E143=\"Måttlig\",2,IF(E143=\"Stor\",3,0)))","v":0},{"$f":"IF(F143=\"Negativ\",-1,IF(F143=\"Positiv\",1,0))","v":0},{"$f":"C143","v":"Upprätthållande av biologisk mångfald"},0,"Ingen"]
[null,null,"Resurser bioteknik och kemikalieråvaror",null,null,null,null,null,null,null,null,null,null,{"$f":"AVERAGE(N143)","v":0}]
[8,null,"Sammanvägd bedömning",null,{"$f":"IF(COUNTIF(E146:E147,\"Stor\")>=1,\"Stor\",IF(COUNTIF(E146:E147,\"Måttlig\")>=1,\"Måttlig\",IF(COUNTIF(E146:E147,\"Liten\")>=1,\"Liten\",\"\")))","v":""},{"$f":"IF(COUNTIF(F146:F147,\"Negativ\")>=1,\"Negativ\",IF(COUNTIF(F146:F147,\"Positiv\")>=1,\"Positiv\",IF(COUNTIF(F146:F147,\"Ingen påverkan\")>=1,\"Oförändrad\",\"\")))","v":""}]
[null,null,"Upprätthållande av biologisk mångfald",null,{"$f":"IF(E$111<>\"\",E$111,\"-\")","v":"-"},{"$f":"IF(F$111=\"Oförändrad\",\"Ingen påverkan\",IF(F$111<>\"\",F$111,\"-\"))","v":"-"},null,null,null,null,{"$f":"IF(E146=\"Liten\",1,IF(E146=\"Måttlig\",2,IF(E146=\"Stor\",3,0)))","v":0},{"$f":"IF(F146=\"Negativ\",-1,IF(F146=\"Positiv\",1,0))","v":0},{"$f":"C146","v":"Upprätthållande av biologisk mångfald"},0,"Ingen"]
[null,null,"Bevarande av genetiska resurser",null,{"$f":"E140","v":"-"},{"$f":"F140","v":"-"},null,null,null,null,{"$f":"IF(E147=\"Liten\",1,IF(E147=\"Måttlig\",2,IF(E147=\"Stor\",3,0)))","v":0},{"$f":"IF(F147=\"Negativ\",-1,IF(F147=\"Positiv\",1,0))","v":0},{"$f":"C147","v":"Bevarande av genetiska resurser"},0,"Ingen"]
[null,null,"Bioenergi från terrestra växter",null,null,null,null,null,null,null,null,null,null,{"$f":"AVERAGE(N146:N147)","v":0}]
[8,null,"Sammanvägd bedömning",null,{"$f":"IF(COUNTIF(E150:E150,\"Stor\")>=1,\"Stor\",IF(COUNTIF(E150:E150,\"Måttlig\")>=1,\"Måttlig\",IF(COUNTIF(E150:E150,\"Liten\")>=1,\"Liten\",\"\")))","v":""},{"$f":"IF(COUNTIF(F150:F150,\"Negativ\")>=1,\"Negativ\",IF(COUNTIF(F150:F150,\"Positiv\")>=1,\"Positiv\",IF(COUNTIF(F150:F150,\"Ingen påverkan\")>=1,\"Oförändrad\",\"\")))","v":""}]
[null,null,"Upprätthållande av biologisk mångfald",null,{"$f":"IF(E$111<>\"\",E$111,\"-\")","v":"-"},{"$f":"IF(F$111=\"Oförändrad\",\"Ingen påverkan\",IF(F$111<>\"\",F$111,\"-\"))","v":"-"},null,null,null,null,{"$f":"IF(E150=\"Liten\",1,IF(E150=\"Måttlig\",2,IF(E150=\"Stor\",3,0)))","v":0},{"$f":"IF(F150=\"Negativ\",-1,IF(F150=\"Positiv\",1,0))","v":0},{"$f":"C150","v":"Upprätthållande av biologisk mångfald"},0,"Ingen"]
[]
[null,null,"Resultat påverkan på samhällsgrupper",null,null,null,null,null,null,null,null,null,null,{"$f":"AVERAGE(N150)","v":0}]
[]
[null,null,"Grupper som påverkas","Typ av påverkan",null,null,"Storlek",null,"Antal"]

{"sheet":"Steg 6 Sammanfattning","index":7,"n_rows":0,"n_cols":0,"rows_kept":0,"cut":false,"hidden":false,"merged":[]}

{"sheet":"Ordlista","index":8,"n_rows":23,"n_cols":4,"rows_kept":23,"cut":false,"hidden":false,"merged":[]}
[null,"Ordlista"]
[null,null,"Ord","Beskrivning"]
[null,null,"Alger","Alger är organismer som utvinner energi ur ljus genom fotosyntes. Oftast förekommer alger i vatten eller fuktiga miljöer."]
[null,null,"Biomimik","Teknik som efterliknar företeelser som sker i naturen."]
[null,null,"Ekosystem","Ekosystem är ett avgränsat område av naturen som vi människor valt att betrakta som ett system, det vill säga en helhet, för att lättare kunna studera det. Ett ekosystem kan vara allt från en liten damm till ett hav."]
[null,null,"Ekosystemtjänst","Ekosystemtjänster är de produkter och tjänster från naturens ekosystem som bidrar till vårt mänskliga välbefinnande. Ekosystemtjänster har sitt ursprung i biologiska sturkturer och funktioner. Det handlar om vanliga produkter som spannmål, kaffebönor och träråvara samt tjänster som att rena vatten, reglera klimat och pollinera växter. Vi människor får nyttan antingen direkt, som när växter producerar syre, eller genom en insats, som när vi bedriver jordbruk som ger livsmedel."]
[null,null,"Fornlämning","Fornlämningar skyddas i kulturmiljölagen och omfattar fasta fornlämningar eller fornfynd. En fast fornlämning är enligt kulturmiljölagen lämningar efter människors verksamhet under forna tider som tillkommit genom äldre tiders bruk och som är varaktigt övergivna. Fornlämningar är lämningar som tillkommit före 1850, om inte särskild klassning gjorts. Exempel på forlämningar är boplatser, gravfält, gruvor och kvarnar. "]
[null,null,"Främmande art","Enligt EU:s förordning (1143/2014) om invasiva främmande arter är en invasiv art en främmande art vars introduktion eller spridning har konstaterats hota eller negativt inverka på biologisk mångfald och relaterade ekosystemtjänster."]
[null,null,"Genetiska resurser","Arvsanlag, detsamma som gen, dvs. ett DNA-segment med specifik genetisk information."]
[null,null,"Hotad art","Med en hotad art avses VU-, EN- och CR-klassade arter (sårbar art, starkt hotad art eller akut hotad art) enligt den svenska rödlistan. Se information om arters status på artfakta.artdatabanken.se"]
[null,null,"Inhemsk art","Med en inhemsk art menar man vanligen att arten har förekommit inom ett bestämt geografiskt område, till exempel Sverige, sedan mycket lång tid tillbaka och kommit till detta område på ett naturligt sätt (spridning av egen kraft)."]
[null,null,"Kulturlämning","Kulturlämningar är andra lämningar (än fornlämnningar) från äldre tider som bär spår efter mänsklig verksamhet och skyddas enligt skogvårdslagens hänsynsregler (§ 30). Exempel på kulturlämning är kolbottnar, tjärdalar, stengärdesgårdar, 1800-tals torp och fäbodar."]
[null,null,"Livsmiljö","Livsmiljö definieras som den miljö som växter, djur, insekter, bakterier eller virus lever i. Den fokuserar oftast på den fysiska miljön, såsom skog, gräsmark, sjöar, vattendrag eller hav."]
[null,null,"Mikroorganismer","Mikroorganism är en organism som inte kan ses med blotta ögat och är en naturlig nedbrytare som spelar en viktig roll i de naturliga kretsloppen.  Exempel på mikroorganismer är bakterier,  vissa svampar, alger och djur. Mikroorganismer kan vara både encelliga och flercelliga."]
[null,null,"Nedbrytare","Nedbrytare kan också kallas för destruenter. Dessa består av småkryp och svampar som bryter ner organiskt material till andra substanser så som kol, metangas, koldixoid och värme. Nedbrytning kan ske både med syre (aerob) eller i en syrefri (anaerob) miljö."]
[null,null,"Näringsväv","Ett begrepp använt för att på ett strukturerat sätt beskriva samverkan mellan organismer i ett ekosystem. Organismerna delas då in i funktionella grupper beroende på vilken uppgift de utför i ekosystemet."]
[null,null,"Oavsiktlig introduktion","När en art med människans hjälp oavsiktligt flyttats från ett område till ett annat. "]
[null,null,"Rödlistad art","Med en rödlistad art avses NT-klassade arter (missgynnade eller nära hotade arter) enligt den svenska rödlistan. Se information om arters status på artfakta.artdatabanken.se."]
[null,null,"Skyddad art","Med skyddad art avses alla växt- och djurarter som är betecknade med bokstaven N eller n i artskyddsförordningens bilaga 1, samt alla växt- och djurarter i förordningens bilaga 2."]
[null,null,"Strandkant","Området där vatten och land möts kallas för strandkant. En naturlig strandkant är ej uppbyggd med erosionsskydd eller kanaliserad.  Strandkant är skilt från svämplan där svämplanen är hela den markyta som periodvis översvämmas.  "]
[null,null,"Strandzon","Strandzonen brukar definieras som det område som sträcker sig från lågvattenståndet i vattendraget upp till så långt vegetationen och marken kan vara påverkade av förhöjda vattennivåer."]
[null,null,"Vattenbruk","Vattenbruk kan också kallas för akvakultur och det är en form av naturbruk där människan odlar exmpelvis fisk, skaldjur, alger eller vattenväxter för att användas som till exempel livsmedel."]
[null,null,"Övertäckas","När ett vattendrag eller sjö täcks över helt eller delvis. Detta kan göras genom t. ex. större bryggor och kulvertar."]

{"sheet":"EST leverans","index":9,"n_rows":24,"n_cols":13,"rows_kept":24,"cut":false,"hidden":true,"merged":[]}
["Detta blad ska gömmas eller tas bort!","Understrukna ord finns med i ordförklaringslista","Stödjande ekosystemtjänst\nReglerande ekosystemtjänst\nKulturell ekosystemtjänst\nFörsörjande ekosystemtjänst\nFörutsättning",null,null,null,"Vattendrag",null,"Sjö",null,"Kust","Risk för påverkan från exploatering inom strandskyddat område"]
["Fråge","Kort beskrivning av EST","Förutsättningar för att EST ska upprätthållas","Typ av EST","Källa: HaV eller NV","Vattendrag","Prioritering","Sjö","Prioritering","Kust","Prioritering"]
["Primärproduktion","Produktion av växtplankton\noch alger utifrån solljus och näringsämnen (fotosyntesen) som är grunden för allt liv.","1. Solljus\n2. Tillgång till näringsämnen","Stödjande","NV","x","Hög","x","Hög","x","Hög","Liten"]
["Livsmiljöer","Olika arter har anpassat sig till olika livsmiljöer. En livsmiljö ger de förutsättningar\nför en art som krävs för att den ska kunna utvecklas och fortleva. Exempelvis sjögräsängar som fiskyngel kan gömma sig i.","1. Tillgång till näringsämnen\n2. Solljus\n3. Vattentemperatur\n4. Minskad övergödning\n5. Naturliga strandkanter\n6. Naturliga bottnar \n7. pH\n8. Begränsad grumlighet\n9. Naturligt varierat vattenflöde","Stödjande","NV","x","Hög","x","Hög","x","Hög","Betydande"]
["Stabilitet och resiliens hos ekosystem","Ekosystemets förmåga att stå emot förändringar som riskerar att väsentligt förändra ekosystemet. Resiliens kan också vara ekosystemets återhämtningsförmåga efter en tillfällig störning. \n","1. Bevarande av biologisk mångfald\n2. Upprätthållande av näringskedja\n\n\n","Stödjande","NV","x","Hög","x","Hög","x","Hög","Betydande"]
["Reglering av giftiga ämnen","Giftiga ämnen kan brytas ner av växter eller mikroorganismer. Reglering av giftiga ämnen kan även ske genom att dessa binds till partiklar som sedimenterar. Genom inlagring\ni sediment kan miljögifter kvarhållas temporärt eller permanent.","1. Primärproduktion\n2. Naturliga strandkanter \n3. pH\n4. Bevarande av biologisk mångfald\n5. Minskad övergödning","Reglerande","NV","x","Låg","x","Hög","x","Hög","Liten"]
["Minskad övergödning","Minskad övergödning sker genom växter och mikroorganismers näringsupptag av kväve och fosfor eller genom att näringsämnen binds in till partiklar och sedimenterar.  ","1. Naturligt varierat vattenflöde\n2. pH","Reglerande","NV","x","Låg","x","Hög","x","Hög","Betydande"]
["Naturlig luftrening","Reducering av lokala och regionala luftföroreningar genom att träd och annan vegetation fungerar som luftrenare.","1. Träd i strandzonen\n2. Primärproduktion ","Reglerande","NV","x","Hög","x","Hög","x","Hög"]
["Klimatregleringar","Kolinlagring i hav och sjöar genom bland annat upptag av koldioxid genom fotosyntes och att koldioxid löser sig i vattnet.","1. Primärproduktion","Reglerande","NV","x","Låg","x","Hög","x","Hög","Liten"]
["Livsmedel från vilda och odlade vattenlevande växter och djur. ","Yrkes- såväl som fritidsfiske samt vattenbruk ger livsmedel i form av fisk och skaldjur. Skördande av vilda växter samt odlling av växter för konsumtion.","1. Bevarande av livsmiljöer\n2. Tillgänglighet till strandzon och vattenförekomst\n3. Bevarande av biologisk mångfald","Försörjande","NV","x","Hög","x","Hög","x","Hög","Betydande"]
["Råvaror","Råvaror t.ex. alger och fiberråvaror för användning som foder eller gödningsmedel i jord- och vattenbruk.","1. Bevarande av livsmiljöer\n2. Bevarande av biologisk mångfald\n","Försörjande","NV","X","Låg","x","Låg","x","Hög","Betydande"]
["Genetiska resurser","Upprätthållande av genetiska resurser (DNA-segment med specifik genetisk information) hos växter samt vilda och tama djur.","1. Bevarande av livsmiljöer\n2. Bevarande av biologisk mångfald\n","Försörjande","NV","x","Hög","x","Hög","x","Hög","Betydande"]
["Resurser bioteknik och kemikalieråvaror","Försörjning av råvaror för industrigrenar inom läkemedels-, kemi- och bioteknologiindustrin (ej genetiska resurser). Exempelvis medicinska, kosmetiska råvaror andra biobaserade kemikalieråvaror.","1. Bevarande av livsmiljöer\n2. Bevarande av biologisk mångfald\n","Försörjande","NV",null,"Låg",null,"Låg","x","Låg","Liten"]
["Bioenergi från djur och växter","Skörd av vattenväxter för produktion av energi. Exemeplvis har det genomförts försöksverksamheter för framställning av bioenergi från spigg, musslor och sjöpungar. ","1. Bevarande av livsmiljöer\n2. Bevarande av biologisk mångfald\n","Försörjande","NV",null,"Ej aktuelllt",null,"Ej aktuelllt","x","Låg","Liten"]
["Kulturarv","Avser alla bestående materiella och immateriella uttryck till följd av olika mänskliga verksamheter och aktiviteter genom historien. T.ex. historiska vrak, fiskelägen, lantbruk m.m. ","1. Bevarande av fornlämning eller kulturlämning.\n2. Bevarande av närmiljö och omgivning till lämning\n3. Bevarande av konserverande miljö","Kulturell","NV","x","Hög","x","Hög","x","Hög","Betydande"]
["Rekreation","Organiserat och oorganiserat friluftsliv samt idrottsaktiviteter. Aktiviteter: t.ex. bad, fritidsbåtsliv, fritidsfiske, fågelskådning och avkoppling. ","1. Bullerfria miljöer\n2. Tillgänglighet till stranden och vattenförekomsten\n3. Visuellt ostörda miljöer\n4. Begränsad grumlighet\n5. Bevarande av biologisk mångfald\n6. Bevarande av kulturarv","Kulturell","NV","x","Hög","x","Hög","x","Hög","Betydande"]
["Turism","Människors aktiviteter under resor och vistelser på platser utanför sin vanliga omgivning för kortare tid för fritid, affärer eller andra syften.","1. Bullerfria miljöer\n2. Tillgänglighet till stranden och vattenförekomsten\n3. Visuellt ostörda miljöer \n4. Begränsad grumlighet\n5. Bevarande av biologisk mångfald\n6. Bevarande av livsmiljö\n7. Bevarande av kulturarv\n8. Bevarande av skyddade, rödlistade och hotade arter","Kulturell","NV","x","Hög","x","Hög","x","Hög","Betydande","http://www.destinationsmaland.se/fakta-statistik/vad-%C3%A4r-turism--22795090"]
["Kunskap (vetenskap och utbildning)","Ekosystemens möjlighet att erbjuda platser och resurser för forskning och utbildning för alla åldrar. Forskningsmaterial, miljöövervakning, underlag till muséer, akvarier, biomimik m.m.","1. Bevarade av livsmiljöer\n2. Bevarande av biologisk mångfald\n3. Visuellt ostörda miljöer\n","Kulturell","NV","x","Hög","x","Hög","x","Hög","Betydande"]
["Upprätthållande av näringsvävarnas dynamik","Innebär att produktiviteten för viktiga arter och grupper av växter och djur inte avviker från de naturliga variationer som förekommer i ekosystemets näringsväv. ","1. Bevarande av biologisk mångfald\n2. Upprätthållande av näringskedjor","Reglerande","HaV","x","Hög","x","Hög","x","Hög","Betydande"]
["Upprätthållande av biologisk mångfald","Utgår från en mångfald av livsmiljöer, arter, populationer, gener och molekyler samt från ekosystemens mångfald av processer och interaktioner dem emellan. ","1. Bevarande av livsmiljöer\n2. Bevarande av skyddade, rödlistade och hotade arter\n3. Frånvaro av främmande arter\n\n","Reglerande","HaV","x","Hög","x","Hög","x","Hög","Betydande"]
["Biologisk reglering","Biologiska mekanismer som begränsar miljöstörande effekter, dvs. reglering av sjukdomar, patogener och annat som har potential att skada ekosystemen. Innefattar även rovdjurs kontroll av bytesdjur och övriga organismer i näringsväven.","1. Upprätthållande av näringsvävarnas dynamik","Reglerande","HaV","x","Hög","x","Hög","x","Hög","Liten"]
["Utsmyckningar","Försörjning av råvaror som kan användas som hantverk, konst eller dekoration, exempelvis drivved och snäckskal.","1. Naturligt varierat vattenflöde\n2. Bevarad biologisk mångfald\n","Försörjande","Hav","?","Låg","?","Låg","x","Låg","Liten"]
["Estetik","Skapande av estetiska värden och för vår upplevelse av vattenmiljön som långvarig eller tillfällig skapare av upplevd skönhet. Exempelvis forsande vatten, fågelsång, vajande vass och klart vatten.","1. Visuellt ostörda miljöer\n2. Bullerfria miljöer\n3. Begränsad grumlighet\n4. Bevarande av kulturarv","Kulturell","HaV","x","Hög","x ","Hög","x","Hög","Betydande"]
["Inspiration","Funktion som inspirationskälla till kultur, poesi och musik.","1. Visuellt ostörda miljöer (bebyggelse, ljus)\n2. Bullerfria miljöer\n3. Bevarande av livsmiljö\n4. Bevarande av biologisk mångfald","Kulturell","HaV","x","Hög","x","Hög","x","Hög","Betydande"]

{"sheet":"Test1 - EST påverkan","index":10,"n_rows":64,"n_cols":6,"rows_kept":64,"cut":false,"hidden":true,"merged":[[1,0,2,0],[1,1,2,1],[1,3,2,3],[15,4,16,4],[1,2,11,2]]}
["Fråga 1 - om påverkan","Välj Ja/Nej",null,"Förutsättningar/vad påverkas","EST","EST påverkan"]
["Kommer projektet innebära att vattenyta kommer övertäckas*?","Ja"," ","Solljus","Primärproduktion",{"$f":"IF(B2=\"Ja\",\"Negativ\",IF(B2=\"Nej\",\"Ingen\",\"\"))","v":"Negativ"}]
[null,null,null,null,"Livsmiljö",{"$f":"IF(B2=\"Ja\",\"Negativ\",IF(B2=\"Nej\",\"Ingen\",\"\"))","v":"Negativ"}]
["Kommer projektet att öka vattentemperaturen?","Ja",null,"Vattentemperatur","Livsmiljö",{"$f":"IF(B4=\"Ja\",\"Negativ\",IF(B4=\"Nej\",\"Ingen\",\"\"))","v":"Negativ"}]
["Kommer projektet att sänka vattnets pH-värde?","Nej",null,"pH",null,{"$f":"IF(B5=\"Ja\",\"Negativ\",IF(B5=\"Nej\",\"Ingen\",\"\"))","v":"Ingen"}]
["Kommer projektet markant minska antalet träd i strandzonen?",null,null,"Träd i strandzonen",null,{"$f":"IF(B6=\"Ja\",\"Negativ\",IF(B6=\"Nej\",\"Ingen\",\"\"))","v":""}]
["Kommer naturliga strandkanter tas i anspråk?",null,null,"Naturlig strandkant",null,""]
["Kommer projektet att bidra till att variationen i vattengenomströmningen minskar? ",null,null,"Naturligt varierat vattenflöde",null,""]
["Kommer aktiviteter som påverkar vattnets botten att genomföras, exemeplvis muddring eller rensning?",null,null,"Naturliga bottnar",null,""]
["Kommer projektet innebära att strand eller vattenförekomst delvis eller helt avskärmas eller privatiseras?",null,null,"Tillgänglighet till stranden och vattenförekomsten",null,""]
["Kommer projektet innebära att hela eller delar av fornlämning eller kulturlämning tas bort?",null,null,"Bevarande av fornlämning eller kulturlämning",null,""]
["Kommer projektet innebära att grundvattennivån sänks?",null,null,"Bevarande av konserverande miljö",null,""]
["Kommer projektet göra ingrepp i området kring en fornlämning eller kulturlämning?",null,null,"Bevarande av närmiljö och omgivning till fornlämning eller kulturlämning",null,""]
[]
[]
[]
[]
[]
[]
[]
[]
[]
[]
["Fråga 2 om påverkan"]
["Kommer projektet innebära att befintliga strukturer* (ej vegetation) som täcker vattenytan tas bort? "]
["Kommer projektet innebära att befintliga strukturer* (ej vegetation) som täcker vattenytan tas bort? "]
["Kommer projektet att sänka vattentemperaturen?"]
["Kommer projektet att höja vattnets pH-värde?"]
["Kommer projektet att höja vattnets pH-värde?"]
["Kommer projektet att höja vattnets pH-värde?"]
["Kommer projektet markant öka antalet träd i strandzonen?"]
["Kommer naturliga strandkanter restaureras inom projektet?"]
["Kommer naturliga strandkanter restaureras inom projektet?"]
["Kommer projektet att bidra till att variationen i vattengenomströmningen ökar? "]
["Kommer projektet att bidra till att variationen i vattengenomströmningen ökar? "]
["Kommer projektet att bidra till att variationen i vattengenomströmningen ökar? "]
["Kommer projektet restaurera påverkade bottnar, exemeplvis återskapa ett för vattnet naturligt bottensubstrat?"]
["Kommer projektet bidra till att stranden eller vattenförekomsten tillgängliggörs?"]
["Kommer projektet bidra till att stranden eller vattenförekomsten tillgängliggörs?"]
["Kommer projektet bidra till att stranden eller vattenförekomsten tillgängliggörs?"]
["Ej aktuellt"]
["Ej aktuellt"]
["Ej aktuellt"]
["Kommer projektet avlägsna källor till buller?"]
["Kommer projektet avlägsna källor till buller?"]
["Kommer projektet avlägsna källor till buller?"]
["Kommer projektet avlägsna källor till buller?"]
["Kommer projektet medföra att anläggningar, byggnader eller befintliga ljuskällor som påverkar vy och utsikt försvinner?"]
["Kommer projektet medföra att anläggningar, byggnader eller befintliga ljuskällor som påverkar vy och utsikt försvinner?"]
["Kommer projektet medföra att anläggningar, byggnader eller befintliga ljuskällor som påverkar vy och utsikt försvinner?"]
["Kommer projektet medföra att anläggningar, byggnader eller befintliga ljuskällor som påverkar vy och utsikt försvinner?"]
["Kommer projektet medföra att anläggningar, byggnader eller befintliga ljuskällor som påverkar vy och utsikt försvinner?"]
["Kommer projektet minska grumligheten i vattnet?"]
["Kommer projektet minska grumligheten i vattnet?"]
["Kommer projektet minska grumligheten i vattnet?"]
["Kommer projektet minska grumligheten i vattnet?"]
["Kommer projektet förbättra förustättningarna för en eller flera av ekosystemets inhemska arter? Förbättring kan exempelvis ske genom restaurering av artens livsmiljö eller minskat uttag av arten. "]
["Kommer projektet förbättra förustättningarna för en eller flera av ekosystemets inhemska arter? Förbättring kan exempelvis ske genom restaurering av artens livsmiljö eller minskat uttag av arten. "]
["Kommer projektet förbättra förutsättningarna för vattenförekomstens skyddade, rödlistade eller hotade arter? Förbättring kan exemeplvis ske genom restaurering av artens livsmiljö eller minskat uttag av arten. "]
["Kommer projektet förbättra förutsättningarna för vattenförekomstens skyddade, rödlistade eller hotade arter?  Förbättring kan exemeplvis ske genom restaurering av artens livsmiljö eller minskat uttag av arten. "]
["Lider vattenförekomsten av övergödningsproblematik (se info om aktuellt vattendrag i VISS under punkt \"1. Övergödning och syrefattiga förhållanden\" under rubriken \"Miljöproblem\"). "]
["Lider vattenförekomsten av övergödningsproblematik (se info om aktuellt vattendrag i VISS under punkt \"1. Övergödning och syrefattiga förhållanden\" under rubriken \"Miljöproblem\"). "]
["Kommer projektet att minska tillgången till näringsämnen såsom fosfor och kväve?"]
["Kommer projektet aktivt arbeta för att röja främmande arter från platsen?"]

{"sheet":"Information Ekosystemtj. vatten","index":11,"n_rows":82,"n_cols":7,"rows_kept":82,"cut":false,"hidden":false,"merged":[[37,6,38,6],[68,6,70,6],[42,3,44,3],[78,3,81,3],[68,3,70,3],[74,3,77,3],[66,3,67,3],[78,6,81,6],[63,6,65,6],[66,6,67,6],[55,6,62,6],[71,6,73,6],[1,9,1,10],[48,3,54,3],[37,3,38,3],[26,3,28,3],[5,6,15,6],[5,3,15,3],[18,6,22,6],[26,6,28,6],[16,6,17,6],[18,3,22,3],[23,6,25,6],[16,3,17,3],[42,6,44,6],[48,6,54,6],[45,6,47,6],[31,6,33,6],[1,1,1,2],[39,3,41,3],[55,3,62,3],[63,3,65,3],[74,6,77,6],[2,3,4,3],[45,3,47,3],[2,6,4,6],[31,3,33,3],[34,6,36,6],[34,3,36,3],[23,3,25,3],[29,3,30,3],[71,3,73,3],[29,6,30,6],[39,6,41,6],[34,1,36,2],[37,1,38,2],[26,1,28,2],[29,1,30,2],[31,1,33,2],[39,1,41,2],[42,1,44,2],[45,1,47,2],[48,1,54,2],[55,1,62,2],[71,1,73,2],[74,1,77,2],[78,1,81,2],[63,1,65,2],[66,1,67,2],[68,1,70,2],[2,1,4,2],[5,1,15,2],[16,1,17,2],[18,1,22,2],[23,1,25,2]]}
[null,"Ekosystemtjänster från vattenmiljöer"]
[null,"Ekosystemtjänst",null,"Kort beskrivning av ekosystemtjänster","Nr","Förutsättningar för att ekosystemtjänster ska upprätthållas","Typ av ekosystemtjänst"]
[null,"Primärproduktion",null,"Produktion av växtplankton\noch alger utifrån solljus och näringsämnen (fotosyntesen) som är grunden för allt liv.",1,"Solljus","Stödjande"]
[null,null,null,null,2,"Tillgång till näringsämnen"]
[null,null,null,null,3,"Upprätthållande av biokemiska cykler"]
[null,"Livsmiljöer",null,"Olika arter har anpassat sig till olika livsmiljöer. En livsmiljö ger de förutsättningar för en art som krävs för att den ska kunna utvecklas och fortleva. Exempelvis sjögräsängar som fiskyngel kan gömma sig i eller lekbottnar där arter kan reproducera sig.",1,"Tillgång till näringsämnen","Stödjande"]
[null,null,null,null,2,"Solljus"]
[null,null,null,null,3,"Vattentemperatur"]
[null,null,null,null,4,"Minskad övergödning"]
[null,null,null,null,5,"Naturliga strandkanter"]
[null,null,null,null,6,"Naturliga bottnar "]
[null,null,null,null,7,"pH"]
[null,null,null,null,8,"Begränsad grumlighet"]
[null,null,null,null,9,"Naturligt varierat vattenflöde"]
[null,null,null,null,10,"Upprätthållande av biokemiska cykler"]
[null,null,null,null,11,"Förekomst av svämplan"]
[null,"Upprätthållande av biokemiska cykler",null,"Ekosystemens bidrag till cirkulation av grundämnen, föreningar eller molekyler. De viktigaste cyklerna inkluderar vattencykel, syrecykel, kolcykel, kvävecykel, fosforcykel och saltcykeln. Dessa är väl sammankopplade och nödvändiga för alla organismer och därmed även för andra ekosystemtjänster. ",1,"Naturliga bottnar ","Stödjande"]
[null,null,null,"Ekosystemets förmåga att stå emot förändringar som riskerar att väsentligt förändra ekosystemet. Resiliens kan också vara ekosystemets återhämtningsförmåga efter en tillfällig störning. \n",2,"Solljus"]
[null,"Levande processers nedbrytning av avfall och giftiga ämnen",null,"Giftiga ämnen kan brytas ner till mindre farliga föreningar av växter eller mikroorganismer. Reglering av giftiga ämnen kan även ske genom att dessa binds till partiklar som sedimenterar eller samlas i biomassa som skördas/manuellt tas bort. Genom inlagring i sediment kan miljögifter kvarhållas temporärt eller permanent. Miljögifter påverkar bland annat rekreation (bad) och försörjning (dricksvatten, mat). ",1,"Primärproduktion","Reglerande"]
[null,null,null,null,2,"Naturliga strandkanter "]
[null,null,null,null,3,"pH"]
[null,null,null,null,4,"Upprätthållande av biologisk mångfald"]
[null,null,null,null,5,"Minskad övergödning"]
[null,"Minskad övergödning",null,"Minskad övergödning sker genom växter och mikroorganismers näringsupptag av kväve och fosfor eller genom att näringsämnen binds in till partiklar och sedimenterar.  ",1,"Naturligt varierat vattenflöde","Reglerande"]
[null,null,null,null,2,"pH"]
["??",null,null,null,3,"Förekomst av svämplan"]
[null,"Naturlig luftrening",null,"Reducering av lokala och regionala luftföroreningar genom att träd och annan vegetation fungerar som luftrenare.",1,"Träd i strandzonen","Reglerande"]
[null,null,null,null,2,"Upprätthållande av biokemiska cykler"]
[null,null,null,null,3,"Primärproduktion "]
[null,"Regleringar av atmosfärens kemiska sammansättning (kolbindning)",null,"Kolinlagring i hav och sjöar genom bland annat upptag av koldioxid genom fotosyntes, inbindning av kol i vattenlevande organsimer som sedan sedimenterar på botten samt genom att koldioxid löser sig i vattnet.",1,"Primärproduktion ","Reglerande"]
[null,null,null,null,2,"Naturliga bottnar "]
[null,"Livsmedel från vilda och odlade vattenlevande växter och djur. ",null,"Yrkes- såväl som fritidsfiske samt vattenbruk ger livsmedel i form av fisk och skaldjur. Skördande av vilda växter samt odlling av växter för konsumtion.",1,"Bevarande av livsmiljöer","Försörjande"]
[null,null,null,null,2,"Tillgänglighet till strandzon och vattenförekomst"]
[null,null,null,null,3,"Upprätthållande av biologisk mångfald"]
[null,"Råvaror",null,"Råvaror t.ex. alger och fiberråvaror för användning som foder eller gödningsmedel i jord- och vattenbruk.",1," Bevarande av livsmiljöer","Försörjande"]
[null,null,null,null,2,"Upprätthållande av biologisk mångfald\n"]
[null,null,null,null,3,"Bevarande av genetiska resurser"]
[null,"Genetiska resurser",null,"Upprätthållande av genetiska resurser (DNA-segment med specifik genetisk information) hos växter samt vilda och tama djur.",1,"Bevarande av livsmiljöer","Försörjande"]
[null,null,null,null,2,"Upprätthållande av biologisk mångfald\n"]
[null,"Resurser bioteknik och kemikalieråvaror",null,"Försörjning av råvaror för industrigrenar inom läkemedels-, kemi- och bioteknologiindustrin (ej genetiska resurser). Exempelvis medicinska, kosmetiska råvaror andra biobaserade kemikalieråvaror.",1,"Bevarande av livsmiljöer\n","Försörjande"]
[null,null,null,null,2,"Upprätthållande av biologisk mångfald\n"]
[null,null,null,null,3,"Bevarande av genetiska resurser"]
[null,"Reglering av vattenflöde och vattenmagasinering",null,"Vattendrag och sjöar med omgivande svämplan och översvämningsytor buffrar för höga vattenflöden och minskar risken för översvämningar på ej önskad mark. God markstruktur och markvegetation bidrar till att jorden kan magasinera vatten vilket motverkar stora vattenflöden.",1,"Förekomst av svämplan","Reglerande"]
[null,null,null,null,2,"Natuligt varierat vattenflöde"]
[null,null,null,null,3,"Förekomst av naturliga strandkanter\n"]
[null,"Kulturarv",null,"Avser alla bestående materiella och immateriella uttryck till följd av olika mänskliga verksamheter och aktiviteter genom historien. Exempelvis historiska vrak, fiskelägen, gamla kvarnar och luckdammar. ",1,"Bevarande av fornlämning eller kulturlämning.","Kulturell"]
[null,null,null,null,2,"Bevarande av närmiljö och omgivning till lämning"]
[null,null,null,null,3,"Bevarande av konserverande miljö"]
[null,"Rekreation och hälsa i akvatiska miljöer",null,"Organiserat och oorganiserat friluftsliv samt idrottsaktiviteter. Exempel på aktiviteter är bad, fritidsbåtsliv, fritidsfiske, fågelskådning och avkoppling. Innefattar även spirituell upplevelse och känsla av historik och identitet.",1,"Bullerfria miljöer","Kulturell"]
[null,null,null,null,2,"Tillgänglighet till stranden och vattenförekomsten och visuellt ostörda miljöer"]
[null,null,null,null,3,"Visuellt ostörda miljö"]
[null,null,null,null,4,"Begränsad grumlighet"]
[null,null,null,null,5,"Upprätthållande av biologisk mångfald"]
[null,null,null,null,6,"Bevarande av kulturarv"]
[null,null,null,null,7,"Reglering av giftiga ämnen"]
[null,"Turism",null,"Människors aktiviteter under resor och vistelser på platser utanför sin vanliga omgivning för kortare tid för fritid, affärer eller andra syften.",1,"Bullerfria miljöer","Kulturell"]
[null,null,null,null,2,"Tillgänglighet till stranden och vattenförekomsten"]
[null,null,null,null,3,"Visuellt ostörda miljöer "]
[null,null,null,null,4,"Begränsad grumlighet"]
[null,null,null,null,5,"Upprätthållande av biologisk mångfald"]
[null,null,null,null,6,"Bevarande av livsmiljö"]
[null,null,null,null,7,"Bevarande av kulturarv"]
[null,null,null,null,8,"Bevarande av skyddade, rödlistade och hotade arter"]
[null,"Kunskap (vetenskap och utbildning)",null,"Ekosystemens möjlighet att erbjuda platser och resurser för forskning och utbildning för alla åldrar. Forskningsmaterial, miljöövervakning, underlag till muséer, akvarier, biomimik m.m.",1,"Bevarade av livsmiljöer","Kulturell"]
[null,null,null,null,2,"Upprätthållande av biologisk mångfald"]
[null,null,null,null,3,"Bevarande av kulturarv"]
[null,"Upprätthållande av akvatiska livscykler och  näringsvävarnas dynamik",null,"Innebär att produktiviteten för viktiga arter och grupper av växter och djur inte avviker från de naturliga variationer som förekommer i ekosystemets näringsväv. ",1,"Upprätthållande av biologisk mångfald","Stödjande"]
[null,null,null,null,2,"Upprätthållande av näringskedjor"]
[null,"Upprätthållande av biologisk mångfald",null,"Utgår från en mångfald av livsmiljöer, arter, populationer, gener och molekyler samt från ekosystemens mångfald av processer och interaktioner dem emellan. ",1,"Bevarande av livsmiljöer","Stödjande"]
[null,null,null,null,2,"Bevarande av skyddade, rödlistade och hotade arter"]
[null,null,null,null,3,"Frånvaro av främmande arter"]
[null,"Kontroll av skadedjur och sjukdomar",null,"Biologiska mekanismer som begränsar miljöstörande effekter, dvs. reglering av sjukdomar, patogener och annat som har potential att skada ekosystemen. Innefattar även rovdjurs kontroll av bytesdjur och övriga organismer i näringsväven.",1,"Upprätthållande av akvatiska livscykler och näringsvävarnas dynamik","Reglerande"]
[null,null,null,null,2,"Upprätthållande av biologisk mångfald"]
[null,null,null,null,3,"Levande processers nedbrytning av avfall och giftiga ämnen"]
[null,"Estetik",null,"Skapande av estetiska värden och för vår upplevelse av vattenmiljön som långvarig eller tillfällig skapare av upplevd skönhet. Exempelvis forsande vatten, fågelsång, vajande vass och klart vatten.",1,"Visuellt ostörda miljöer","Kulturell"]
[null,null,null,null,2,"Bullerfria miljöer"]
[null,null,null,null,3,"Begränsad grumlighet"]
[null,null,null,null,4,"Bevarande av kulturarv"]
[null,"Inspiration",null,"Funktion som inspirationskälla till kultur, poesi och musik.",1,"Visuellt ostörda miljöer (bebyggelse, ljus)","Kulturell"]
[null,null,null,null,2,"Bullerfria miljöer"]
[null,null,null,null,3,"Bevarande av livsmiljö"]
[null,null,null,null,4,"Upprätthållande av biologisk mångfald"]

{"sheet":"Information Ekosystemtj. land","index":12,"n_rows":86,"n_cols":7,"rows_kept":86,"cut":false,"hidden":false,"merged":[[81,3,85,3],[81,2,85,2],[77,2,80,2],[77,3,80,3],[38,3,39,3],[59,6,61,6],[51,6,58,6],[62,6,63,6],[64,6,66,6],[77,1,78,1],[42,6,44,6],[38,6,39,6],[17,6,21,6],[22,6,23,6],[24,6,26,6],[27,6,29,6],[30,6,33,6],[40,6,41,6],[34,6,35,6],[45,6,50,6],[74,1,76,1],[74,2,76,2],[74,3,76,3],[51,1,52,1],[59,1,60,1],[62,1,63,1],[62,2,63,2],[62,3,63,3],[64,1,65,1],[64,3,66,3],[64,2,66,2],[59,2,61,2],[59,3,61,3],[51,3,58,3],[51,2,58,2],[45,1,46,1],[45,3,50,3],[42,1,43,1],[42,3,44,3],[45,2,50,2],[42,2,44,2],[36,1,37,1],[36,2,37,2],[36,3,37,3],[36,6,37,6],[40,1,41,1],[40,2,41,2],[40,3,41,3],[38,1,39,1],[38,2,39,2],[34,1,35,1],[34,2,35,2],[34,3,35,3],[22,1,23,1],[22,2,23,2],[22,3,23,3],[24,1,26,1],[24,2,26,2],[24,3,26,3],[30,2,33,2],[27,2,29,2],[27,1,29,1],[27,3,29,3],[30,1,32,1],[30,3,33,3],[20,5,21,5],[17,3,21,3],[17,1,18,1],[17,2,21,2],[15,1,16,1],[15,2,16,2],[15,3,16,3],[15,6,16,6],[6,2,14,2],[6,3,14,3],[9,5,11,5],[1,9,1,10],[1,1,1,2],[2,1,5,1],[2,2,5,2],[2,6,5,6],[6,1,7,1],[2,3,5,3],[6,6,14,6],[81,6,85,6],[67,2,69,2],[67,3,69,3],[67,6,69,6],[70,1,71,1],[70,2,71,2],[70,3,71,3],[70,6,71,6],[72,1,73,1],[67,1,68,1],[72,2,73,2],[72,6,73,6],[74,6,76,6],[77,6,80,6],[72,3,73,3],[81,1,82,1]]}
[null,"Ekosystemtjänster på land"]
[null,"Ekosystemtjänst",null,"Kort beskrivning av ekosystemtjänster","Nr","Förutsättningar för att ekosystemtjänster ska upprätthållas","Typ av ekosystemtjänst"]
[null,null,"Primärproduktion på land","Produktion av växter utifrån solljus och näringsämnen (fotosyntesen) som är grunden för allt liv.",1,"Solljus","Stödjande"]
[null,null,null,null,2,"Tillgång till näringsämnen"]
[null,null,null,null,3,"Tillgång till växttillgängligt vatten"]
[null,null,null,null,4,"Upprätthållande av biokemiska cykler"]
[null,null,"Livsmiljö (terrester)","Olika arter har anpassat sig till olika livsmiljöer. En livsmiljö ger de förutsättningar för en art som krävs för att den ska kunna utvecklas och fortleva. Exempelvis blomrika ängar, gamla skogar och hålträd",1,"Primärproduktion","Stödjande"]
[null,null,null,null,2,"Upprätthållande av biokemiska cykler"]
[null,null,null,null,3,"Tillgång till en mångfald av biotoper"]
[null,null,null,null,4,"Upprätthållande av naturliga markförhållanden som ej påverkats av konstgödsel (inom skog och odlingslandskap)"]
[]
[]
[null,null,null,null,5,"Upprätthållande av hävd (bete eller slåtter) för biotoper där så är skäligt (betesmark, äng)"]
[null,null,null,null,6,"Upprätthållande av spridningsvägar för växter och djur"]
[null,null,null,null,7,"Frånvaro av dränerande strukturer (diken) i våtmarker, sumpskogar och mossar"]
[null,null,"Jordmånsbildning","Jordmånsbildning sker överallt där det förekommer bergartsfragment (som regel en jordart), luft, vatten och organisk substans. Nebrytningen utförs främst av mikrober och svampar, men även av insekter och mask.",1,"Förekomst av jord och markvegetation ","Stödjande"]
[null,null,null,"Ekosystemets förmåga att stå emot förändringar som riskerar att väsentligt förändra ekosystemet. Resiliens kan också vara ekosystemets återhämtningsförmåga efter en tillfällig störning. \n",2,"Förnapåfyllning"]
[null,null,"Upprätthållande av terrestra livscykler och näringsvävarnas dynamik\n","Innebär att produktiviteten för arter och grupper av växter och djur inte avviker från de naturliga variationer som förekommer i ekosystemets näringsväv. ",1,"Upprätthållande av biologisk mångfald\n\n","Stödjande"]
[null,null,null,null,2,"Upprätthållande av näringskedjor"]
[null,null,null,null,3,"Bevarande av livsmiljö"]
[null,null,null,null,4,"Upprätthållande av pollinering och fröspridning"]
[]
[null,null,"Upprätthållande av biokemiska cykler","Ekosystemens bidrag till cirkulation av grundämnen, föreningar eller molekyler. De viktigaste cyklerna inkluderar vattencykel, syrecykel, kolcykel, kvävecykel, fosforcykel och saltcykeln. ",1,"Förekomst av jord och markvegetation ","Stödjande"]
[]
[null,null,"Upprätthållande av biologisk mångfald","Utgår från en mångfald av livsmiljöer, arter, populationer, gener och molekyler samt från ekosystemens mångfald av processer och interaktioner dem emellan. ",1,"Bevarande av livsmiljöer\n","Stödjande"]
[null,null,null,null,2,"Bevarande av skyddade, rödlistade och hotade arter"]
[null,null,null,null,3,"Frånvaro av främmande invasiva arter"]
[null,null,"Reglering av atmosfärens kemiska sammansättning (kolbindning)","Markens organiska material utgör ett stort förråd av kol och det sker ett ständigt utbyte mellan atmosfärens CO2 och markens kolförråd genom tillförsel av CO2 från atmosfären via fotosyntesen och den efterföljande förnabildningen. Tjocka humuslager (som består av cirka 50% kol) kan bildas och utgör en stor sänka för stabilt kol. Mer än metertjocka humuslager med upp till 200 ton C per hektar finns bland annat i Skandinavien. Dessa tjocka lager bildas i skogsbestånd där marken inte störs. CO2 lagras även i växande skog och vegetation. ",1,"Primärproduktion ","Reglerande"]
[null,null,null,null,2,"Bevarande av äldre skog"]
[null,null,null,null,3,"Förekomst av jord och markvegetation "]
[null,null,"Livsmedel från terrestra vilda och odlade växter och djur. ","Skörd och jakt av vilda växter och djur, exempelvis odlade grödor, bär och svamp, jaktbart vilt, tamdjur inklusive tambin. Även möjlighet till stadsodling ingår här. Med stadsodling avses småskalig odling, bland annat av livsmedel på hustak, andra hårdgjorda ytor och på icke hårdgjord stadsmark.",1,"Bevarande av livsmiljöer","Försörjande"]
[null,null,null,null,2,"Kontroll av skadedjur och sjukdomar"]
[null,null,null,null,3,"Bevarande av genetiska resurser"]
[null,null,null,null,4,"Upprätthållande av biologisk mångfald"]
[null,null,"Terrestra fiberråvaror","Råvaror för foder (växter, gräs, alger) och gödningsmedel (alger) i jordbruket, samt råvaror som timmer, massa till papper och textilfibrer (från exempelvis hampa, lin och träd (gran, tall, bok, eukalyptus)).",1,"Upprätthållande av biologisk mångfald\n","Försörjande"]
[]
[null,null,"Genetiska resurser","Upprätthållande av genetiska resurser (DNA-segment med specifik genetisk information) hos växter samt vilda och tama djur.",1,"Upprätthållande av biologisk mångfald\n","Försörjande"]
[null,null,null,null,2,"Upprätthållande av spridningsvägar för växter och djur"]
[null,null,"Resurser bioteknik och kemikalieråvaror","Försörjning av råvaror för industrigrenar inom läkemedels-, kemi- och bioteknologiindustrin (ej genetiska resurser). Exempelvis medicinska, kosmetiska råvaror andra biobaserade kemikalieråvaror.",1,"Bevarande av genetiska resurser\n","Försörjande"]
[null,null,null,null,2,"Upprätthållande av biologisk mångfald\n"]
[null,null,"Bioenergi från terrestra växter","Skörd av växter och träd för produktion av energi (exempel grenar och toppar, energiskogsodling, energigrödor).",1,"Upprätthållande av biologisk mångfald\n","Försörjande"]
[]
[null,null,"Kulturarv","Avser alla bestående materiella och immateriella uttryck till följd av olika mänskliga verksamheter och aktiviteter genom historien. ",1,"Bevarande av fornlämning eller kulturlämning.","Kulturell"]
[null,null,null,null,2,"Bevarande av närmiljö och omgivning till lämning"]
[null,null,null,null,3,"Bevarande av konserverande miljö"]
[null,null,"Rekreation och hälsa i terrestra miljöer","Organiserat och oorganiserat friluftsliv samt idrottsaktiviteter. Inkluderar aktiviteter som exempelvis vandring, naturfotografering, fågelskådning och avkoppling. Innefattar även spirituell upplevelse och känsla av historik och identitet.",1,"Bullerfria miljöer","Kulturell"]
[null,null,null,null,2,"Bevarande av livsmiljö"]
[null,null,null,null,3,"Visuellt ostörda miljö"]
[null,null,null,null,4,"Bostadsnära naturområden"]
[null,null,null,null,5,"Upprätthållande av biologisk mångfald"]
[null,null,null,null,6,"Bevarande av kulturarv"]
[null,null,"Turism","Människors aktiviteter under resor och vistelser på platser utanför sin vanliga omgivning för kortare tid för fritid, affärer eller andra syften.",1,"Bullerfria miljöer","Kulturell"]
[null,null,null,null,2,"Visuellt ostörda miljöer "]
[null,null,null,null,3,"Tillgänglighet till områden"]
[null,null,null,null,4,"Upprätthållande av biologisk mångfald"]
[null,null,null,null,5,"Bevarande av livsmiljö"]
[null,null,null,null,6,"Bevarande av kulturarv"]
[null,null,null,null,7,"Bevarande av skyddade, rödlistade och hotade arter"]
[]
[null,null,"Kunskap (vetenskap och utbildning)","Ekosystemens möjlighet att erbjuda platser och resurser för forskning och utbildning för alla åldrar. Forskningsmaterial, miljöövervakning, underlag till muséer, akvarier, biomimik m.m.",1,"Bevarade av livsmiljöer","Kulturell"]
[null,null,null,null,2,"Upprätthållande av biologisk mångfald"]
[null,null,null,null,3,"Bevarande av kulturarv"]
[null,null,"Reglering av luftflöden och mikroklimat","Högre vegetation fungerar som stormskydd och vindskydd. Vegetationen har även kapacitet att ventilera och temperaturreglera genom transpiration.",1,"Bevarande av högre vegetation (främst träd och buskar)\n","Reglerande"]
[null,null,null,null,2,"Bevarande av lövträd/lövridåer framför barrträdsbestånd"]
[null,null,"Reglering av fastmaterialflöden och extrema händelser","Ekosystemens möjlighet att hålla fast jord och förebygga erosion och skred. Skog och annan vegetation kan förebygga.",1,"Tillgång till vegetation som binder in jord och sand på olika jorddjup och som tar hand om regnvatten","Reglerande"]
[null,null,null,null,2,"Frånvaro av dränerande strukturer (diken) i våtmarker, sumpskogar och mossar (fungerar som reservoarer som gör att vatten får en längre upphållstid)."]
[null,null,null,null,3,"Frånvaro av främmande arter"]
[null,null,"Levande procerssers nedbrytning av avfall och giftiga ämnen","Giftiga ämnen kan brytas ner av växter eller mikroorganismer. Nedbrytning av giftiga ämnen kan exempelvis ske i våtmarker och i skog. ",1,"Upprätthållande av biologisk mångfald","Reglerande"]
[null,null,null,null,2,"Frånvaro av dränerande strukturer (diken) i våtmarker, sumpskogar och mossar."]
[null,null,null,null,3,"Förekomst av jord och markvegetation "]
[null,null,"Naturlig luftrening","Reducering av lokala och regionala luftföroreningar genom att träd och annan vegetation fungerar som luftrenare (filter och absorbent).",1,"Primärproduktion","Reglerande"]
[null,null,null,null,2,"Förekomst av vegetation, främst träd och buskar"]
[null,null,"Kontroll av skadedjur och sjukdomar","Biologiska mekanismer som begränsar miljöstörande effekter, dvs. reglering av sjukdomar, patogener och annat som har potential att skada ekosystemen. Innefattar även rovdjurs kontroll av bytesdjur och övriga organismer i näringsväven.",1,"Upprätthållande av terrestra livscykler och näringsvävarnas dynamik","Reglerande"]
[null,null,null,null,2,"Upprätthållande av biologisk mångfald"]
[null,null,"Utsmyckningar","Försörjning av råvaror som kan användas som hantverk, konst eller dekoration, exempelvis mossor och lavar, grenar och ovanliga formationer av trädstammar.",1,"Bevarande av livsmiljö","Försörjande"]
[null,null,null,null,2,"Bevarande av äldre skog"]
[null,null,null,null,3,"Bevarad biologisk mångfald"]
[null,null,"Estetik","Skapande av estetiska värden och för vår upplevelse av naturmiljön som långvarig eller tillfällig skapare av upplevd skönhet. Exempelvis gamla skogar, fågelsång, nektarsökande fjärilar och bin, blomstrande ängar. Vad som upplevs estetiskt vackert är dock ytterst subjektivt. ",1,"Visuellt ostörda miljöer","Kulturell"]
[null,null,null,null,2,"Bullerfria miljöer"]
[null,null,null,null,3,"Upprätthållande av biologisk mångfald"]
[null,null,null,null,4,"Bevarande av kulturarv"]
[null,null,"Inspiration","Naturområden fungerar många gånger som en inspirationskälla till kultur, poesi, musik och innovation.",1,"Visuellt ostörda miljöer (bebyggelse, ljus)","Kulturell"]
[null,null,null,null,2,"Bullerfria miljöer"]
[null,null,null,null,3,"Bevarande av kulturarv"]
[null,null,null,null,4,"Bevarande av livsmiljö"]
[null,null,null,null,5,"Upprätthållande av biologisk mångfald"]